{"text_format":"1","workbook":"xlsx","n_sheets":7,"sheets":["はじめに","診療所票H29","テキスト化ツール","テキスト手動保存用1","4H29Layout","テキスト手動保存用2","5H29Layout"],"not_rendered":{"charts":0,"images":1,"macros":1,"external_links":0,"defined_names":4,"comments":0,"pivot_tables":0},"unopened":[],"bounds":{"document_bytes":16777216,"sheet_cells":100000,"rows_first":2000,"rows_last":500,"rows_between":2000,"halvings":0,"cell_chars":16384,"cell_head_chars":4096},"cells_cut":0,"cells_raw":0,"read":"whole","date_system":"1900"}

{"sheet":"はじめに","index":0,"n_rows":55,"n_cols":7,"rows_kept":55,"cut":false,"hidden":false,"merged":[[3,1,12,12],[35,6,41,11]]}
[]
[null,"◆はじめに"]
[]
[null,"　本ファイルでは、「報告様式１（入力用）」の「診療所票」をご記入いただきます。\n\n　平成29年度の報告様式１チェックソフトでは、Excelファイルのままチェックを実行することが可能になります。\n　なお、データチェックの処理に時間を要する場合等には、別シートに格納している「テキスト化ツール」（マクロ機能）か手動でテキストファイル形式にデータ変換することで、迅速にエラーチェックを行うことが可能になります。\n\n　以下の「報告様式１作成の流れ」と合わせて、ご確認ください。\n"]
[]
[]
[]
[]
[]
[]
[]
[]
[]
[]
[null,"・報告様式１作成の流れ"]
[]
[]
[]
[]
[]
[]
[]
[]
[]
[]
[]
[null,null,null,null,null,null,"＜データチェックの処理に時間を要する場合等＞"]
[]
[]
[]
[]
[]
[]
[]
[]
[null,null,null,null,null,"※１","「報告様式１（入力用）」を全て入力後、別シートの「テキスト化ツール」を使用し、「報告様式１チェックソフト」で使用するテキストファイルをご作成いただきます。\n　マクロ機能が使用できない場合は、あらかじめ作成されている「テキスト手動保存用1」シートと「テキスト手動保存用2」シートを表示のうえ、手動でテキストファイルをそれぞれ作成してください。\n　手順は以下のとおりです。"]
[]
[]
[]
[]
[]
[]
[null,null,null,null,null,"○手動でテキストを作成する手順（※２ファイル作成する必要があります）"]
[null,null,null,null,null,"１．「テキスト手動保存用1」シートを表示してください。"]
[null,null,null,null,null,"２．画面上段左の「ファイル」から、「名前を付けて保存」を"]
[null,null,null,null,null,null,"選択してください。"]
[null,null,null,null,null,"３．「名前を付けて保存」ウィンドウが表示されます。"]
[null,null,null,null,null,"４．デスクトップを選択し、ファイル名を指定してください。"]
[null,null,null,null,null,"５．画面中下段の「ファイルの種類」を押下してください。"]
[null,null,null,null,null,"６．表示されたリスト中段の「テキスト(タブ区切り)(*.txt)」を選択します。"]
[null,null,null,null,null,"７．画面下段の「保存」ボタンを押下し、１ファイル目の"]
[null,null,null,null,null,null,"テキストファイルを保存してください。"]
[null,null,null,null,null,"８．「テキスト手動保存用2」シートを表示してください。"]
[null,null,null,null,null,"９．手順２～７を参照し、同様に２ファイル目の"]
[null,null,null,null,null,null,"テキストファイルを保存してください。"]

{"sheet":"診療所票H29","index":1,"n_rows":571,"n_cols":67,"rows_kept":571,"cut":false,"hidden":false,"merged":[[0,0,0,63],[2,0,2,17],[2,18,2,63],[4,0,4,17],[4,18,4,63],[6,18,6,21],[6,22,6,29],[6,30,6,33],[6,34,6,50],[7,18,7,63],[9,10,9,17],[9,18,9,63],[10,10,10,17],[10,18,10,63],[11,10,11,17],[11,18,11,25],[11,26,11,29],[11,30,11,35],[11,36,11,37],[11,38,11,45],[11,46,11,47],[11,48,11,63],[12,30,12,35],[12,36,12,37],[12,38,12,45],[12,46,12,47],[12,48,12,63],[31,1,32,38],[31,40,31,61],[32,40,32,45],[32,46,32,61],[19,0,21,28],[20,59,20,61],[13,18,13,25],[13,26,13,45],[13,46,13,47],[13,48,13,63],[15,0,15,63],[16,0,18,28],[17,59,17,61],[12,18,12,25],[12,26,12,29],[34,5,35,63],[36,0,36,1],[36,2,36,3],[36,5,36,63],[22,0,24,28],[23,59,23,61],[26,0,26,28],[27,29,29,55],[28,0,28,28],[28,59,28,61],[45,0,45,63],[46,0,46,63],[47,0,47,63],[48,0,48,63],[50,0,50,36],[50,45,50,57],[50,59,50,61],[37,4,39,51],[38,54,38,57],[40,7,40,63],[41,0,41,63],[43,0,43,63],[44,0,44,63],[64,2,64,60],[66,0,66,63],[56,0,56,63],[58,0,58,37],[58,50,58,57],[58,59,58,61],[61,0,61,37],[61,50,61,57],[61,59,61,61],[94,4,94,63],[85,23,85,48],[85,49,85,57],[85,59,85,61],[90,55,90,57],[90,59,90,61],[79,49,79,57],[79,59,79,61],[82,49,82,57],[82,59,82,61],[79,0,87,22],[88,0,88,63],[90,0,92,54],[100,0,100,63],[106,43,106,45],[106,47,106,49],[106,51,106,53],[106,55,106,57],[106,59,106,61],[95,38,97,44],[96,13,96,15],[96,17,96,19],[96,20,96,31],[96,33,96,35],[96,45,96,49],[96,51,96,53],[96,57,96,59],[115,1,117,37],[115,48,117,63],[116,38,116,39],[116,41,116,45],[119,38,119,39],[119,41,119,45],[119,49,119,53],[119,57,119,61],[109,0,109,63],[110,1,110,63],[111,40,111,47],[111,48,111,55],[111,56,111,63],[113,38,113,39],[113,41,113,45],[113,49,113,53],[113,57,113,61],[127,0,127,63],[128,0,128,63],[129,0,129,63],[131,0,131,63],[133,0,133,39],[133,53,133,55],[133,57,133,61],[122,38,122,39],[122,41,122,45],[122,49,122,53],[122,57,122,61],[125,38,125,39],[125,41,125,45],[125,49,125,53],[125,57,125,61],[142,0,142,51],[142,53,142,55],[142,57,142,61],[145,0,145,63],[146,1,146,63],[147,1,147,63],[136,0,136,39],[136,53,136,55],[136,57,136,61],[139,0,139,39],[139,53,139,55],[139,57,139,61],[151,0,151,5],[151,7,151,13],[151,17,151,27],[151,30,151,39],[151,41,151,47],[151,51,151,61],[148,0,148,63],[149,0,149,5],[149,6,149,15],[149,16,149,29],[149,30,149,39],[149,40,149,49],[149,50,149,63],[157,0,157,5],[157,7,157,13],[157,17,157,27],[157,30,157,39],[157,41,157,47],[157,51,157,61],[154,0,154,5],[154,7,154,13],[154,17,154,27],[154,30,154,39],[154,41,154,47],[154,51,154,61],[163,0,163,5],[163,7,163,13],[163,17,163,27],[163,30,163,39],[163,41,163,47],[163,51,163,61],[160,0,160,5],[160,7,160,13],[160,17,160,27],[160,30,160,39],[160,41,160,47],[160,51,160,61],[169,0,169,5],[169,7,169,13],[169,17,169,27],[169,30,169,39],[169,41,169,47],[169,51,169,61],[166,0,166,5],[166,7,166,13],[166,17,166,27],[166,30,166,39],[166,41,166,47],[166,51,166,61],[175,0,175,5],[175,7,175,13],[175,17,175,27],[175,30,175,39],[175,41,175,47],[175,51,175,61],[172,0,172,63],[173,0,173,5],[173,6,173,15],[173,16,173,29],[173,30,173,39],[173,40,173,49],[173,50,173,63],[181,0,181,5],[181,7,181,13],[181,17,181,27],[181,30,181,39],[181,41,181,47],[181,51,181,61],[178,0,178,5],[178,7,178,13],[178,17,178,27],[178,30,178,39],[178,41,178,47],[178,51,178,61],[187,0,187,5],[187,7,187,13],[187,17,187,27],[187,30,187,39],[187,41,187,47],[187,51,187,61],[184,0,184,5],[184,7,184,13],[184,17,184,27],[184,30,184,39],[184,41,184,47],[184,51,184,61],[189,0,191,54],[190,55,190,57],[190,59,190,61],[193,0,193,63],[194,0,194,5],[194,6,194,15],[194,16,194,29],[194,30,194,39],[194,40,194,49],[194,50,194,63],[199,0,199,5],[199,7,199,13],[199,17,199,27],[199,30,199,39],[199,41,199,47],[199,51,199,61],[196,0,196,5],[196,7,196,13],[196,17,196,27],[196,30,196,39],[196,41,196,47],[196,51,196,61],[205,0,205,5],[205,7,205,13],[205,17,205,27],[205,30,205,39],[205,41,205,47],[205,51,205,61],[202,0,202,5],[202,7,202,13],[202,17,202,27],[202,30,202,39],[202,41,202,47],[202,51,202,61],[211,0,211,63],[212,1,212,63],[213,0,213,5],[213,6,213,15],[213,16,213,29],[213,30,213,39],[213,40,213,49],[213,50,213,63],[208,0,208,5],[208,7,208,13],[208,17,208,27],[208,30,208,39],[208,41,208,47],[208,51,208,61],[218,0,218,5],[218,7,218,13],[218,17,218,27],[218,30,218,39],[218,41,218,47],[218,51,218,61],[215,0,215,5],[215,7,215,13],[215,17,215,27],[215,30,215,39],[215,41,215,47],[215,51,215,61],[224,0,224,5],[224,7,224,13],[224,17,224,27],[224,30,224,39],[224,41,224,47],[224,51,224,61],[221,0,221,5],[221,7,221,13],[221,17,221,27],[221,30,221,39],[221,41,221,47],[221,51,221,61],[230,0,230,63],[231,1,231,63],[232,0,232,5],[232,6,232,15],[232,16,232,29],[232,30,232,39],[232,40,232,49],[232,50,232,63],[227,0,227,5],[227,7,227,13],[227,17,227,27],[227,30,227,39],[227,41,227,47],[227,51,227,61],[237,0,237,5],[237,7,237,13],[237,17,237,27],[237,30,237,39],[237,41,237,47],[237,51,237,61],[234,0,234,5],[234,7,234,13],[234,17,234,27],[234,30,234,39],[234,41,234,47],[234,51,234,61],[243,0,243,5],[243,7,243,13],[243,17,243,27],[243,30,243,39],[243,41,243,47],[243,51,243,61],[240,0,240,5],[240,7,240,13],[240,17,240,27],[240,30,240,39],[240,41,240,47],[240,51,240,61],[249,0,249,63],[250,1,250,63],[251,0,251,12],[251,13,251,29],[251,30,251,46],[251,47,251,63],[246,0,246,5],[246,7,246,13],[246,17,246,27],[246,30,246,39],[246,41,246,47],[246,51,246,61],[254,0,254,12],[254,13,254,29],[254,30,254,46],[254,47,254,63],[255,0,255,12],[255,13,255,29],[255,30,255,46],[255,47,255,63],[252,0,252,12],[252,13,252,29],[252,30,252,46],[252,47,252,63],[253,0,253,12],[253,13,253,29],[253,30,253,46],[253,47,253,63],[258,0,258,12],[258,13,258,29],[258,30,258,46],[258,47,258,63],[259,0,259,12],[259,13,259,29],[259,30,259,46],[259,47,259,63],[256,0,256,12],[256,13,256,29],[256,30,256,46],[256,47,256,63],[257,0,257,12],[257,13,257,29],[257,30,257,46],[257,47,257,63],[260,0,260,12],[260,13,260,29],[260,30,260,46],[260,47,260,63],[261,30,261,45],[262,30,262,45],[262,50,262,53],[262,54,262,57],[262,58,262,62],[264,55,264,57],[264,59,264,61],[266,0,266,63],[267,1,267,63],[268,1,268,63],[270,47,270,49],[270,51,270,61],[263,29,265,47],[263,48,265,49],[264,13,264,16],[264,17,264,23],[264,25,264,27],[264,51,264,53],[282,47,282,49],[282,51,282,61],[285,0,285,63],[286,1,286,63],[288,47,288,49],[288,51,288,61],[273,47,273,49],[273,51,273,61],[276,49,276,51],[276,53,276,61],[279,47,279,49],[279,51,279,61],[290,1,304,1],[291,47,291,49],[291,51,291,61],[294,47,294,49],[294,51,294,61],[297,47,297,49],[297,51,297,61],[300,47,300,49],[300,51,300,61],[303,47,303,49],[303,51,303,61],[306,47,306,49],[306,51,306,61],[309,47,309,49],[309,51,309,61],[312,47,312,49],[312,51,312,61],[315,47,315,49],[315,51,315,61],[327,47,327,49],[327,51,327,61],[329,2,329,63],[331,47,331,49],[331,51,331,61],[333,1,347,1],[334,47,334,49],[334,51,334,61],[337,47,337,49],[337,51,337,61],[308,1,328,1],[318,47,318,49],[318,51,318,61],[321,47,321,49],[321,51,321,61],[324,47,324,49],[324,51,324,61],[351,1,371,1],[352,47,352,49],[352,51,352,61],[355,47,355,49],[355,51,355,61],[358,47,358,49],[358,51,358,61],[361,47,361,49],[340,47,340,49],[340,51,340,61],[343,47,343,49],[343,51,343,61],[346,47,346,49],[346,51,346,61],[361,51,361,61],[364,47,364,49],[364,51,364,61],[367,47,367,49],[367,51,367,61],[370,47,370,49],[370,51,370,61],[349,47,349,49],[349,51,349,61],[384,47,384,49],[384,51,384,61],[387,47,387,49],[387,51,387,61],[389,2,389,63],[390,0,392,63],[373,0,373,63],[374,0,376,63],[378,47,378,49],[378,51,378,61],[381,47,381,49],[381,51,381,61],[403,47,403,49],[403,51,403,61],[406,0,406,63],[408,0,408,28],[408,49,408,57],[408,59,408,61],[394,47,394,49],[394,51,394,61],[397,47,397,49],[397,51,397,61],[400,47,400,49],[400,51,400,61],[419,0,419,63],[423,1,423,46],[423,47,423,49],[423,51,423,61],[426,2,426,46],[426,47,426,49],[426,51,426,61],[411,0,411,63],[413,47,413,49],[413,51,413,61],[416,47,416,49],[416,51,416,61],[418,0,418,63],[437,2,437,46],[437,47,437,49],[437,51,437,61],[440,2,440,46],[440,47,440,49],[440,51,440,61],[429,2,429,46],[429,47,429,49],[429,51,429,61],[434,1,434,45],[434,47,434,49],[434,51,434,61],[451,1,451,63],[453,47,453,49],[453,51,453,61],[456,1,456,46],[456,47,456,49],[456,51,456,61],[442,0,442,63],[443,0,443,63],[446,47,446,49],[446,51,446,61],[449,0,449,63],[450,1,450,63],[468,0,468,63],[470,0,470,48],[470,49,470,51],[470,53,470,61],[473,0,473,46],[473,47,473,49],[473,51,473,61],[459,47,459,49],[459,51,459,61],[462,1,462,46],[462,47,462,49],[462,51,462,61],[465,47,465,49],[465,51,465,61],[487,0,487,63],[489,14,489,35],[489,55,489,57],[489,59,489,61],[492,55,492,57],[492,59,492,61],[475,50,477,63],[476,47,476,49],[478,1,480,46],[479,47,479,49],[479,51,479,61],[481,2,485,46],[483,47,483,49],[483,51,483,61],[504,55,504,57],[504,59,504,61],[507,55,507,57],[507,59,507,61],[510,55,510,57],[510,59,510,61],[495,55,495,57],[495,59,495,61],[498,55,498,57],[498,59,498,61],[501,55,501,57],[501,59,501,61],[522,55,522,57],[522,59,522,61],[525,55,525,57],[525,59,525,61],[528,55,528,57],[528,59,528,61],[513,55,513,57],[513,59,513,61],[516,55,516,57],[516,59,516,61],[519,55,519,57],[519,59,519,61],[539,0,539,63],[541,0,541,63],[543,0,543,28],[543,49,543,57],[543,59,543,61],[545,0,545,63],[531,55,531,57],[531,59,531,61],[534,55,534,57],[534,59,534,61],[537,55,537,57],[537,59,537,61],[548,0,548,5],[548,7,548,13],[548,17,548,27],[548,30,548,39],[548,41,548,47],[548,51,548,61],[546,0,546,5],[546,6,546,15],[546,16,546,29],[546,30,546,39],[546,40,546,49],[546,50,546,63],[554,0,554,5],[554,7,554,13],[554,17,554,27],[554,30,554,39],[554,41,554,47],[554,51,554,61],[550,30,552,39],[551,0,551,5],[551,7,551,13],[551,17,551,27],[551,41,551,47],[551,51,551,61],[561,45,561,47],[561,51,561,53],[561,56,561,59],[565,0,565,63],[566,0,566,63],[557,2,558,63],[560,1,562,11],[561,13,561,15],[561,19,561,21],[561,23,561,25],[561,29,561,31],[561,33,561,34],[561,35,561,37],[561,38,561,40],[561,41,561,43]]}
["平成２９年度病床機能報告　報告様式１【有床診療所用】",null,null,null,null,null,null,null,null,null,null,null,null,null,null,null,null,null,null,null,null,null,null,null,null,null,null,null,null,null,null,null,null,null,null,null,null,null,null,null,null,null,null,null,null,null,null,null,null,null,null,null,null,null,null,null,null,null,null,null,null,null,null,null,null,{"$f":"IF(COUNTIF($BN$3:$BN$562,\"●\")>0,\"●が記載された項目は、未記入もしくは記入内容の見直しが必要な欄になります。以下のメッセージの内容をご確認ください。\",\"\")","v":"●が記載された項目は、未記入もしくは記入内容の見直しが必要な欄になります。以下のメッセージの内容をご確認ください。"}]
[]
["◎貴院名",null,null,null,null,null,null,null,null,null,null,null,null,null,null,null,null,null,null,null,null,null,null,null,null,null,null,null,null,null,null,null,null,null,null,null,null,null,null,null,null,null,null,null,null,null,null,null,null,null,null,null,null,null,null,null,null,null,null,null,null,null,null,null,null,{"$f":"IF(BO3<>\"\",\"●\",\"\")","v":"●"},{"$f":"IF(S3<>\"\",\"\",\"「貴院名」が未記入です。ご記入ください。\")","v":"「貴院名」が未記入です。ご記入ください。"}]
[]
["◎ＩＤ（報告マニュアル送付状に\n　記載の８桁コード）",null,null,null,null,null,null,null,null,null,null,null,null,null,null,null,null,null,null,null,null,null,null,null,null,null,null,null,null,null,null,null,null,null,null,null,null,null,null,null,null,null,null,null,null,null,null,null,null,null,null,null,null,null,null,null,null,null,null,null,null,null,null,null,null,{"$f":"IF(BO5<>\"\",\"●\",\"\")","v":"●"},{"$f":"IF(S5<>\"\",IF(LEN(S5)<>8,\"「ＩＤ」が８桁ではありません。事前に送付する案内文書の送付状に記載されている医療機関ＩＤ（８桁）をご記入ください。\",IF(ISNUMBER(S5*1),\"\",\"「ＩＤ」が数値以外で記入されています。数値でご記入ください。\")),\"「ＩＤ」が未記入です。ご記入ください。\")","v":"「ＩＤ」が未記入です。ご記入ください。"}]
[]
["◎医療機関住所",null,null,null,null,null,null,null,null,null,null,null,null,null,null,null,null,null,"〒",null,null,null,null,null,null,null,null,null,null,null,"-",null,null,null,null,null,null,null,null,null,null,null,null,null,null,null,null,null,null,null,null,null,null,null,null,null,null,null,null,null,null,null,null,null,null,{"$f":"IF(BO7<>\"\",\"●\",\"\")","v":"●"},{"$f":"IF(AND(W7<>\"\",AI7<>\"\"),IF(AND(ISNUMBER(W7*1),ISNUMBER(AI7*1)),\"\",\"「郵便番号」が数値以外で記入されています。数値でご記入ください。\"),\"「郵便番号」に未記入の欄があります。すべての欄にご記入ください。\")","v":"「郵便番号」に未記入の欄があります。すべての欄にご記入ください。"}]
[null,null,null,null,null,null,null,null,null,null,null,null,null,null,null,null,null,null,null,null,null,null,null,null,null,null,null,null,null,null,null,null,null,null,null,null,null,null,null,null,null,null,null,null,null,null,null,null,null,null,null,null,null,null,null,null,null,null,null,null,null,null,null,null,null,{"$f":"IF(BO8<>\"\",\"●\",\"\")","v":"●"},{"$f":"IF(OR(S8<>\"\"),\"\",\"「医療機関住所」が未記入です。ご記入ください。\")","v":"「医療機関住所」が未記入です。ご記入ください。"}]
[]
["◎報告担当者",null,null,null,null,null,null,null,null,null,"氏　名",null,null,null,null,null,null,null,null,null,null,null,null,null,null,null,null,null,null,null,null,null,null,null,null,null,null,null,null,null,null,null,null,null,null,null,null,null,null,null,null,null,null,null,null,null,null,null,null,null,null,null,null,null,null,{"$f":"IF(BO10<>\"\",\"●\",\"\")","v":"●"},{"$f":"IF(S10<>\"\",\"\",\"「氏名」が未記入です。ご記入ください。\")","v":"「氏名」が未記入です。ご記入ください。"}]
[null,null,null,null,null,null,null,null,null,null,"部署名"]
[null,null,null,null,null,null,null,null,null,null,"連絡先",null,null,null,null,null,null,null,"電話番号",null,null,null,null,null,null,null,"市 外\n局 番",null,null,null,null,null,null,null,null,null,"-",null,null,null,null,null,null,null,null,null,"-",null,null,null,null,null,null,null,null,null,null,null,null,null,null,null,null,null,null,{"$f":"IF(BO12<>\"\",\"●\",\"\")","v":"●"},{"$f":"IF(AND(AE12<>\"\",AM12<>\"\",AW12<>\"\"),IF(AND(ISNUMBER(AE12*1),ISNUMBER(AM12*1),ISNUMBER(AW12*1)),\"\",\"「電話番号」が数値以外で記入されています。数値でご記入ください。\"),\"「電話番号」に未記入の欄があります。すべての欄にご記入ください。\")","v":"「電話番号」に未記入の欄があります。すべての欄にご記入ください。"}]
[null,null,null,null,null,null,null,null,null,null,null,null,null,null,null,null,null,null,"FAX番号",null,null,null,null,null,null,null,"市 外\n局 番",null,null,null,null,null,null,null,null,null,"-",null,null,null,null,null,null,null,null,null,"-",null,null,null,null,null,null,null,null,null,null,null,null,null,null,null,null,null,null,{"$f":"IF(BO13<>\"\",\"●\",\"\")","v":""},{"$f":"IF(AND(AE13=\"\",AM13=\"\",AW13=\"\"),\"\",IF(AND(AE13<>\"\",AM13<>\"\",AW13<>\"\"),IF(AND(ISNUMBER(AE13*1),ISNUMBER(AM13*1),ISNUMBER(AW13*1)),\"\",\"「FAX番号」が数値以外で記入されています。数値でご記入ください。\"),\"「FAX番号」に未記入の欄があります。すべての欄にご記入ください。\"))","v":""}]
[null,null,null,null,null,null,null,null,null,null,null,null,null,null,null,null,null,null,"ｅ-ｍａｉｌ",null,null,null,null,null,null,null,null,null,null,null,null,null,null,null,null,null,null,null,null,null,null,null,null,null,null,null,"＠",null,null,null,null,null,null,null,null,null,null,null,null,null,null,null,null,null,null,{"$f":"IF(BO14<>\"\",\"●\",\"\")","v":""},{"$f":"IF(AND(AA14=\"\",AW14=\"\"),\"\",IF(AND(AA14<>\"\",AW14<>\"\"),\"\",\"「e-mail」に未記入の欄があります。すべての欄にご記入ください。\"))","v":""}]
[]
["◎貴院における【平成29年６月の診療】に当たって、一般病床・療養病床に入院した患者の有無、一般病床・医療療養病床\n　（介護療養病床を除く）に入院した患者の有無について、ご記入ください。また、一般病床・医療療養病床（介護療養病床\n　を除く）に入院した患者の【平成29年６月の診療】分について【平成29年７月審査の請求】の有無、請求時のレセプト種別\n　をご記入ください。",null,null,null,null,null,null,null,null,null,null,null,null,null,null,null,null,null,null,null,null,null,null,null,null,null,null,null,null,null,null,null,null,null,null,null,null,null,null,null,null,null,null,null,null,null,null,null,null,null,null,null,null,null,null,null,null,null,null,null,null,null,null,null,null,""]
["① 平成29年６月に一般病床または療養病床に入院した\n　 患者の有無",null,null,null,null,null,null,null,null,null,null,null,null,null,null,null,null,null,null,null,null,null,null,null,null,null,null,null,null,null,null,null,null,null,null,null,null,null,null,null,null,null,null,null,null,null,null,null,null,null,null,null,null,null,null,null,null,null,null,null,null,null,null,null,null,""]
[null,null,null,null,null,null,null,null,null,null,null,null,null,null,null,null,null,null,null,null,null,null,null,null,null,null,null,null,null,"　１．有り　２．無し",null,null,null,null,null,null,null,null,null,null,null,null,null,null,null,null,null,null,null,null,null,null,null,null,null,null,null,"(1)",null,null,null,null,null,null,null,{"$f":"IF(BO18<>\"\",\"●\",\"\")","v":"●"},{"$f":"IF(BH18=\"\",\"選択番号が未記入です。該当する選択肢をご記入ください。\",\"\")","v":"選択番号が未記入です。該当する選択肢をご記入ください。"}]
[null,null,null,null,null,null,null,null,null,null,null,null,null,null,null,null,null,null,null,null,null,null,null,null,null,null,null,null,null,null,null,null,null,null,null,null,null,null,null,null,null,null,null,null,null,null,null,null,null,null,null,null,null,null,null,null,null,null,null,null,null,null,null,null,null,"",""]
["② ①のうち、一般病床または医療療養病床（介護療養\n　 病床を除く）に入院した患者の有無",null,null,null,null,null,null,null,null,null,null,null,null,null,null,null,null,null,null,null,null,null,null,null,null,null,null,null,null,null,null,null,null,null,null,null,null,null,null,null,null,null,null,null,null,null,null,null,null,null,null,null,null,null,null,null,null,null,null,null,null,null,null,null,null,"",""]
[null,null,null,null,null,null,null,null,null,null,null,null,null,null,null,null,null,null,null,null,null,null,null,null,null,null,null,null,null,"　１．有り　２．無し",null,null,null,null,null,null,null,null,null,null,null,null,null,null,null,null,null,null,null,null,null,null,null,null,null,null,null,"(2)",null,null,null,null,null,null,null,{"$f":"IF(BO21<>\"\",\"●\",\"\")","v":"●"},{"$f":"IF(BH18=2,\"\",IF(BH21=\"\",\"選択番号が未記入です。該当する選択肢をご記入ください。\",\"\"))","v":"選択番号が未記入です。該当する選択肢をご記入ください。"}]
[null,null,null,null,null,null,null,null,null,null,null,null,null,null,null,null,null,null,null,null,null,null,null,null,null,null,null,null,null,null,null,null,null,null,null,null,null,null,null,null,null,null,null,null,null,null,null,null,null,null,null,null,null,null,null,null,null,null,null,null,null,null,null,null,null,"",""]
["③ ②の入院患者の６月診療分について７月審査の\n　 診療報酬請求の有無",null,null,null,null,null,null,null,null,null,null,null,null,null,null,null,null,null,null,null,null,null,null,null,null,null,null,null,null,null,null,null,null,null,null,null,null,null,null,null,null,null,null,null,null,null,null,null,null,null,null,null,null,null,null,null,null,null,null,null,null,null,null,null,null,"",""]
[null,null,null,null,null,null,null,null,null,null,null,null,null,null,null,null,null,null,null,null,null,null,null,null,null,null,null,null,null,"　１．有り　２．無し",null,null,null,null,null,null,null,null,null,null,null,null,null,null,null,null,null,null,null,null,null,null,null,null,null,null,null,"(3)",null,null,null,null,null,null,null,{"$f":"IF(BO24<>\"\",\"●\",\"\")","v":"●"},{"$f":"IF(OR(BH18=2,BH21=2),\"\",IF(BH24=\"\",\"選択番号が未記入です。該当する選択肢をご記入ください。\",\"\"))","v":"選択番号が未記入です。該当する選択肢をご記入ください。"}]
[null,null,null,null,null,null,null,null,null,null,null,null,null,null,null,null,null,null,null,null,null,null,null,null,null,null,null,null,null,null,null,null,null,null,null,null,null,null,null,null,null,null,null,null,null,null,null,null,null,null,null,null,null,null,null,null,null,null,null,null,null,null,null,null,null,"",""]
[null,null,null,null,null,null,null,null,null,null,null,null,null,null,null,null,null,null,null,null,null,null,null,null,null,null,null,null,null,null,null,null,null,null,null,null,null,null,null,null,null,null,null,null,null,null,null,null,null,null,null,null,null,null,null,null,null,null,null,null,null,null,null,null,null,"",""]
["④ ③の診療報酬請求時のレセプト種別",null,null,null,null,null,null,null,null,null,null,null,null,null,null,null,null,null,null,null,null,null,null,null,null,null,null,null,null,"　１．全てまたは一部を電子レセプトにより請求",null,null,null,null,null,null,null,null,null,null,null,null,null,null,null,null,null,null,null,null,null,null,null,null,null,null,null,null,null,null,null,null,null,null,null,"",""]
[null,null,null,null,null,null,null,null,null,null,null,null,null,null,null,null,null,null,null,null,null,null,null,null,null,null,null,null,null,"　２．全て紙レセプトにより請求または\n　　　診療報酬の請求無し",null,null,null,null,null,null,null,null,null,null,null,null,null,null,null,null,null,null,null,null,null,null,null,null,null,null,null,null,null,null,null,null,null,null,null,"",""]
[null,null,null,null,null,null,null,null,null,null,null,null,null,null,null,null,null,null,null,null,null,null,null,null,null,null,null,null,null,null,null,null,null,null,null,null,null,null,null,null,null,null,null,null,null,null,null,null,null,null,null,null,null,null,null,null,null,"(4)",null,null,null,null,null,null,null,{"$f":"IF(BO29<>\"\",\"●\",\"\")","v":"●"},{"$f":"IF(OR(BH18=2,BH21=2,BH24=2),\"\",IF(BH29=\"\",\"選択番号が未記入です。該当する選択肢をご記入ください。\",\"\"))","v":"選択番号が未記入です。該当する選択肢をご記入ください。"}]
[null,null,null,null,null,null,null,null,null,null,null,null,null,null,null,null,null,null,null,null,null,null,null,null,null,null,null,null,null,null,null,null,null,null,null,null,null,null,null,null,null,null,null,null,null,null,null,null,null,null,null,null,null,null,null,null,null,null,null,null,null,null,null,null,null,"",""]
[null,null,null,null,null,null,null,null,null,null,null,null,null,null,null,null,null,null,null,null,null,null,null,null,null,null,null,null,null,null,null,null,null,null,null,null,null,null,null,null,null,null,null,null,null,null,null,null,null,null,null,null,null,null,null,null,null,null,null,null,null,null,null,null,null,"",""]
[null,"◎報告様式２の提出に当たって、上記の回答が以下のいずれかに該当する場合は、厚生労働省ホームページより「報告様式２Ｂ」様式をダウンロードする等してご報告ください。\nいずれにも該当しない場合は、事務局より送付する「報告様式２Ａ」の集計内容をご確認のうえ、適宜、修正してご報告ください。\n\n　・上記①が「２．無し」の場合\n　・上記②が「２．無し」の場合\n　・上記③が「２．無し」の場合\n　・上記④が「２．全て紙レセプトにより請求等」の場合\n\n※Excelでご回答の場合は、右記の提出方法判定をご確認ください。",null,null,null,null,null,null,null,null,null,null,null,null,null,null,null,null,null,null,null,null,null,null,null,null,null,null,null,null,null,null,null,null,null,null,null,null,null,null,"Excelでご回答の場合の確認欄",null,null,null,null,null,null,null,null,null,null,null,null,null,null,null,null,null,null,null,null,null,null,null,null,"",""]
[null,null,null,null,null,null,null,null,null,null,null,null,null,null,null,null,null,null,null,null,null,null,null,null,null,null,null,null,null,null,null,null,null,null,null,null,null,null,null,"⇒","報告様式\n２の\n提出方法\n判定",null,null,null,null,null,{"$f":"IF(OR(BH18=2,BH21=2,BH24=2,BH29=2),\"厚生労働省\nホームページより\n報告様式２Ｂを\nダウンロード\nする等して\n報告してください\",\nIF(OR(BH18=\"\",BH21=\"\",BH24=\"\",BH29=\"\"),\"\",\"事務局より送付する\n報告様式２Ａの\n集計内容を確認して\n報告してください\"))","v":""},null,null,null,null,null,null,null,null,null,null,null,null,null,null,null,null,null,null,"",""]
[null,null,null,null,null,null,null,null,null,null,null,null,null,null,null,null,null,null,null,null,null,null,null,null,null,null,null,null,null,null,null,null,null,null,null,null,null,null,null,null,null,null,null,null,null,null,null,null,null,null,null,null,null,null,null,null,null,null,null,null,null,null,null,null,null,""]
[null,null,null,null,null,"◎報告様式２「具体的な医療の内容に関する項目」の報告は、上記の「事務局より送付する報告様式２Ａの集計内容を確認して報告」に該当する場合、既存の電子レセプトによる診療報酬請求の仕組みを活用して必要な項目の集計を行い、貴院分の集計データを送付します。そして、貴院において、平成29年12月下旬に送付された集計内容についてご確認いただくことで行います。"]
[]
[null,null,null,null,null,"　ご確認に当たって、必要な項目の集計を行った集計データについて、CDでの送付をご希望される場合には、下の項目にチェックを入れてください。（チェックがない場合、原則として電子メールによる送付となります。）"]
[null,null,null,null,"報告様式２Ａ「具体的な医療の内容に関する項目」について、CDによる送付をご希望"]
[null,null,null,null,null,null,null,null,null,null,null,null,null,null,null,null,null,null,null,null,null,null,null,null,null,null,null,null,null,null,null,null,null,null,null,null,null,null,null,null,null,null,null,null,null,null,null,null,null,null,null,null,null,null,"　",null,null,null,null,null,null,null,null,null,null,{"$f":"IF(BO39<>\"\",\"●\",\"\")","v":"●"},{"$f":"IF(AND(AA14<>\"\",AW14<>\"\"),\"\",IF(OR(BC39=\"\",BC39=\"　\"),\"CD送付を希望されない場合は電子メール送付となるため、上記の「e-mail」欄にご記入いただく必要があります。ご確認ください。\",\"\"))","v":"CD送付を希望されない場合は電子メール送付となるため、上記の「e-mail」欄にご記入いただく必要があります。ご確認ください。"}]
[]
[null,null,null,null,null,null,null,"※なお、メールアドレスの記載不備等により、電子メールによる送付が困難であった場合には、CDにより送付いたしますので、あらかじめご了承ください。\n※「厚生労働省ホームページより報告様式２Ｂをダウンロードする等して報告」に該当する医療機関は、報告マニュアルに記載のとおり、厚生労働省ホームページより様式をダウンロードする等してご報告ください。ご回答は可能な範囲で構いません。"]
["○ 有床診療所票では、病床数、人員配置、入院患者数等の一定の項目に限って必須の報告項目となり、それ以外の\n　項目については任意の報告となります。なお、必須の報告項目は、記入欄を太枠で囲っています。\n○ 任意の報告項目についてご報告いただく場合には、当該項目のすべての設問にご記入ください。"]
["１．設置主体【平成29年７月１日時点】"]
["　１．厚生労働省　　　２．独立行政法人国立病院機構　　　３．国立大学法人　　　４．独立行政法人労働者健康安全機構"]
["　５．国立高度専門医療研究センター　　　　　６．独立行政法人地域医療機能推進機構　　　　　７．その他（国）"]
["　８．都道府県　　　　　９．市町村　　　　　10．地方独立行政法人　　　　　11．日赤　　　　　12．済生会"]
["　13．北海道社会事業協会　　　14．厚生連　　　15．国民健康保険団体連合会　　　16．健康保険組合及びその連合会"]
["　17．共済組合及びその連合会　　　　　18．国民健康保険組合　　　　　19．公益法人　　　　　20．医療法人"]
["　21．私立学校法人　　　　　22．社会福祉法人　　　　　23．医療生協　　　　　24．会社　　　　　25．その他の法人"]
[]
["　26．個人",null,null,null,null,null,null,null,null,null,null,null,null,null,null,null,null,null,null,null,null,null,null,null,null,null,null,null,null,null,null,null,null,null,null,null,null,null,null,null,null,null,null,null,null,"該当番号 ⇒(5)",null,null,null,null,null,null,null,null,null,null,null,null,null,null,null,null,null,null,null,{"$f":"IF(BO51<>\"\",\"●\",\"\")","v":"●"},{"$f":"IF(BH51=\"\",\"選択番号が未記入です。該当する選択肢をご記入ください。\",\"\")","v":"選択番号が未記入です。該当する選択肢をご記入ください。"}]
[]
[]
[]
[]
[]
["２．貴院の【平成29年７月１日時点】における地方厚生（支）局長への入院基本料の届出の有無、【平成28年７月１日～\n　　平成29年６月30日】の過去１年間における稼働病床の有無について、ご記入ください。"]
[]
["① 平成29年７月１日時点での地方厚生（支）局長への入院基本料の届出の有無",null,null,null,null,null,null,null,null,null,null,null,null,null,null,null,null,null,null,null,null,null,null,null,null,null,null,null,null,null,null,null,null,null,null,null,null,null,"　１．有り　２．無し",null,null,null,null,null,null,null,null,null,null,null,"該当番号 ⇒(6)",null,null,null,null,null,null,null,null,null,null,null,null,null,null,{"$f":"IF(BO59<>\"\",\"●\",\"\")","v":"●"},{"$f":"IF(BH59=\"\",\"選択番号が未記入です。該当する選択肢をご記入ください。\",\"\")","v":"選択番号が未記入です。該当する選択肢をご記入ください。"}]
[]
[]
["② 過去１年間（平成28年７月１日～平成29年６月30日）の稼働病床の有無",null,null,null,null,null,null,null,null,null,null,null,null,null,null,null,null,null,null,null,null,null,null,null,null,null,null,null,null,null,null,null,null,null,null,null,null,null,"　１．有り　２．無し",null,null,null,null,null,null,null,null,null,null,null,"該当番号 ⇒(7)",null,null,null,null,null,null,null,null,null,null,null,null,null,null,{"$f":"IF(BO62<>\"\",\"●\",\"\")","v":"●"},{"$f":"IF(BH62=\"\",\"選択番号が未記入です。該当する選択肢をご記入ください。\",\"\")","v":"選択番号が未記入です。該当する選択肢をご記入ください。"}]
[]
[]
[null,null,"◎上記の２.－①、２.－②の回答がいずれも「２．無し」に該当する場合は、以下の必須項目の\n　ご記入は不要となります。\n　・「７.職員数」のうち、「②入院部門」の項目\n　・「９.入院患者数の状況」の項目"]
[]
["３．医療機能【医療機能の選択にあたっての考え方については、「平成29年度病床機能報告マニュアル①」を参照してください。】"]
[]
[]
[]
[]
[]
[]
[]
[]
[]
[]
[]
[]
["　１．高度急性期機能　　２．急性期機能\n　\n　３．回復期機能　　　　４．慢性期機能\n　\n　５．休棟中、休棟後の再開の予定なし、休棟・廃止予定\n　\n　６．介護保険施設等へ移行予定（左記②及び③に\n　　　　ついて回答する場合に限ります。）",null,null,null,null,null,null,null,null,null,null,null,null,null,null,null,null,null,null,null,null,null,null,"① 2017（平成29）年７月１日時点の機能",null,null,null,null,null,null,null,null,null,null,null,null,null,null,null,null,null,null,null,null,null,null,null,null,null,"該当番号 ⇒(8)",null,null,null,null,null,null,null,null,null,null,null,null,null,null,null,{"$f":"IF(BO80<>\"\",\"●\",\"\")","v":"●"},{"$f":"IF(BH80=\"\",\"選択番号が未記入です。該当する選択肢をご記入ください。\",\"\")","v":"選択番号が未記入です。該当する選択肢をご記入ください。"}]
[]
[]
[null,null,null,null,null,null,null,null,null,null,null,null,null,null,null,null,null,null,null,null,null,null,null,"② ６年が経過した日における病床の機能の予定",null,null,null,null,null,null,null,null,null,null,null,null,null,null,null,null,null,null,null,null,null,null,null,null,null,"該当番号 ⇒(9)",null,null,null,null,null,null,null,null,null,null,null,null,null,null,null,{"$f":"IF(BO83<>\"\",\"●\",\"\")","v":"●"},{"$f":"IF(BH83=\"\",\"選択番号が未記入です。該当する選択肢をご記入ください。\",\"\")","v":"選択番号が未記入です。該当する選択肢をご記入ください。"}]
[]
[]
[null,null,null,null,null,null,null,null,null,null,null,null,null,null,null,null,null,null,null,null,null,null,null,"③ 2025（平成37）年７月１日時点の機能（任意）",null,null,null,null,null,null,null,null,null,null,null,null,null,null,null,null,null,null,null,null,null,null,null,null,null,"該当番号 ⇒(10)"]
[]
[]
["「６年が経過した日における病床の機能の予定」において、「６．介護保険施設等へ移行予定」を選択した場合、６年後の移行予定先について選択してください。"]
[]
["　１．介護医療院に移行予定　　　２．介護老人保健施設に移行予定　　　３．介護老人福祉施設に移行予定\n\n　４．１～３以外の介護サービスに移行予定",null,null,null,null,null,null,null,null,null,null,null,null,null,null,null,null,null,null,null,null,null,null,null,null,null,null,null,null,null,null,null,null,null,null,null,null,null,null,null,null,null,null,null,null,null,null,null,null,null,null,null,null,null,null,"(11)",null,null,null,null,null,null,null,null,null,{"$f":"IF(BO91<>\"\",\"●\",\"\")","v":""},{"$f":"IF(AND(BH83=6,OR(BH91=\"\",BH91=\"　\")),\"②６年が経過した日における病床機能の予定で「６．介護保健施設へ転換予定」を選択していますが、選択番号が未記入です。該当する選択肢をご記入ください。\",IF(AND(BH83<>6,BH91<>\"\"),\"「６年が経過した日における病床の機能の予定」において、「６．介護保険施設等へ移行予定」が選択されていませんが、左記の６年後の移行予定先が選択されています。ご確認ください。\",\"\"))","v":""}]
[]
[]
[]
[null,null,null,null,"上記項目３において「６年が経過した日における病床の機能の予定」に向けて、それ以前に変更予定がある場合は、下のチェックボックスにチェックを入れて、変更後の機能、その変更予定年月を入力してください。"]
[null,null,null,null,null,null,null,null,null,null,null,null,null,null,null,null,null,null,null,null,null,null,null,null,null,null,null,null,null,null,null,null,null,null,null,null,null,null,"変更予定\n年月"]
[null,"　6年以内に変更予定あり",null,null,null,null,null,null,null,null,null,null,null,null,null,null,null,"⇒",null,null,"変更後の機能 ⇒(12)",null,null,null,null,null,null,null,null,null,null,null,null,null,null,null,null,null,null,null,null,null,null,null,null,"平成",null,null,null,null,null,null,null,null,null,"年",null,null,null,null,null,"月",null,null,null,{"$f":"IF(BO97<>\"\",\"●\",\"\")","v":""},{"$f":"IF(OR($N$97=\"\",$N$97=\"　\"),IF(AND(AH97=\"\",AZ97=\"\",BF97=\"\"),\"\",\"「チェックボックス」が未記入です。すべての欄にご記入ください。\"),IF(AND(AH97<>\"\",AZ97<>\"\",BF97<>\"\"),IF(AND(AZ97=29,BF97<7),\"「変更予定年月」が平成29年７月以前となっています。平成29年７月以降の年月をご記入ください。\",IF(AND(AZ97=35,BF97>7),\"「変更予定年月」が平成35年７月以降となっています。平成35年７月以前の年月をご記入ください。\",\"\")),\"「変更後の機能」あるいは「変更予定年月」に未記入の欄があります。すべての欄にご記入ください。\"))","v":""}]
[]
[]
[]
["４．有床診療所の病床の役割"]
[null,"１．病院からの早期退院患者の在宅・介護施設への受け渡し機能",null,null,null,null,null,null,null,null,null,null,null,null,null,null,null,null,null,null,null,null,null,null,null,null,null,null,null,null,null,null,null,null,null,"２．専門医療を担って病院の役割を補完する機能"]
[null,"３．緊急時に対応する機能",null,null,null,null,null,null,null,null,null,null,null,null,null,null,null,null,null,null,null,null,null,null,null,null,null,null,null,null,null,null,null,null,null,"４．在宅医療の拠点としての機能"]
[null,"５．終末期医療を担う機能",null,null,null,null,null,null,null,null,null,null,null,null,null,null,null,null,null,null,null,null,null,null,null,null,null,null,null,null,null,null,null,null,null,"６．いずれの機能にも該当しない"]
[null,"７．休棟中"]
[]
[null,null,null,null,null,null,null,null,null,null,null,null,null,null,null,null,null,null,null,null,null,null,null,null,null,null,null,null,null,null,null,null,null,null,null,null,null,null,null,null,null,"該当番号を５つまで ⇒(13)",null,null,null,null,null,null,null,null,null,null,null,null,null,null,null,null,null,null,null,null,null,null,null,{"$f":"IF(BO107<>\"\",\"●\",\"\")","v":"●"},{"$f":"IF(COUNTA(AZ107,BD107,BH107,AR107,AV107)=0,\"選択番号が未記入です。該当する選択肢をご記入ください。\",IF(COUNTA(AZ107,BD107,BH107,AR107,AV107)=1,\"\",IF(OR(AND(AR107<>\"\",OR(AR107=AV107,AR107=AZ107,AR107=BD107,AR107=BH107)),AND(AV107<>\"\",OR(AV107=AZ107,AV107=BD107,AV107=BH107)),AND(AZ107<>\"\",OR(AZ107=BD107,AZ107=BH107)),AND(BD107<>\"\",BD107=BH107)),\"同一の選択番号が記入されています。選択番号を１つずつご記入ください。\",IF(OR(AND(AR107=7,OR(AV107<>\"\",AZ107<>\"\",BD107<>\"\",BH107<>\"\")),AND(AV107=7,OR(AR107<>\"\",AZ107<>\"\",BD107<>\"\",BH107<>\"\")),AND(AZ107=7,OR(AR107<>\"\",AV107<>\"\",BD107<>\"\",BH107<>\"\")),AND(BD107=7,OR(AR107<>\"\",AV107<>\"\",AZ107<>\"\",BH107<>\"\")),AND(BH107=7,OR(AR107<>\"\",AV107<>\"\",AZ107<>\"\",BD107<>\"\"))),\"「７．休棟中」と他の選択番号が同時に記入されています。休棟中で選択肢１．～６．のいずれも選べない場合のみ選択肢７．をご記入ください。いずれの機能にも該当しない場合は「６．いずれの機能にも該当しない」のみご記入ください。\",IF(OR(AND(AR107=6,OR(AV107<>\"\",AZ107<>\"\",BD107<>\"\",BH107<>\"\")),AND(AV107=6,OR(AR107<>\"\",AZ107<>\"\",BD107<>\"\",BH107<>\"\")),AND(AZ107=6,OR(AR107<>\"\",AV107<>\"\",BD107<>\"\",BH107<>\"\")),AND(BD107=6,OR(AR107<>\"\",AV107<>\"\",AZ107<>\"\",BH107<>\"\")),AND(BH107=6,OR(AR107<>\"\",AV107<>\"\",AZ107<>\"\",BD107<>\"\"))),\"「６．いずれの機能にも該当しない」と他の選択番号が同時に記入されています。いずれの機能にも該当しない場合のみ選択肢６．をご記入ください。\",\"\")))))","v":"選択番号が未記入です。該当する選択肢をご記入ください。"}]
[]
[]
["５．許可病床数【平成29年７月１日時点】・稼働病床数【平成28年７月１日～平成29年６月30日】"]
[null,"※有床診療所の病床数は、19床以下とされています。"]
[null,null,null,null,null,null,null,null,null,null,null,null,null,null,null,null,null,null,null,null,null,null,null,null,null,null,null,null,null,null,null,null,null,null,null,null,null,null,null,null,"許可病床数",null,null,null,null,null,null,null,"稼働病床数\n《自動計算に\nより算出》",null,null,null,null,null,null,null,"過去１年間に\n一度も入院患者\nを収容しなかった病床数※",null,null,null,null,null,null,null,null,{"$f":"IF(BO112<>\"\",\"●\",\"\")","v":"●"},{"$f":"IF(AND(AP114=0,AP120=0,AP114=0,AP123=0,AP126=0),\"当該病棟の「許可病床数」が全て0床となっています。正しい許可病床数をご記入ください。\",IF(OR(SUM(AP114,AP120)>19,SUM(AP114,AP123,AP126)>19,SUM(AP114,AP123)>19),\"当該病棟の「許可病床数」の合計が19床を超えています。正しい許可病床数をご記入ください。\",IF(AND(AX114=0,AX120=0,AX123=0,AX126=0,AZ280>0),\"項目９．で過去１年間の「在院患者延べ数」が1人以上いますが、「稼働病床数」が0床となっています。正しい病床数をご記入ください。\",IF(AND(OR(AX114>0,AX120>0,AX123>0,AX126>0),AZ280=0),\"項目９．で過去１年間の「在院患者延べ数」が0人となっていますが、「稼働病床数」が1床以上となっています。正しい病床数をご記入ください。\",IF(OR(AP114<0,AX114<0,BF114<0,AP117<0,AP120<0,AX120<0,BF120<0,AP123<0,AX123<0,BF123<0,AP126<0,AX126<0,BF126<0),\"いずれかの「病床数」が0床より小さくなっています。正しい病床数をご記入ください。\",\"\")))))","v":"当該病棟の「許可病床数」が全て0床となっています。正しい許可病床数をご記入ください。"}]
[]
["① 一般病床",null,null,null,null,null,null,null,null,null,null,null,null,null,null,null,null,null,null,null,null,null,null,null,null,null,null,null,null,null,null,null,null,null,null,null,null,null,"(14)",null,null,null,null,null,null,null,null,"床",null,{"$f":"AP114-BF114","v":0},null,null,null,null,null,"床",null,null,null,null,null,null,null,"床",null,{"$f":"IF(BO114<>\"\",\"●\",\"\")","v":"●"},{"$f":"IF(AND(AP114<>\"\",BF114<>\"\"),IF(OR(AP114<AX114,AP114<BF114),\"「許可病床数」よりも「稼働病床数」あるいは「入院患者を収容しなかった病床数」が大きくなっています。稼働病床数等は許可病床数の内数をご記入ください。\",IF(AP114<>AX114+BF114,\"「稼働病床数」と「入院患者を収容しなかった病床数」の合計値が「許可病床数」と一致していません。「稼働病床数」と「入院患者を収容しなかった病床数」の合計値が「許可病床数」と一致するようご記入ください。\",IF(AND(BH62=2,AX114>0),\"項目２．で過去１年間（平成28年７月１日～平成29年６月30日）の稼働病床が「２．無し」となっていますが、稼働病床数が1床以上となっています。正しい稼働病床数の状況をご記入ください。\",IF(AND(BH62=1,AX114=0,AX120=0,AX123=0,AX126=0),\"項目２．で過去１年間（平成28年７月１日～平成29年６月30日）の稼働病床が「１．有り」となっていますが、稼働病床数が0床となっています。正しい稼働病床数の状況をご記入ください。\",\"\")))),\"「病床数」に未記入の欄があります。病床数が0の場合は「0」とご記入ください。\")","v":"「病床数」に未記入の欄があります。病床数が0の場合は「0」とご記入ください。"}]
[]
[null,"上記①のうち、医療法上の経過措置に該当する病床（平成13年3月1日時点で\n既に開設許可を受けている一般病床であって、6.3㎡/床（1人部屋）・\n4.3㎡/床（その他）となっている病床数）"]
[null,null,null,null,null,null,null,null,null,null,null,null,null,null,null,null,null,null,null,null,null,null,null,null,null,null,null,null,null,null,null,null,null,null,null,null,null,null,"(15)",null,null,null,null,null,null,null,null,"床",null,null,null,null,null,null,null,null,null,null,null,null,null,null,null,null,null,{"$f":"IF(BO117<>\"\",\"●\",\"\")","v":"●"},{"$f":"IF(AND(AP117<>\"\"),IF(OR(AP114<AP117),\"①の「病床数」よりも値が大きくなっています。①の内数をご記入ください。\",\"\"),\"「病床数」に未記入の欄があります。病床数が0の場合は「0」とご記入ください。\")","v":"「病床数」に未記入の欄があります。病床数が0の場合は「0」とご記入ください。"}]
[]
[]
["② 療養病床",null,null,null,null,null,null,null,null,null,null,null,null,null,null,null,null,null,null,null,null,null,null,null,null,null,null,null,null,null,null,null,null,null,null,null,null,null,"(16)",null,null,null,null,null,null,null,null,"床",null,{"$f":"AP120-BF120","v":0},null,null,null,null,null,"床",null,null,null,null,null,null,null,"床",null,{"$f":"IF(BO120<>\"\",\"●\",\"\")","v":"●"},{"$f":"IF(AND(AP120<>\"\",BF120<>\"\"),IF(OR(AP120<AX120,AP120<BF120),\"「許可病床数」よりも「稼働病床数」あるいは「入院患者を収容しなかった病床数」が大きくなっています。稼働病床数等は許可病床数の内数をご記入ください。\",IF(AP120<>AX120+BF120,\"「稼働病床数」と「入院患者を収容しなかった病床数」の合計値が「許可病床数」と一致していません。「稼働病床数」と「入院患者を収容しなかった病床数」の合計値が「許可病床数」と一致するようご記入ください。\",IF(AND(BH62=2,AX120>0),\"項目２．で過去１年間（平成28年７月１日～平成29年６月30日）の稼働病床が「２．無し」となっていますが、稼働病床数が1床以上となっています。正しい稼働病床数の状況をご記入ください。\",IF(AND(BH62=1,AX114=0,AX120=0,AX123=0,AX126=0),\"項目２．で過去１年間（平成28年７月１日～平成29年６月30日）の稼働病床が「１．有り」となっていますが、稼働病床数が0床となっています。正しい稼働病床数の状況をご記入ください。\",\"\")))),\"「病床数」に未記入の欄があります。病床数が0の場合は「0」とご記入ください。\")","v":"「病床数」に未記入の欄があります。病床数が0の場合は「0」とご記入ください。"}]
[]
[]
[null,"上記②のうち、医療療養病床",null,null,null,null,null,null,null,null,null,null,null,null,null,null,null,null,null,null,null,null,null,null,null,null,null,null,null,null,null,null,null,null,null,null,null,null,"(17)",null,null,null,null,null,null,null,null,"床",null,{"$f":"AP123-BF123","v":0},null,null,null,null,null,"床",null,null,null,null,null,null,null,"床",null,{"$f":"IF(BO123<>\"\",\"●\",\"\")","v":"●"},{"$f":"IF(OR(AP120<AP123,AX120<AX123,BF120<BF123),\"②の「病床数」よりも値が大きくなっています。②の内数をご記入ください。\",IF(OR($AP$120<>SUM($AP$123,$AP$126),$AX$120<>SUM($AX$123,$AX$126),$BF$120<>SUM($BF$123,$BF$126)),\"内訳の合計値が②の「病床数」と一致していません。②の内数をご記入ください。\",IF(AND(AP123<>\"\",BF123<>\"\"),IF(OR(AP123<AX123,AP123<BF123),\"「許可病床数」よりも「稼働病床数」あるいは「入院患者を収容しなかった病床数」が大きくなっています。稼働病床数等は許可病床数の内数をご記入ください。\",IF(AP123<>AX123+BF123,\"「稼働病床数」と「入院患者を収容しなかった病床数」の合計値が「許可病床数」と一致していません。「稼働病床数」と「入院患者を収容しなかった病床数」の合計値が「許可病床数」と一致するようご記入ください。\",IF(AND(BH62=2,AX123>0),\"項目２．で過去１年間（平成28年７月１日～平成29年６月30日）の稼働病床が「２．無し」となっていますが、稼働病床数が1床以上となっています。正しい稼働病床数の状況をご記入ください。\",IF(AND(BH62=1,AX114=0,AX120=0,AX123=0,AX126=0),\"項目２．で過去１年間（平成28年７月１日～平成29年６月30日）の稼働病床が「１．有り」となっていますが、稼働病床数が0床となっています。正しい稼働病床数の状況をご記入ください。\",\"\")))),\"「病床数」に未記入の欄があります。病床数が0の場合は「0」とご記入ください。\")))","v":"「病床数」に未記入の欄があります。病床数が0の場合は「0」とご記入ください。"}]
[]
[]
[null,"上記②のうち、介護療養病床《自動計算により算出》",null,null,null,null,null,null,null,null,null,null,null,null,null,null,null,null,null,null,null,null,null,null,null,null,null,null,null,null,null,null,null,null,null,null,null,null,"(18)",null,null,{"$f":"AP120-AP123","v":0},null,null,null,null,null,"床",null,{"$f":"AX120-AX123","v":0},null,null,null,null,null,"床",null,{"$f":"BF120-BF123","v":0},null,null,null,null,null,"床",null,{"$f":"IF(BO126<>\"\",\"●\",\"\")","v":""},{"$f":"IF(OR(AP120<AP126,AX120<AX126,BF120<BF126),\"②の「病床数」よりも値が大きくなっています。②の内数をご記入ください。\",IF(OR($AP$120<>SUM($AP$123,$AP$126),$AX$120<>SUM($AX$123,$AX$126),$BF$120<>SUM($BF$123,$BF$126)),\"内訳の合計値が②の「病床数」と一致していません。②の内数をご記入ください。\",IF(AND(AP126<>\"\",BF126<>\"\"),IF(OR(AP126<AX126,AP126<BF126),\"「許可病床数」よりも「稼働病床数」あるいは「入院患者を収容しなかった病床数」が大きくなっています。稼働病床数等は許可病床数の内数をご記入ください。\",IF(AP126<>AX126+BF126,\"「稼働病床数」と「入院患者を収容しなかった病床数」の合計値が「許可病床数」と一致していません。「稼働病床数」と「入院患者を収容しなかった病床数」の合計値が「許可病床数」と一致するようご記入ください。\",IF(AND(BH62=2,AX126>0),\"項目２．で過去１年間（平成28年７月１日～平成29年６月30日）の稼働病床が「２．無し」となっていますが、稼働病床数が1床以上となっています。正しい稼働病床数の状況をご記入ください。\",IF(AND(BH62=1,AX114=0,AX120=0,AX123=0,AX126=0),\"項目２．で過去１年間（平成28年７月１日～平成29年６月30日）の稼働病床が「１．有り」となっていますが、稼働病床数が0床となっています。正しい稼働病床数の状況をご記入ください。\",\"\")))),\"「病床数」に未記入の欄があります。病床数が0の場合は「0」とご記入ください。\")))","v":""}]
[]
["※ 過去１年間に一度も入院患者を収容しなかった病床数は、許可病床数から、過去１年間に最も多く患者を収容した時点で使用した病床数を差し引いて算出してください。"]
["上記において、「稼働病床数」の合計が0床である場合には、その理由をご記入ください。【自由記入欄】"]
[null,null,null,null,null,null,null,null,null,null,null,null,null,null,null,null,null,null,null,null,null,null,null,null,null,null,null,null,null,null,null,null,null,null,null,null,null,null,null,null,null,null,null,null,null,null,null,null,null,null,null,null,null,null,null,null,null,null,null,null,null,null,null,null,null,{"$f":"IF(BO130<>\"\",\"●\",\"\")","v":"●"},{"$f":"IF(AND(AX114=0,AX120=0,AX123=0,AX126=0,OR(A130=\"\",A130=\"　\")),\"当該病棟の「稼動病床数」の合計が０床ですが、その理由が未記入です。理由をご記入ください。\",\"\")","v":"当該病棟の「稼動病床数」の合計が０床ですが、その理由が未記入です。理由をご記入ください。"}]
[]
["６．一般病床・療養病床で算定する入院基本料別の届出病床数【平成29年７月１日時点】",null,null,null,null,null,null,null,null,null,null,null,null,null,null,null,null,null,null,null,null,null,null,null,null,null,null,null,null,null,null,null,null,null,null,null,null,null,null,null,null,null,null,null,null,null,null,null,null,null,null,null,null,null,null,null,null,null,null,null,null,null,null,null,null,{"$f":"IF(BO132<>\"\",\"●\",\"\")","v":""},{"$f":"IF(AND(BF134=\"\",BF137=\"\",BF140=\"\"),\"\",IF(OR(SUM(AP114,AP120)<>SUM(BF134,BF137,BF140,BF143),SUM(AP114,AP123,AP126)<>SUM(BF134,BF137,BF140,BF143)),\"「届出病床数」と届出なしの病床数の合計値が項目５．の「許可病床数」の合計値と一致していません。届出病床数は許可病床数の内数をご記入ください。\",IF(AND(BH59=2,SUM(BF134,BF137)>0),\"項目２．で平成29年７月１日時点での地方厚生（支）局長への入院基本料の届出が「２．無し」となっていますが、入院基本料の届出病床数が1床以上となっています。正しい届出病床数の状況をご記入ください。\",IF(AND(BH59=1,SUM(BF134,BF137)=0),\"項目２．で平成29年７月１日時点での地方厚生（支）局長への入院基本料の届出が「１．有り」となっていますが、入院基本料の届出病床数が0床となっています。正しい届出病床数の状況をご記入ください。\",\"\"))))","v":""}]
[]
["① 有床診療所入院基本料",null,null,null,null,null,null,null,null,null,null,null,null,null,null,null,null,null,null,null,null,null,null,null,null,null,null,null,null,null,null,null,null,null,null,null,null,null,null,null,null,null,null,null,null,null,null,null,null,null,null,null,null,"(19)",null,null,null,null,null,null,null,null,null,"床",null,{"$f":"IF(BO134<>\"\",\"●\",\"\")","v":""},{"$f":"IF(BF134=\"\",\"\",IF(AP114<BF134,\"項目５．の一般病床の「許可病床数」よりも有床診療所入院基本料の「届出病床数」が大きくなっています。届出病床数は許可病床数の内数をご記入ください。\",\"\"))","v":""}]
[]
[]
["② 有床診療所療養病床入院基本料",null,null,null,null,null,null,null,null,null,null,null,null,null,null,null,null,null,null,null,null,null,null,null,null,null,null,null,null,null,null,null,null,null,null,null,null,null,null,null,null,null,null,null,null,null,null,null,null,null,null,null,null,"(20)",null,null,null,null,null,null,null,null,null,"床",null,{"$f":"IF(BO137<>\"\",\"●\",\"\")","v":""},{"$f":"IF(BF137=\"\",\"\",IF(AP123<BF137,\"項目５．の医療療養病床の「許可病床数」よりも有床診療所療養病床入院基本料の「届出病床数」が大きくなっています。届出病床数は許可病床数の内数をご記入ください。\",\"\"))","v":""}]
[]
[]
["③ 介護療養病床における診療所型介護療養施設サービス費等",null,null,null,null,null,null,null,null,null,null,null,null,null,null,null,null,null,null,null,null,null,null,null,null,null,null,null,null,null,null,null,null,null,null,null,null,null,null,null,null,null,null,null,null,null,null,null,null,null,null,null,null,"(21)",null,null,null,null,null,null,null,null,null,"床",null,{"$f":"IF(BO140<>\"\",\"●\",\"\")","v":""},{"$f":"IF(BF140=\"\",\"\",IF(AP126<BF140,\"項目５．の介護療養病床の「許可病床数」よりも診療所型介護療養施設サービス費等の「届出病床数」が大きくなっています。届出病床数は許可病床数の内数をご記入ください。\",\"\"))","v":""}]
[]
[]
["診療報酬上及び介護報酬上の入院料の届出なし《自動計算により算出》",null,null,null,null,null,null,null,null,null,null,null,null,null,null,null,null,null,null,null,null,null,null,null,null,null,null,null,null,null,null,null,null,null,null,null,null,null,null,null,null,null,null,null,null,null,null,null,null,null,null,null,null,"(22)",null,null,null,{"$f":"SUM(AP114,AP120)-SUM(BF134,BF137,BF140)","v":0},null,null,null,null,null,"床"]
[]
[]
["７．職員数【平成29年７月１日時点】"]
[null,"※各部門の職員とは、専ら当該部門で業務を行っている（勤務時間の概ね８割以上を当該部門で勤務する）職員をいいます。複数の部門で業務を行い、当該部門での勤務が通常の勤務時間の８割未満となる場合には、「外来部門の職員数」に計上してください。"]
[null,"※「①施設全体の職員数」と「②入院部門の職員数」、「③手術室の職員数」、「④外来部門の職員数」、「⑤その他の部門の職員数」の合計数が一致するように計上し、各部門間において職員数の重複がないようご記入ください。"]
["① 施設全体の職員数"]
[null,null,null,null,null,null,"常　勤\n従事者の実人数\n",null,null,null,null,null,null,null,null,null,"非常勤\n従事者の常勤換算\n（小数点第２位四捨五入）",null,null,null,null,null,null,null,null,null,null,null,null,null,null,null,null,null,null,null,null,null,null,null,"常　勤\n従事者の実人数\n",null,null,null,null,null,null,null,null,null,"非常勤\n従事者の常勤換算\n（小数点第２位四捨五入）"]
[]
["(23) 医師",null,null,null,null,null,null,null,null,null,null,null,null,null,null,"人",null,null,null,null,null,null,null,null,null,null,null,null,null,"人","(24) 歯科医師",null,null,null,null,null,null,null,null,null,null,null,null,null,null,null,null,null,null,"人",null,null,null,null,null,null,null,null,null,null,null,null,null,"人",null,{"$f":"IF(BO152<>\"\",\"●\",\"\")","v":"●"},{"$f":"IF(AND(H152<>\"\",R152<>\"\",AP152<>\"\",AZ152<>\"\"),IF(OR(H152-INT(H152)>0,AP152-INT(AP152)>0),\"常勤の「職員数」に小数点以下が入力されています。常勤の職員数は整数でご記入ください。なお、２つの部門を兼務している職員については、専ら当該部署で業務を行っている(勤務時間の概ね8割以上を該当部門で勤務する)職員数を計上し、それ以外は外来部門に計上してください。\",\"\"),\"「職員数」に未記入の欄があります。職員数が0の場合は「0」とご記入ください。\")","v":"「職員数」に未記入の欄があります。職員数が0の場合は「0」とご記入ください。"}]
[]
[]
["(25) 看護師",null,null,null,null,null,null,{"$f":"SUM(H176,H197,H216,H235)","v":0},null,null,null,null,null,null,null,"人",null,{"$f":"SUM(R176,R197,R216,R235)","v":0},null,null,null,null,null,null,null,null,null,null,null,"人","(26) 准看護師",null,null,null,null,null,null,null,null,null,null,{"$f":"SUM(AP176,AP197,AP216,AP235)","v":0},null,null,null,null,null,null,null,"人",null,{"$f":"SUM(AZ176,AZ197,AZ216,AZ235)","v":0},null,null,null,null,null,null,null,null,null,null,null,"人",null,{"$f":"IF(BO155<>\"\",\"●\",\"\")","v":""},{"$f":"IF(AND(H155<>\"\",R155<>\"\",AP155<>\"\",AZ155<>\"\"),IF(OR(H155<>SUM(H176,H197,H216,H235),IF(ISEVEN(1+3),(1+3)*0.05,(1+3-1)*0.05)-ABS(R155-SUM(R176,R197,R216,R235))<0,AP155<>SUM(AP176,AP197,AP216,AP235),IF(ISEVEN(1+3),(1+3)*0.05,(1+3-1)*0.05)-ABS(AZ155-SUM(AZ176,AZ197,AZ216,AZ235))<0),\"いずれかの職種において①の「職員数」が内訳の②～⑤の職員数の合計値と一致していません。正しい職員数をご記入ください。\",IF(OR(H155-INT(H155)>0,AP155-INT(AP155)>0),\"常勤の「職員数」に小数点以下が入力されています。常勤の職員数は整数でご記入ください。なお、２つの部門を兼務している職員については、専ら当該部署で業務を行っている(勤務時間の概ね8割以上を該当部門で勤務する)職員数を計上し、それ以外は外来部門に計上してください。\",\"\")),\"「職員数」に未記入の欄があります。職員数が0の場合は「0」とご記入ください。\")","v":""}]
[]
[]
["(27) 看護補助者",null,null,null,null,null,null,{"$f":"SUM(H179,H200,H219,H238)","v":0},null,null,null,null,null,null,null,"人",null,{"$f":"SUM(R179,R200,R219,R238)","v":0},null,null,null,null,null,null,null,null,null,null,null,"人","(28) 助産師",null,null,null,null,null,null,null,null,null,null,{"$f":"SUM(AP179,AP200,AP219,AP238)","v":0},null,null,null,null,null,null,null,"人",null,{"$f":"SUM(AZ179,AZ200,AZ219,AZ238)","v":0},null,null,null,null,null,null,null,null,null,null,null,"人",null,{"$f":"IF(BO158<>\"\",\"●\",\"\")","v":""},{"$f":"IF(AND(H158<>\"\",R158<>\"\",AP158<>\"\",AZ158<>\"\"),IF(OR(H158<>SUM(H179,H200,H219,H238),IF(ISEVEN(1+3),(1+3)*0.05,(1+3-1)*0.05)-ABS(R158-SUM(R179,R200,R219,R238))<0,AP158<>SUM(AP179,AP200,AP219,AP238),IF(ISEVEN(1+3),(1+3)*0.05,(1+3-1)*0.05)-ABS(AZ158-SUM(AZ179,AZ200,AZ219,AZ238))<0),\"いずれかの職種において①の「職員数」が内訳の②～⑤の職員数の合計値と一致していません。正しい職員数をご記入ください。\",IF(OR(H158-INT(H158)>0,AP158-INT(AP158)>0),\"常勤の「職員数」に小数点以下が入力されています。常勤の職員数は整数でご記入ください。なお、２つの部門を兼務している職員については、専ら当該部署で業務を行っている(勤務時間の概ね8割以上を該当部門で勤務する)職員数を計上し、それ以外は外来部門に計上してください。\",\"\")),\"「職員数」に未記入の欄があります。職員数が0の場合は「0」とご記入ください。\")","v":""}]
[]
[]
["(29) 理学療法士",null,null,null,null,null,null,{"$f":"SUM(H182,H203,H222,H241)","v":0},null,null,null,null,null,null,null,"人",null,{"$f":"SUM(R182,R203,R222,R241)","v":0},null,null,null,null,null,null,null,null,null,null,null,"人","(30) 作業療法士",null,null,null,null,null,null,null,null,null,null,{"$f":"SUM(AP182,AP203,AP222,AP241)","v":0},null,null,null,null,null,null,null,"人",null,{"$f":"SUM(AZ182,AZ203,AZ222,AZ241)","v":0},null,null,null,null,null,null,null,null,null,null,null,"人",null,{"$f":"IF(BO161<>\"\",\"●\",\"\")","v":""},{"$f":"IF(AND(H161<>\"\",R161<>\"\",AP161<>\"\",AZ161<>\"\"),IF(OR(H161<>SUM(H182,H203,H222,H241),IF(ISEVEN(1+3),(1+3)*0.05,(1+3-1)*0.05)-ABS(R161-SUM(R182,R203,R222,R241))<0,AP161<>SUM(AP182,AP203,AP222,AP241),IF(ISEVEN(1+3),(1+3)*0.05,(1+3-1)*0.05)-ABS(AZ161-SUM(AZ182,AZ203,AZ222,AZ241))<0),\"いずれかの職種において①の「職員数」が内訳の②～⑤の職員数の合計値と一致していません。正しい職員数をご記入ください。\",IF(OR(H161-INT(H161)>0,AP161-INT(AP161)>0),\"常勤の「職員数」に小数点以下が入力されています。常勤の職員数は整数でご記入ください。なお、２つの部門を兼務している職員については、専ら当該部署で業務を行っている(勤務時間の概ね8割以上を該当部門で勤務する)職員数を計上し、それ以外は外来部門に計上してください。\",\"\")),\"「職員数」に未記入の欄があります。職員数が0の場合は「0」とご記入ください。\")","v":""}]
[]
[]
["(31) 言語聴覚士",null,null,null,null,null,null,{"$f":"SUM(H185,H206,H225,H244)","v":0},null,null,null,null,null,null,null,"人",null,{"$f":"SUM(R185,R206,R225,R244)","v":0},null,null,null,null,null,null,null,null,null,null,null,"人","(32) 薬剤師",null,null,null,null,null,null,null,null,null,null,{"$f":"SUM(AP185,AP206,AP225,AP244)","v":0},null,null,null,null,null,null,null,"人",null,{"$f":"SUM(AZ185,AZ206,AZ225,AZ244)","v":0},null,null,null,null,null,null,null,null,null,null,null,"人",null,{"$f":"IF(BO164<>\"\",\"●\",\"\")","v":""},{"$f":"IF(AND(H164<>\"\",R164<>\"\",AP164<>\"\",AZ164<>\"\"),IF(OR(H164<>SUM(H185,H206,H225,H244),IF(ISEVEN(1+3),(1+3)*0.05,(1+3-1)*0.05)-ABS(R164-SUM(R185,R206,R225,R244))<0,AP164<>SUM(AP185,AP206,AP225,AP244),IF(ISEVEN(1+3),(1+3)*0.05,(1+3-1)*0.05)-ABS(AZ164-SUM(AZ185,AZ206,AZ225,AZ244))<0),\"いずれかの職種において①の「職員数」が内訳の②～⑤の職員数の合計値と一致していません。正しい職員数をご記入ください。\",IF(OR(H164-INT(H164)>0,AP164-INT(AP164)>0),\"常勤の「職員数」に小数点以下が入力されています。常勤の職員数は整数でご記入ください。なお、２つの部門を兼務している職員については、専ら当該部署で業務を行っている(勤務時間の概ね8割以上を該当部門で勤務する)職員数を計上し、それ以外は外来部門に計上してください。\",\"\")),\"「職員数」に未記入の欄があります。職員数が0の場合は「0」とご記入ください。\")","v":""}]
[]
[]
["(33) 診療放射線技師",null,null,null,null,null,null,null,null,null,null,null,null,null,null,"人",null,null,null,null,null,null,null,null,null,null,null,null,null,"人","(34) 臨床検査技師",null,null,null,null,null,null,null,null,null,null,null,null,null,null,null,null,null,null,"人",null,null,null,null,null,null,null,null,null,null,null,null,null,"人",null,{"$f":"IF(BO167<>\"\",\"●\",\"\")","v":"●"},{"$f":"IF(AND(H167<>\"\",R167<>\"\",AP167<>\"\",AZ167<>\"\"),IF(OR(H167-INT(H167)>0,AP167-INT(AP167)>0),\"常勤の「職員数」に小数点以下が入力されています。常勤の職員数は整数でご記入ください。なお、２つの部門を兼務している職員については、専ら当該部署で業務を行っている(勤務時間の概ね8割以上を該当部門で勤務する)職員数を計上し、それ以外は外来部門に計上してください。\",\"\"),\"「職員数」に未記入の欄があります。職員数が0の場合は「0」とご記入ください。\")","v":"「職員数」に未記入の欄があります。職員数が0の場合は「0」とご記入ください。"}]
[]
[]
["(35) 臨床工学技士",null,null,null,null,null,null,{"$f":"SUM(H188,H209,H228,H247)","v":0},null,null,null,null,null,null,null,"人",null,{"$f":"SUM(R188,R209,R228,R247)","v":0},null,null,null,null,null,null,null,null,null,null,null,"人","(36) 管理栄養士",null,null,null,null,null,null,null,null,null,null,{"$f":"SUM(AP188,AP209,AP228,AP247)","v":0},null,null,null,null,null,null,null,"人",null,{"$f":"SUM(AZ188,AZ209,AZ228,AZ247)","v":0},null,null,null,null,null,null,null,null,null,null,null,"人",null,{"$f":"IF(BO170<>\"\",\"●\",\"\")","v":""},{"$f":"IF(AND(H170<>\"\",R170<>\"\",AP170<>\"\",AZ170<>\"\"),IF(OR(H170<>SUM(H188,H209,H228,H247),IF(ISEVEN(1+3),(1+3)*0.05,(1+3-1)*0.05)-ABS(R170-SUM(R188,R209,R228,R247))<0,AP170<>SUM(AP188,AP209,AP228,AP247),IF(ISEVEN(1+3),(1+3)*0.05,(1+3-1)*0.05)-ABS(AZ170-SUM(AZ188,AZ209,AZ228,AZ247))<0),\"いずれかの職種において①の「職員数」が内訳の②～⑤の職員数の合計値と一致していません。正しい職員数をご記入ください。\",IF(OR(H170-INT(H170)>0,AP170-INT(AP170)>0),\"常勤の「職員数」に小数点以下が入力されています。常勤の職員数は整数でご記入ください。なお、２つの部門を兼務している職員については、専ら当該部署で業務を行っている(勤務時間の概ね8割以上を該当部門で勤務する)職員数を計上し、それ以外は外来部門に計上してください。\",\"\")),\"「職員数」に未記入の欄があります。職員数が0の場合は「0」とご記入ください。\")","v":""}]
[]
[]
["② 入院部門の職員数"]
[null,null,null,null,null,null,"常　勤\n従事者の実人数\n",null,null,null,null,null,null,null,null,null,"非常勤\n従事者の常勤換算\n（小数点第２位四捨五入）",null,null,null,null,null,null,null,null,null,null,null,null,null,null,null,null,null,null,null,null,null,null,null,"常　勤\n従事者の実人数\n",null,null,null,null,null,null,null,null,null,"非常勤\n従事者の常勤換算\n（小数点第２位四捨五入）"]
[]
["(37) 看護師",null,null,null,null,null,null,null,null,null,null,null,null,null,null,"人",null,null,null,null,null,null,null,null,null,null,null,null,null,"人","(38) 准看護師",null,null,null,null,null,null,null,null,null,null,null,null,null,null,null,null,null,null,"人",null,null,null,null,null,null,null,null,null,null,null,null,null,"人",null,{"$f":"IF(BO176<>\"\",\"●\",\"\")","v":"●"},{"$f":"IF(AND($BH$59=2,$BH$62=2),\"\",IF(AND(H176<>\"\",R176<>\"\",AP176<>\"\",AZ176<>\"\"),IF(OR(H176-INT(H176)>0,AP176-INT(AP176)>0),\"常勤の「職員数」に小数点以下が入力されています。常勤の職員数は整数でご記入ください。なお、２つの部門を兼務している職員については、専ら当該部署で業務を行っている(勤務時間の概ね8割以上を該当部門で勤務する)職員数を計上し、それ以外は外来部門に計上してください。\",\"\"),\"「職員数」に未記入の欄があります。職員数が0の場合は「0」とご記入ください。\"))","v":"「職員数」に未記入の欄があります。職員数が0の場合は「0」とご記入ください。"}]
[]
[]
["(39) 看護補助者",null,null,null,null,null,null,null,null,null,null,null,null,null,null,"人",null,null,null,null,null,null,null,null,null,null,null,null,null,"人","(40) 助産師",null,null,null,null,null,null,null,null,null,null,null,null,null,null,null,null,null,null,"人",null,null,null,null,null,null,null,null,null,null,null,null,null,"人",null,{"$f":"IF(BO179<>\"\",\"●\",\"\")","v":"●"},{"$f":"IF(AND($BH$59=2,$BH$62=2),\"\",IF(AND(H179<>\"\",R179<>\"\",AP179<>\"\",AZ179<>\"\"),IF(OR(H179-INT(H179)>0,AP179-INT(AP179)>0),\"常勤の「職員数」に小数点以下が入力されています。常勤の職員数は整数でご記入ください。なお、２つの部門を兼務している職員については、専ら当該部署で業務を行っている(勤務時間の概ね8割以上を該当部門で勤務する)職員数を計上し、それ以外は外来部門に計上してください。\",\"\"),\"「職員数」に未記入の欄があります。職員数が0の場合は「0」とご記入ください。\"))","v":"「職員数」に未記入の欄があります。職員数が0の場合は「0」とご記入ください。"}]
[]
[]
["(41) 理学療法士",null,null,null,null,null,null,null,null,null,null,null,null,null,null,"人",null,null,null,null,null,null,null,null,null,null,null,null,null,"人","(42) 作業療法士",null,null,null,null,null,null,null,null,null,null,null,null,null,null,null,null,null,null,"人",null,null,null,null,null,null,null,null,null,null,null,null,null,"人",null,{"$f":"IF(BO182<>\"\",\"●\",\"\")","v":"●"},{"$f":"IF(AND($BH$59=2,$BH$62=2),\"\",IF(AND(H182<>\"\",R182<>\"\",AP182<>\"\",AZ182<>\"\"),IF(OR(H182-INT(H182)>0,AP182-INT(AP182)>0),\"常勤の「職員数」に小数点以下が入力されています。常勤の職員数は整数でご記入ください。なお、２つの部門を兼務している職員については、専ら当該部署で業務を行っている(勤務時間の概ね8割以上を該当部門で勤務する)職員数を計上し、それ以外は外来部門に計上してください。\",\"\"),\"「職員数」に未記入の欄があります。職員数が0の場合は「0」とご記入ください。\"))","v":"「職員数」に未記入の欄があります。職員数が0の場合は「0」とご記入ください。"}]
[]
[]
["(43) 言語聴覚士",null,null,null,null,null,null,null,null,null,null,null,null,null,null,"人",null,null,null,null,null,null,null,null,null,null,null,null,null,"人","(44) 薬剤師",null,null,null,null,null,null,null,null,null,null,null,null,null,null,null,null,null,null,"人",null,null,null,null,null,null,null,null,null,null,null,null,null,"人",null,{"$f":"IF(BO185<>\"\",\"●\",\"\")","v":"●"},{"$f":"IF(AND($BH$59=2,$BH$62=2),\"\",IF(AND(H185<>\"\",R185<>\"\",AP185<>\"\",AZ185<>\"\"),IF(OR(H185-INT(H185)>0,AP185-INT(AP185)>0),\"常勤の「職員数」に小数点以下が入力されています。常勤の職員数は整数でご記入ください。なお、２つの部門を兼務している職員については、専ら当該部署で業務を行っている(勤務時間の概ね8割以上を該当部門で勤務する)職員数を計上し、それ以外は外来部門に計上してください。\",\"\"),\"「職員数」に未記入の欄があります。職員数が0の場合は「0」とご記入ください。\"))","v":"「職員数」に未記入の欄があります。職員数が0の場合は「0」とご記入ください。"}]
[]
[]
["(45) 臨床工学技士",null,null,null,null,null,null,null,null,null,null,null,null,null,null,"人",null,null,null,null,null,null,null,null,null,null,null,null,null,"人","(46) 管理栄養士",null,null,null,null,null,null,null,null,null,null,null,null,null,null,null,null,null,null,"人",null,null,null,null,null,null,null,null,null,null,null,null,null,"人",null,{"$f":"IF(BO188<>\"\",\"●\",\"\")","v":"●"},{"$f":"IF(AND($BH$59=2,$BH$62=2),\"\",IF(AND(H188<>\"\",R188<>\"\",AP188<>\"\",AZ188<>\"\"),IF(OR(H188-INT(H188)>0,AP188-INT(AP188)>0),\"常勤の「職員数」に小数点以下が入力されています。常勤の職員数は整数でご記入ください。なお、２つの部門を兼務している職員については、専ら当該部署で業務を行っている(勤務時間の概ね8割以上を該当部門で勤務する)職員数を計上し、それ以外は外来部門に計上してください。\",\"\"),\"「職員数」に未記入の欄があります。職員数が0の場合は「0」とご記入ください。\"))","v":"「職員数」に未記入の欄があります。職員数が0の場合は「0」とご記入ください。"}]
[]
["平成29年７月１日時点で入院部門に入院患者がいない場合、あるいは入院部門での勤務が通常の勤務時間の８割未満\nとなる看護職員のみの場合等、看護職員が０人となる場合には、右の項目にチェックを入れてください。"]
[null,null,null,null,null,null,null,null,null,null,null,null,null,null,null,null,null,null,null,null,null,null,null,null,null,null,null,null,null,null,null,null,null,null,null,null,null,null,null,null,null,null,null,null,null,null,null,null,null,null,null,null,null,null,null,"(47)",null,null,null,null,null,null,null,null,null,{"$f":"IF(BO191<>\"\",\"●\",\"\")","v":"●"},{"$f":"IF(AND($BH$59=2,$BH$62=2),\"\",IF(AND(SUM(H176,R176,AP176,AZ176,H179,R179,AP179,AZ179)=0,OR(BH191=\"\",BH191=\"　\")),\"看護職員配置が０人であるものの、「看護職員が０人となる場合にチェックを入れる項目」が未記入です。平成29年７月１日時点で入院部門に入院患者がいない場合、あるいは入院部門での勤務が通常の勤務時間の８割未満となる看護職員のみの場合等に該当する場合には、当該項目にチェックを入れてください。\",IF(AND(SUM(H176,R176,AP176,AZ176,H179,R179,AP179,AZ179)>0,BH191=\"レ\"),\"看護職員配置が1人以上いますが、当該項目にチェックが記入されています。看護職員配置が0人である場合のみ、当該項目にチェックを入れてください。\",\"\")))","v":"看護職員配置が０人であるものの、「看護職員が０人となる場合にチェックを入れる項目」が未記入です。平成29年７月１日時点で入院部門に入院患者がいない場合、あるいは入院部門での勤務が通常の勤務時間の８割未満となる看護職員のみの場合等に該当する場合には、当該項目にチェックを入れてください。"}]
[]
[]
["③ 手術室の職員数"]
[null,null,null,null,null,null,"常　勤\n従事者の実人数\n",null,null,null,null,null,null,null,null,null,"非常勤\n従事者の常勤換算\n（小数点第２位四捨五入）",null,null,null,null,null,null,null,null,null,null,null,null,null,null,null,null,null,null,null,null,null,null,null,"常　勤\n従事者の実人数\n",null,null,null,null,null,null,null,null,null,"非常勤\n従事者の常勤換算\n（小数点第２位四捨五入）"]
[]
["(48) 看護師",null,null,null,null,null,null,null,null,null,null,null,null,null,null,"人",null,null,null,null,null,null,null,null,null,null,null,null,null,"人","(49) 准看護師",null,null,null,null,null,null,null,null,null,null,null,null,null,null,null,null,null,null,"人",null,null,null,null,null,null,null,null,null,null,null,null,null,"人",null,{"$f":"IF(BO197<>\"\",\"●\",\"\")","v":"●"},{"$f":"IF(AND(H197<>\"\",R197<>\"\",AP197<>\"\",AZ197<>\"\"),IF(OR(H197-INT(H197)>0,AP197-INT(AP197)>0),\"常勤の「職員数」に小数点以下が入力されています。常勤の職員数は整数でご記入ください。なお、２つの部門を兼務している職員については、専ら当該部署で業務を行っている(勤務時間の概ね8割以上を該当部門で勤務する)職員数を計上し、それ以外は外来部門に計上してください。\",\"\"),\"「職員数」に未記入の欄があります。職員数が0の場合は「0」とご記入ください。\")","v":"「職員数」に未記入の欄があります。職員数が0の場合は「0」とご記入ください。"}]
[]
[]
["(50) 看護補助者",null,null,null,null,null,null,null,null,null,null,null,null,null,null,"人",null,null,null,null,null,null,null,null,null,null,null,null,null,"人","(51) 助産師",null,null,null,null,null,null,null,null,null,null,null,null,null,null,null,null,null,null,"人",null,null,null,null,null,null,null,null,null,null,null,null,null,"人",null,{"$f":"IF(BO200<>\"\",\"●\",\"\")","v":"●"},{"$f":"IF(AND(H200<>\"\",R200<>\"\",AP200<>\"\",AZ200<>\"\"),IF(OR(H200-INT(H200)>0,AP200-INT(AP200)>0),\"常勤の「職員数」に小数点以下が入力されています。常勤の職員数は整数でご記入ください。なお、２つの部門を兼務している職員については、専ら当該部署で業務を行っている(勤務時間の概ね8割以上を該当部門で勤務する)職員数を計上し、それ以外は外来部門に計上してください。\",\"\"),\"「職員数」に未記入の欄があります。職員数が0の場合は「0」とご記入ください。\")","v":"「職員数」に未記入の欄があります。職員数が0の場合は「0」とご記入ください。"}]
[]
[]
["(52) 理学療法士",null,null,null,null,null,null,null,null,null,null,null,null,null,null,"人",null,null,null,null,null,null,null,null,null,null,null,null,null,"人","(53) 作業療法士",null,null,null,null,null,null,null,null,null,null,null,null,null,null,null,null,null,null,"人",null,null,null,null,null,null,null,null,null,null,null,null,null,"人",null,{"$f":"IF(BO203<>\"\",\"●\",\"\")","v":"●"},{"$f":"IF(AND(H203<>\"\",R203<>\"\",AP203<>\"\",AZ203<>\"\"),IF(OR(H203-INT(H203)>0,AP203-INT(AP203)>0),\"常勤の「職員数」に小数点以下が入力されています。常勤の職員数は整数でご記入ください。なお、２つの部門を兼務している職員については、専ら当該部署で業務を行っている(勤務時間の概ね8割以上を該当部門で勤務する)職員数を計上し、それ以外は外来部門に計上してください。\",\"\"),\"「職員数」に未記入の欄があります。職員数が0の場合は「0」とご記入ください。\")","v":"「職員数」に未記入の欄があります。職員数が0の場合は「0」とご記入ください。"}]
[]
[]
["(54) 言語聴覚士",null,null,null,null,null,null,null,null,null,null,null,null,null,null,"人",null,null,null,null,null,null,null,null,null,null,null,null,null,"人","(55) 薬剤師",null,null,null,null,null,null,null,null,null,null,null,null,null,null,null,null,null,null,"人",null,null,null,null,null,null,null,null,null,null,null,null,null,"人",null,{"$f":"IF(BO206<>\"\",\"●\",\"\")","v":"●"},{"$f":"IF(AND(H206<>\"\",R206<>\"\",AP206<>\"\",AZ206<>\"\"),IF(OR(H206-INT(H206)>0,AP206-INT(AP206)>0),\"常勤の「職員数」に小数点以下が入力されています。常勤の職員数は整数でご記入ください。なお、２つの部門を兼務している職員については、専ら当該部署で業務を行っている(勤務時間の概ね8割以上を該当部門で勤務する)職員数を計上し、それ以外は外来部門に計上してください。\",\"\"),\"「職員数」に未記入の欄があります。職員数が0の場合は「0」とご記入ください。\")","v":"「職員数」に未記入の欄があります。職員数が0の場合は「0」とご記入ください。"}]
[]
[]
["(56) 臨床工学技士",null,null,null,null,null,null,null,null,null,null,null,null,null,null,"人",null,null,null,null,null,null,null,null,null,null,null,null,null,"人","(57) 管理栄養士",null,null,null,null,null,null,null,null,null,null,null,null,null,null,null,null,null,null,"人",null,null,null,null,null,null,null,null,null,null,null,null,null,"人",null,{"$f":"IF(BO209<>\"\",\"●\",\"\")","v":"●"},{"$f":"IF(AND(H209<>\"\",R209<>\"\",AP209<>\"\",AZ209<>\"\"),IF(OR(H209-INT(H209)>0,AP209-INT(AP209)>0),\"常勤の「職員数」に小数点以下が入力されています。常勤の職員数は整数でご記入ください。なお、２つの部門を兼務している職員については、専ら当該部署で業務を行っている(勤務時間の概ね8割以上を該当部門で勤務する)職員数を計上し、それ以外は外来部門に計上してください。\",\"\"),\"「職員数」に未記入の欄があります。職員数が0の場合は「0」とご記入ください。\")","v":"「職員数」に未記入の欄があります。職員数が0の場合は「0」とご記入ください。"}]
[]
[]
["④ 外来部門の職員数"]
[null,"※複数の部門で業務を行い、各部門での勤務が通常の勤務時間の８割未満となる場合には、外来部門の職員として取り扱うものとします。複数部門における勤務時間数により職員数を按分していただく必要はありません。また、ある部門における職員数が「０人」となってしまっても構いません。"]
[null,null,null,null,null,null,"常　勤\n従事者の実人数\n",null,null,null,null,null,null,null,null,null,"非常勤\n従事者の常勤換算\n（小数点第２位四捨五入）",null,null,null,null,null,null,null,null,null,null,null,null,null,null,null,null,null,null,null,null,null,null,null,"常　勤\n従事者の実人数\n",null,null,null,null,null,null,null,null,null,"非常勤\n従事者の常勤換算\n（小数点第２位四捨五入）"]
[]
["(58) 看護師",null,null,null,null,null,null,null,null,null,null,null,null,null,null,"人",null,null,null,null,null,null,null,null,null,null,null,null,null,"人","(59) 准看護師",null,null,null,null,null,null,null,null,null,null,null,null,null,null,null,null,null,null,"人",null,null,null,null,null,null,null,null,null,null,null,null,null,"人",null,{"$f":"IF(BO216<>\"\",\"●\",\"\")","v":"●"},{"$f":"IF(AND(H216<>\"\",R216<>\"\",AP216<>\"\",AZ216<>\"\"),IF(OR(H216-INT(H216)>0,AP216-INT(AP216)>0),\"常勤の「職員数」に小数点以下が入力されています。常勤の職員数は整数でご記入ください。なお、２つの部門を兼務している職員については、専ら当該部署で業務を行っている(勤務時間の概ね8割以上を該当部門で勤務する)職員数を計上し、それ以外は外来部門に計上してください。\",\"\"),\"「職員数」に未記入の欄があります。職員数が0の場合は「0」とご記入ください。\")","v":"「職員数」に未記入の欄があります。職員数が0の場合は「0」とご記入ください。"}]
[]
[]
["(60) 看護補助者",null,null,null,null,null,null,null,null,null,null,null,null,null,null,"人",null,null,null,null,null,null,null,null,null,null,null,null,null,"人","(61) 助産師",null,null,null,null,null,null,null,null,null,null,null,null,null,null,null,null,null,null,"人",null,null,null,null,null,null,null,null,null,null,null,null,null,"人",null,{"$f":"IF(BO219<>\"\",\"●\",\"\")","v":"●"},{"$f":"IF(AND(H219<>\"\",R219<>\"\",AP219<>\"\",AZ219<>\"\"),IF(OR(H219-INT(H219)>0,AP219-INT(AP219)>0),\"常勤の「職員数」に小数点以下が入力されています。常勤の職員数は整数でご記入ください。なお、２つの部門を兼務している職員については、専ら当該部署で業務を行っている(勤務時間の概ね8割以上を該当部門で勤務する)職員数を計上し、それ以外は外来部門に計上してください。\",\"\"),\"「職員数」に未記入の欄があります。職員数が0の場合は「0」とご記入ください。\")","v":"「職員数」に未記入の欄があります。職員数が0の場合は「0」とご記入ください。"}]
[]
[]
["(62) 理学療法士",null,null,null,null,null,null,null,null,null,null,null,null,null,null,"人",null,null,null,null,null,null,null,null,null,null,null,null,null,"人","(63) 作業療法士",null,null,null,null,null,null,null,null,null,null,null,null,null,null,null,null,null,null,"人",null,null,null,null,null,null,null,null,null,null,null,null,null,"人",null,{"$f":"IF(BO222<>\"\",\"●\",\"\")","v":"●"},{"$f":"IF(AND(H222<>\"\",R222<>\"\",AP222<>\"\",AZ222<>\"\"),IF(OR(H222-INT(H222)>0,AP222-INT(AP222)>0),\"常勤の「職員数」に小数点以下が入力されています。常勤の職員数は整数でご記入ください。なお、２つの部門を兼務している職員については、専ら当該部署で業務を行っている(勤務時間の概ね8割以上を該当部門で勤務する)職員数を計上し、それ以外は外来部門に計上してください。\",\"\"),\"「職員数」に未記入の欄があります。職員数が0の場合は「0」とご記入ください。\")","v":"「職員数」に未記入の欄があります。職員数が0の場合は「0」とご記入ください。"}]
[]
[]
["(64) 言語聴覚士",null,null,null,null,null,null,null,null,null,null,null,null,null,null,"人",null,null,null,null,null,null,null,null,null,null,null,null,null,"人","(65) 薬剤師",null,null,null,null,null,null,null,null,null,null,null,null,null,null,null,null,null,null,"人",null,null,null,null,null,null,null,null,null,null,null,null,null,"人",null,{"$f":"IF(BO225<>\"\",\"●\",\"\")","v":"●"},{"$f":"IF(AND(H225<>\"\",R225<>\"\",AP225<>\"\",AZ225<>\"\"),IF(OR(H225-INT(H225)>0,AP225-INT(AP225)>0),\"常勤の「職員数」に小数点以下が入力されています。常勤の職員数は整数でご記入ください。なお、２つの部門を兼務している職員については、専ら当該部署で業務を行っている(勤務時間の概ね8割以上を該当部門で勤務する)職員数を計上し、それ以外は外来部門に計上してください。\",\"\"),\"「職員数」に未記入の欄があります。職員数が0の場合は「0」とご記入ください。\")","v":"「職員数」に未記入の欄があります。職員数が0の場合は「0」とご記入ください。"}]
[]
[]
["(66) 臨床工学技士",null,null,null,null,null,null,null,null,null,null,null,null,null,null,"人",null,null,null,null,null,null,null,null,null,null,null,null,null,"人","(67) 管理栄養士",null,null,null,null,null,null,null,null,null,null,null,null,null,null,null,null,null,null,"人",null,null,null,null,null,null,null,null,null,null,null,null,null,"人",null,{"$f":"IF(BO228<>\"\",\"●\",\"\")","v":"●"},{"$f":"IF(AND(H228<>\"\",R228<>\"\",AP228<>\"\",AZ228<>\"\"),IF(OR(H228-INT(H228)>0,AP228-INT(AP228)>0),\"常勤の「職員数」に小数点以下が入力されています。常勤の職員数は整数でご記入ください。なお、２つの部門を兼務している職員については、専ら当該部署で業務を行っている(勤務時間の概ね8割以上を該当部門で勤務する)職員数を計上し、それ以外は外来部門に計上してください。\",\"\"),\"「職員数」に未記入の欄があります。職員数が0の場合は「0」とご記入ください。\")","v":"「職員数」に未記入の欄があります。職員数が0の場合は「0」とご記入ください。"}]
[]
[]
["⑤ その他の部門の職員数（透析室、外来化学療法室、放射線照射外来室、退院調整部門、訪問看護部門、医事部門等）"]
[null,"※透析室、外来化学療法室、放射線照射外来室、退院調整部門、薬剤部門、リハビリ部門、訪問看護部門、医事部門、管理部門、健診（人間ドック）部門等"]
[null,null,null,null,null,null,"常　勤\n従事者の実人数\n",null,null,null,null,null,null,null,null,null,"非常勤\n従事者の常勤換算\n（小数点第２位四捨五入）",null,null,null,null,null,null,null,null,null,null,null,null,null,null,null,null,null,null,null,null,null,null,null,"常　勤\n従事者の実人数\n",null,null,null,null,null,null,null,null,null,"非常勤\n従事者の常勤換算\n（小数点第２位四捨五入）"]
[]
["(68) 看護師",null,null,null,null,null,null,null,null,null,null,null,null,null,null,"人",null,null,null,null,null,null,null,null,null,null,null,null,null,"人","(69) 准看護師",null,null,null,null,null,null,null,null,null,null,null,null,null,null,null,null,null,null,"人",null,null,null,null,null,null,null,null,null,null,null,null,null,"人",null,{"$f":"IF(BO235<>\"\",\"●\",\"\")","v":"●"},{"$f":"IF(AND(H235<>\"\",R235<>\"\",AP235<>\"\",AZ235<>\"\"),IF(OR(H235-INT(H235)>0,AP235-INT(AP235)>0),\"常勤の「職員数」に小数点以下が入力されています。常勤の職員数は整数でご記入ください。なお、２つの部門を兼務している職員については、専ら当該部署で業務を行っている(勤務時間の概ね8割以上を該当部門で勤務する)職員数を計上し、それ以外は外来部門に計上してください。\",\"\"),\"「職員数」に未記入の欄があります。職員数が0の場合は「0」とご記入ください。\")","v":"「職員数」に未記入の欄があります。職員数が0の場合は「0」とご記入ください。"}]
[]
[]
["(70) 看護補助者",null,null,null,null,null,null,null,null,null,null,null,null,null,null,"人",null,null,null,null,null,null,null,null,null,null,null,null,null,"人","(71) 助産師",null,null,null,null,null,null,null,null,null,null,null,null,null,null,null,null,null,null,"人",null,null,null,null,null,null,null,null,null,null,null,null,null,"人",null,{"$f":"IF(BO238<>\"\",\"●\",\"\")","v":"●"},{"$f":"IF(AND(H238<>\"\",R238<>\"\",AP238<>\"\",AZ238<>\"\"),IF(OR(H238-INT(H238)>0,AP238-INT(AP238)>0),\"常勤の「職員数」に小数点以下が入力されています。常勤の職員数は整数でご記入ください。なお、２つの部門を兼務している職員については、専ら当該部署で業務を行っている(勤務時間の概ね8割以上を該当部門で勤務する)職員数を計上し、それ以外は外来部門に計上してください。\",\"\"),\"「職員数」に未記入の欄があります。職員数が0の場合は「0」とご記入ください。\")","v":"「職員数」に未記入の欄があります。職員数が0の場合は「0」とご記入ください。"}]
[]
[]
["(72) 理学療法士",null,null,null,null,null,null,null,null,null,null,null,null,null,null,"人",null,null,null,null,null,null,null,null,null,null,null,null,null,"人","(73) 作業療法士",null,null,null,null,null,null,null,null,null,null,null,null,null,null,null,null,null,null,"人",null,null,null,null,null,null,null,null,null,null,null,null,null,"人",null,{"$f":"IF(BO241<>\"\",\"●\",\"\")","v":"●"},{"$f":"IF(AND(H241<>\"\",R241<>\"\",AP241<>\"\",AZ241<>\"\"),IF(OR(H241-INT(H241)>0,AP241-INT(AP241)>0),\"常勤の「職員数」に小数点以下が入力されています。常勤の職員数は整数でご記入ください。なお、２つの部門を兼務している職員については、専ら当該部署で業務を行っている(勤務時間の概ね8割以上を該当部門で勤務する)職員数を計上し、それ以外は外来部門に計上してください。\",\"\"),\"「職員数」に未記入の欄があります。職員数が0の場合は「0」とご記入ください。\")","v":"「職員数」に未記入の欄があります。職員数が0の場合は「0」とご記入ください。"}]
[]
[]
["(74) 言語聴覚士",null,null,null,null,null,null,null,null,null,null,null,null,null,null,"人",null,null,null,null,null,null,null,null,null,null,null,null,null,"人","(75) 薬剤師",null,null,null,null,null,null,null,null,null,null,null,null,null,null,null,null,null,null,"人",null,null,null,null,null,null,null,null,null,null,null,null,null,"人",null,{"$f":"IF(BO244<>\"\",\"●\",\"\")","v":"●"},{"$f":"IF(AND(H244<>\"\",R244<>\"\",AP244<>\"\",AZ244<>\"\"),IF(OR(H244-INT(H244)>0,AP244-INT(AP244)>0),\"常勤の「職員数」に小数点以下が入力されています。常勤の職員数は整数でご記入ください。なお、２つの部門を兼務している職員については、専ら当該部署で業務を行っている(勤務時間の概ね8割以上を該当部門で勤務する)職員数を計上し、それ以外は外来部門に計上してください。\",\"\"),\"「職員数」に未記入の欄があります。職員数が0の場合は「0」とご記入ください。\")","v":"「職員数」に未記入の欄があります。職員数が0の場合は「0」とご記入ください。"}]
[]
[]
["(76) 臨床工学技士",null,null,null,null,null,null,null,null,null,null,null,null,null,null,"人",null,null,null,null,null,null,null,null,null,null,null,null,null,"人","(77) 管理栄養士",null,null,null,null,null,null,null,null,null,null,null,null,null,null,null,null,null,null,"人",null,null,null,null,null,null,null,null,null,null,null,null,null,"人",null,{"$f":"IF(BO247<>\"\",\"●\",\"\")","v":"●"},{"$f":"IF(AND(H247<>\"\",R247<>\"\",AP247<>\"\",AZ247<>\"\"),IF(OR(H247-INT(H247)>0,AP247-INT(AP247)>0),\"常勤の「職員数」に小数点以下が入力されています。常勤の職員数は整数でご記入ください。なお、２つの部門を兼務している職員については、専ら当該部署で業務を行っている(勤務時間の概ね8割以上を該当部門で勤務する)職員数を計上し、それ以外は外来部門に計上してください。\",\"\"),\"「職員数」に未記入の欄があります。職員数が0の場合は「0」とご記入ください。\")","v":"「職員数」に未記入の欄があります。職員数が0の場合は「0」とご記入ください。"}]
[]
[]
["８．主とする診療科【平成29年７月１日時点】　※診療科が貴院の診療科名と一致しない場合には、最も近い診療科をご選択ください。"]
[null,"※該当する診療科がない場合は、読み替えが可能な最も近い診療科をご選択ください。なお、読み替えが困難な場合は、内科または外科をご選択ください。"]
["　１．内科",null,null,null,null,null,null,null,null,null,null,null,null,"２．呼吸器内科",null,null,null,null,null,null,null,null,null,null,null,null,null,null,null,null,"３．循環器内科",null,null,null,null,null,null,null,null,null,null,null,null,null,null,null,null,"４．消化器内科（胃腸内科）"]
["　５．腎臓内科",null,null,null,null,null,null,null,null,null,null,null,null,"６．神経内科",null,null,null,null,null,null,null,null,null,null,null,null,null,null,null,null,"７．糖尿病内科（代謝内科）",null,null,null,null,null,null,null,null,null,null,null,null,null,null,null,null,"８．血液内科"]
["　９．皮膚科",null,null,null,null,null,null,null,null,null,null,null,null,"10．アレルギー科",null,null,null,null,null,null,null,null,null,null,null,null,null,null,null,null,"11．リウマチ科",null,null,null,null,null,null,null,null,null,null,null,null,null,null,null,null,"12．感染症内科"]
["　13．小児科",null,null,null,null,null,null,null,null,null,null,null,null,"14．精神科",null,null,null,null,null,null,null,null,null,null,null,null,null,null,null,null,"15．心療内科",null,null,null,null,null,null,null,null,null,null,null,null,null,null,null,null,"16．外科"]
["　17．呼吸器外科",null,null,null,null,null,null,null,null,null,null,null,null,"18．心臓血管外科",null,null,null,null,null,null,null,null,null,null,null,null,null,null,null,null,"19．乳腺外科",null,null,null,null,null,null,null,null,null,null,null,null,null,null,null,null,"20．気管食道外科"]
["　21．消化器外科（胃腸外科）",null,null,null,null,null,null,null,null,null,null,null,null,"22．泌尿器科",null,null,null,null,null,null,null,null,null,null,null,null,null,null,null,null,"23．肛門外科",null,null,null,null,null,null,null,null,null,null,null,null,null,null,null,null,"24．脳神経外科"]
["　25．整形外科",null,null,null,null,null,null,null,null,null,null,null,null,"26．形成外科",null,null,null,null,null,null,null,null,null,null,null,null,null,null,null,null,"27．美容外科",null,null,null,null,null,null,null,null,null,null,null,null,null,null,null,null,"28．眼科"]
["　29．耳鼻咽喉科",null,null,null,null,null,null,null,null,null,null,null,null,"30．小児外科",null,null,null,null,null,null,null,null,null,null,null,null,null,null,null,null,"31．産婦人科",null,null,null,null,null,null,null,null,null,null,null,null,null,null,null,null,"32．産科"]
["　33．婦人科",null,null,null,null,null,null,null,null,null,null,null,null,"34．リハビリテーション科",null,null,null,null,null,null,null,null,null,null,null,null,null,null,null,null,"35．放射線科",null,null,null,null,null,null,null,null,null,null,null,null,null,null,null,null,"36．麻酔科"]
["　37．病理診断科",null,null,null,null,null,null,null,null,null,null,null,null,"38．臨床検査科",null,null,null,null,null,null,null,null,null,null,null,null,null,null,null,null,"39．救急科",null,null,null,null,null,null,null,null,null,null,null,null,null,null,null,null,"40．歯科"]
["　41．矯正歯科",null,null,null,null,null,null,null,null,null,null,null,null,"42．小児歯科",null,null,null,null,null,null,null,null,null,null,null,null,null,null,null,null,"43．歯科口腔外科",null,null,null,null,null,null,null,null,null,null,null,null,null,null,null,null,"44．複数の診療科で活用"]
[null,null,null,null,null,null,null,null,null,null,null,null,null,null,null,null,null,null,null,null,null,null,null,null,null,null,null,null,null,null,null,null,null,null,null,null,null,null,null,null,null,null,null,null,null,null,null,null,null,null,"上位１位",null,null,null,"上位２位",null,null,null,"上位３位"]
[null,null,null,null,null,null,null,null,null,null,null,null,null,null,null,null,null,null,null,null,null,null,null,null,null,null,null,null,null,"「44」を選択した場合、当該病棟の患者を多く診ている順に上位３つまで",null,null,null,null,null,null,null,null,null,null,null,null,null,null,null,null,null,null,"⇒"]
[null,null,null,null,null,null,null,null,null,null,null,null,null,"(78)",null,null,null,"該当番号 ⇒",null,null,null,null,null,null,null,null,null,null,null,null,null,null,null,null,null,null,null,null,null,null,null,null,null,null,null,null,null,null,null,null,null,null,null,null,null,null,null,null,null,null,null,null,null,null,null,{"$f":"IF(BO265<>\"\",\"●\",\"\")","v":"●"},{"$f":"IF(Z265=\"\",\"選択番号が未記入です。該当する選択肢をご記入ください。\",IF(Z265=44,IF(COUNTA(AZ265,BD265,BH265)>1,IF(OR(AZ265=BD265,BD265=BH265,AZ265=BH265),\"同一の診療科が記入されています。複数の診療科について１つずつご記入ください。\",IF(OR(AND(AZ265=\"\",COUNTA(BD265,BH265)>0),AND(BD265=\"\",COUNTA(BH265)>0)),\"複数の診療科を患者を多く診ている順にご記入いただく際、未記入の欄があります。上位３つまで左から詰めてご記入ください。\",\"\")),\"複数の診療科を患者を多く診ている順に最大上位３つまでご記入ください。１つの診療科のみ選択する場合は、左欄にご記入ください。\"),IF(COUNT(AZ265,BD265,BH265)>0,\"右欄は、左欄で「44．複数の診療科で活用」を選択した場合のみご記入ください。\",\"\")))","v":"選択番号が未記入です。該当する選択肢をご記入ください。"}]
[]
["９．入院患者数の状況【平成28年７月１日～平成29年６月30日の１年間】"]
[null,"※一般病床・療養病床に入院するショートステイ利用者、正常な妊産婦、院内で出生した正常な新生児、生母の入院に伴って入院した健康な新生児又は乳児、公費負担医療、労災保険制度や労働福祉事業としての医療、自賠責、治験、人間ドック、母体保護法、その他の自由診療等での入院者、介護療養病床への入院患者についても、新規入院患者数・在院患者延べ数・退院患者数に数えてください。"]
[null,"※１入院１単位と考え、入院期間が通算される再入院患者等についても新規入院患者・退院患者として数えてください。"]
[]
["① 新規入院患者数【平成28年７月１日～平成29年６月30日の１年間】",null,null,null,null,null,null,null,null,null,null,null,null,null,null,null,null,null,null,null,null,null,null,null,null,null,null,null,null,null,null,null,null,null,null,null,null,null,null,null,null,null,null,null,null,null,null,"(79)",null,null,null,null,null,null,null,null,null,null,null,null,null,null,null,"人",null,{"$f":"IF(BO271<>\"\",\"●\",\"\")","v":"●"},{"$f":"IF(AND($BH$59=2,$BH$62=2),IF(AND(COUNTA(AZ271,AZ274,BB277,AZ280,AZ283)>0,AZ271=\"\"),\"入院患者数の状況のいずれかの項目が記入されていますが、当該項目の「患者数」が未記入です。ご報告いただく場合には、当該項目のすべての設問にご記入ください。患者数が0の場合は「0」とご記入ください。\",IF(OR(AZ271>AZ280),\"①の「新規入院患者数」が②「在院患者延べ数」よりも大きくなっています。正しい患者数をご記入ください。\",\"\")),IF(AZ271=\"\",\"「患者数」が未記入です。患者数が0の場合は「0」とご記入ください。\",IF(OR(AZ271>AZ280),\"①の「新規入院患者数」が②「在院患者延べ数」よりも大きくなっています。正しい患者数をご記入ください。\",\"\")))","v":"「患者数」が未記入です。患者数が0の場合は「0」とご記入ください。"}]
[]
[]
[null,"上記①のうち、急変による入院患者",null,null,null,null,null,null,null,null,null,null,null,null,null,null,null,null,null,null,null,null,null,null,null,null,null,null,null,null,null,null,null,null,null,null,null,null,null,null,null,null,null,null,null,null,null,"(80)",null,null,null,null,null,null,null,null,null,null,null,null,null,null,null,"人",null,{"$f":"IF(BO274<>\"\",\"●\",\"\")","v":""},{"$f":"IF(AZ274=\"\",\"\",IF($AZ$271<AZ274,\"①の「新規入院患者数」よりも値が大きくなっています。①の内数をご記入ください。\",\"\"))","v":""}]
[]
[]
[null,"上記①のうち、他の急性期医療を担う病院の一般病棟からの受入割合（小数点第２位を四捨五入）",null,null,null,null,null,null,null,null,null,null,null,null,null,null,null,null,null,null,null,null,null,null,null,null,null,null,null,null,null,null,null,null,null,null,null,null,null,null,null,null,null,null,null,null,null,null,null,"(81)",null,null,null,null,null,null,null,null,null,null,null,null,null,"％",null,{"$f":"IF(BO277<>\"\",\"●\",\"\")","v":""},{"$f":"IF(BB277=\"\",\"\",IF(BB277>100,\"「受入割合」が100％を超えています。正しい受入割合をご記入ください。\",\"\"))","v":""}]
[]
[]
["② 在院患者延べ数【平成28年７月１日～平成29年６月30日の１年間】",null,null,null,null,null,null,null,null,null,null,null,null,null,null,null,null,null,null,null,null,null,null,null,null,null,null,null,null,null,null,null,null,null,null,null,null,null,null,null,null,null,null,null,null,null,null,"(82)",null,null,null,null,null,null,null,null,null,null,null,null,null,null,null,"人",null,{"$f":"IF(BO280<>\"\",\"●\",\"\")","v":"●"},{"$f":"IF(AND(BH59=2,BH62=2),IF(AND(COUNTA(AZ271,AZ274,BB277,AZ280,AZ283)>0,AZ280=\"\"),\"入院患者数の状況のいずれかの項目が記入されていますが、当該項目の「患者数」が未記入です。ご報告いただく場合には、当該項目のすべての設問にご記入ください。患者数が0の場合は「0」とご記入ください。\",IF(OR(AND(AX114=0,AX120=0,AX123=0,AX126=0),SUM(AX114,AX120)=0,SUM(AX114,AX123,AX126)=0),IF(AZ280<>0,\"項目５．で過去１年間の「稼働病床数」が0床となっていますが、「在院患者延べ数」が1人以上います。\",\"\"),IF(AZ280=0,\"項目５．で過去１年間の「稼働病床数」が1床以上となっていますが、「在院患者延べ数」が0人となっています。\",IF(OR(ABS((AZ280-SUM(AX114,AX120)*365)/(SUM(AX114,AX120)*365))>1,ABS((AZ280-SUM(AX114,AX123,AX126)*365)/(SUM(AX114,AX123,AX126)*365))>1),\"項目５．の「稼働病床数」と比較して「在院患者延べ数」が明らかに大きくなっています（「(在院患者延べ数-稼働病床数×365日)/(稼働病床数×365日)」が1を超えています）。\",\"\")))),IF(AZ280=\"\",\"「患者延べ数」が未記入です。患者数が0の場合は「0」とご記入ください。\",IF(OR(AND(AX114=0,AX120=0,AX123=0,AX126=0),SUM(AX114,AX120)=0,SUM(AX114,AX123,AX126)=0),IF(AZ280<>0,\"項目５．で過去１年間の「稼働病床数」が0床となっていますが、「在院患者延べ数」が1人以上います。\",\"\"),IF(AZ280=0,\"項目５．で過去１年間の「稼働病床数」が1床以上となっていますが、「在院患者延べ数」が0人となっています。\",IF(OR(ABS((AZ280-SUM(AX114,AX120)*365)/(SUM(AX114,AX120)*365))>1,ABS((AZ280-SUM(AX114,AX123,AX126)*365)/(SUM(AX114,AX123,AX126)*365))>1),\"項目５．の「稼働病床数」と比較して「在院患者延べ数」が明らかに大きくなっています（「(在院患者延べ数-稼働病床数×365日)/(稼働病床数×365日)」が1を超えています）。\",\"\")))))","v":"「患者延べ数」が未記入です。患者数が0の場合は「0」とご記入ください。"}]
[]
[]
["③ 退院患者数【平成28年７月１日～平成29年６月30日の１年間】",null,null,null,null,null,null,null,null,null,null,null,null,null,null,null,null,null,null,null,null,null,null,null,null,null,null,null,null,null,null,null,null,null,null,null,null,null,null,null,null,null,null,null,null,null,null,"(83)",null,null,null,null,null,null,null,null,null,null,null,null,null,null,null,"人",null,{"$f":"IF(BO283<>\"\",\"●\",\"\")","v":"●"},{"$f":"IF(AND($BH$59=2,$BH$62=2),IF(AND(COUNTA(AZ271,AZ274,BB277,AZ280,AZ283)>0,AZ283=\"\"),\"入院患者数の状況のいずれかの項目が記入されていますが、当該項目の「患者数」が未記入です。ご報告いただく場合には、当該項目のすべての設問にご記入ください。患者数が0の場合は「0」とご記入ください。\",IF(OR(AZ283>AZ280),\"③「退院患者数」が②「在院患者延べ数」よりも大きくなっています。正しい患者数をご記入ください。\",\"\")),IF(AZ283=\"\",\"「患者数」が未記入です。患者数が0の場合は「0」とご記入ください。\",IF(OR(AZ283>AZ280),\"③「退院患者数」が②「在院患者延べ数」よりも大きくなっています。正しい患者数をご記入ください。\",\"\")))","v":"「患者数」が未記入です。患者数が0の場合は「0」とご記入ください。"}]
[]
[]
["10．入院前の場所・退院先の場所別の入院患者の状況"]
[null,"※「新規入院患者数」及び「退院患者数」の考え方は、上記の「９．入院患者数の状況」と同様になります。"]
[]
["① 新規入院患者数【平成29年６月の１か月間】《自動計算により算出》",null,null,null,null,null,null,null,null,null,null,null,null,null,null,null,null,null,null,null,null,null,null,null,null,null,null,null,null,null,null,null,null,null,null,null,null,null,null,null,null,null,null,null,null,null,null,"(84)",null,null,null,{"$f":"SUM(AZ292,AZ295,AZ298,AZ301,AZ304)","v":0},null,null,null,null,null,null,null,null,null,null,null,"人",null,{"$f":"IF(BO289<>\"\",\"●\",\"\")","v":""},{"$f":"IF(AZ289=\"\",\"「患者数」が未記入です。患者数が0の場合は「0」とご記入ください。\",\"\")","v":""}]
[]
[null,"入院前の場所"]
[null,null,"上記①のうち、家庭からの入院",null,null,null,null,null,null,null,null,null,null,null,null,null,null,null,null,null,null,null,null,null,null,null,null,null,null,null,null,null,null,null,null,null,null,null,null,null,null,null,null,null,null,null,null,"(85)",null,null,null,null,null,null,null,null,null,null,null,null,null,null,null,"人",null,{"$f":"IF(BO292<>\"\",\"●\",\"\")","v":""},{"$f":"IF(AND(COUNTA($AZ$292,$AZ$295,$AZ$298,$AZ$301,$AZ$304)>0,AZ292=\"\"),\"内数の「患者数」に未記入の欄があります。ご報告いただく場合には、当該項目のすべての設問にご記入ください。患者数が0の場合は「0」とご記入ください。\",IF($AZ$289<AZ292,\"①の「患者数」よりも値が大きくなっています。①の内数をご記入ください。\",IF($AZ$289<>SUM($AZ$292,$AZ$295,$AZ$298,$AZ$301,$AZ$304),\"内訳の合計値が①の「患者数」と一致していません。①の内数をご記入ください。\",\"\")))","v":""}]
[]
[]
[null,null,"上記①のうち、他の病院、診療所からの転院",null,null,null,null,null,null,null,null,null,null,null,null,null,null,null,null,null,null,null,null,null,null,null,null,null,null,null,null,null,null,null,null,null,null,null,null,null,null,null,null,null,null,null,null,"(86)",null,null,null,null,null,null,null,null,null,null,null,null,null,null,null,"人",null,{"$f":"IF(BO295<>\"\",\"●\",\"\")","v":""},{"$f":"IF(AND(COUNTA($AZ$292,$AZ$295,$AZ$298,$AZ$301,$AZ$304)>0,AZ295=\"\"),\"内数の「患者数」に未記入の欄があります。ご報告いただく場合には、当該項目のすべての設問にご記入ください。患者数が0の場合は「0」とご記入ください。\",IF($AZ$289<AZ295,\"①の「患者数」よりも値が大きくなっています。①の内数をご記入ください。\",IF($AZ$289<>SUM($AZ$292,$AZ$295,$AZ$298,$AZ$301,$AZ$304),\"内訳の合計値が①の「患者数」と一致していません。①の内数をご記入ください。\",\"\")))","v":""}]
[]
[]
[null,null,"上記①のうち、介護施設・福祉施設からの入院",null,null,null,null,null,null,null,null,null,null,null,null,null,null,null,null,null,null,null,null,null,null,null,null,null,null,null,null,null,null,null,null,null,null,null,null,null,null,null,null,null,null,null,null,"(87)",null,null,null,null,null,null,null,null,null,null,null,null,null,null,null,"人",null,{"$f":"IF(BO298<>\"\",\"●\",\"\")","v":""},{"$f":"IF(AND(COUNTA($AZ$292,$AZ$295,$AZ$298,$AZ$301,$AZ$304)>0,AZ298=\"\"),\"内数の「患者数」に未記入の欄があります。ご報告いただく場合には、当該項目のすべての設問にご記入ください。患者数が0の場合は「0」とご記入ください。\",IF($AZ$289<AZ298,\"①の「患者数」よりも値が大きくなっています。①の内数をご記入ください。\",IF($AZ$289<>SUM($AZ$292,$AZ$295,$AZ$298,$AZ$301,$AZ$304),\"内訳の合計値が①の「患者数」と一致していません。①の内数をご記入ください。\",\"\")))","v":""}]
[]
[]
[null,null,"上記①のうち、院内の出生",null,null,null,null,null,null,null,null,null,null,null,null,null,null,null,null,null,null,null,null,null,null,null,null,null,null,null,null,null,null,null,null,null,null,null,null,null,null,null,null,null,null,null,null,"(88)",null,null,null,null,null,null,null,null,null,null,null,null,null,null,null,"人",null,{"$f":"IF(BO301<>\"\",\"●\",\"\")","v":""},{"$f":"IF(AND(COUNTA($AZ$292,$AZ$295,$AZ$298,$AZ$301,$AZ$304)>0,AZ301=\"\"),\"内数の「患者数」に未記入の欄があります。ご報告いただく場合には、当該項目のすべての設問にご記入ください。患者数が0の場合は「0」とご記入ください。\",IF($AZ$289<AZ301,\"①の「患者数」よりも値が大きくなっています。①の内数をご記入ください。\",IF($AZ$289<>SUM($AZ$292,$AZ$295,$AZ$298,$AZ$301,$AZ$304),\"内訳の合計値が①の「患者数」と一致していません。①の内数をご記入ください。\",\"\")))","v":""}]
[]
[]
[null,null,"上記①のうち、その他",null,null,null,null,null,null,null,null,null,null,null,null,null,null,null,null,null,null,null,null,null,null,null,null,null,null,null,null,null,null,null,null,null,null,null,null,null,null,null,null,null,null,null,null,"(89)",null,null,null,null,null,null,null,null,null,null,null,null,null,null,null,"人",null,{"$f":"IF(BO304<>\"\",\"●\",\"\")","v":""},{"$f":"IF(AND(COUNTA($AZ$292,$AZ$295,$AZ$298,$AZ$301,$AZ$304)>0,AZ304=\"\"),\"内数の「患者数」に未記入の欄があります。ご報告いただく場合には、当該項目のすべての設問にご記入ください。患者数が0の場合は「0」とご記入ください。\",IF($AZ$289<AZ304,\"①の「患者数」よりも値が大きくなっています。①の内数をご記入ください。\",IF($AZ$289<>SUM($AZ$292,$AZ$295,$AZ$298,$AZ$301,$AZ$304),\"内訳の合計値が①の「患者数」と一致していません。①の内数をご記入ください。\",\"\")))","v":""}]
[]
[]
["② 退院患者数【平成29年６月の１か月間】《自動計算により算出》",null,null,null,null,null,null,null,null,null,null,null,null,null,null,null,null,null,null,null,null,null,null,null,null,null,null,null,null,null,null,null,null,null,null,null,null,null,null,null,null,null,null,null,null,null,null,"(90)",null,null,null,{"$f":"SUM(AZ310,AZ313,AZ316,AZ319,AZ322,AZ325,AZ328)","v":0},null,null,null,null,null,null,null,null,null,null,null,"人",null,{"$f":"IF(BO307<>\"\",\"●\",\"\")","v":""},{"$f":"IF(AZ307=\"\",\"「患者数」が未記入です。患者数が0の場合は「0」とご記入ください。\",\"\")","v":""}]
[]
[null,"退院先の場所"]
[null,null,"上記②のうち、家庭へ退院",null,null,null,null,null,null,null,null,null,null,null,null,null,null,null,null,null,null,null,null,null,null,null,null,null,null,null,null,null,null,null,null,null,null,null,null,null,null,null,null,null,null,null,null,"(91)",null,null,null,null,null,null,null,null,null,null,null,null,null,null,null,"人",null,{"$f":"IF(BO310<>\"\",\"●\",\"\")","v":""},{"$f":"IF(AND(COUNTA($AZ$310,$AZ$313,$AZ$316,$AZ$319,$AZ$322,$AZ$325,$AZ$328)>0,AZ310=\"\"),\"内数の「患者数」に未記入の欄があります。ご報告いただく場合には、当該項目のすべての設問にご記入ください。患者数が0の場合は「0」とご記入ください。\",IF($AZ$307<AZ310,\"②の「患者数」よりも値が大きくなっています。②の内数をご記入ください。\",IF($AZ$307<>SUM($AZ$310,$AZ$313,$AZ$316,$AZ$319,$AZ$322,$AZ$325,$AZ$328),\"内訳の合計値が②の「患者数」と一致していません。②の内数をご記入ください。\",\"\")))","v":""}]
[]
[]
[null,null,"上記②のうち、他の病院、診療所へ転院",null,null,null,null,null,null,null,null,null,null,null,null,null,null,null,null,null,null,null,null,null,null,null,null,null,null,null,null,null,null,null,null,null,null,null,null,null,null,null,null,null,null,null,null,"(92)",null,null,null,null,null,null,null,null,null,null,null,null,null,null,null,"人",null,{"$f":"IF(BO313<>\"\",\"●\",\"\")","v":""},{"$f":"IF(AND(COUNTA($AZ$310,$AZ$313,$AZ$316,$AZ$319,$AZ$322,$AZ$325,$AZ$328)>0,AZ313=\"\"),\"内数の「患者数」に未記入の欄があります。ご報告いただく場合には、当該項目のすべての設問にご記入ください。患者数が0の場合は「0」とご記入ください。\",IF($AZ$307<AZ313,\"②の「患者数」よりも値が大きくなっています。②の内数をご記入ください。\",IF($AZ$307<>SUM($AZ$310,$AZ$313,$AZ$316,$AZ$319,$AZ$322,$AZ$325,$AZ$328),\"内訳の合計値が②の「患者数」と一致していません。②の内数をご記入ください。\",\"\")))","v":""}]
[]
[]
[null,null,"上記②のうち、介護老人保健施設に入所",null,null,null,null,null,null,null,null,null,null,null,null,null,null,null,null,null,null,null,null,null,null,null,null,null,null,null,null,null,null,null,null,null,null,null,null,null,null,null,null,null,null,null,null,"(93)",null,null,null,null,null,null,null,null,null,null,null,null,null,null,null,"人",null,{"$f":"IF(BO316<>\"\",\"●\",\"\")","v":""},{"$f":"IF(AND(COUNTA($AZ$310,$AZ$313,$AZ$316,$AZ$319,$AZ$322,$AZ$325,$AZ$328)>0,AZ316=\"\"),\"内数の「患者数」に未記入の欄があります。ご報告いただく場合には、当該項目のすべての設問にご記入ください。患者数が0の場合は「0」とご記入ください。\",IF($AZ$307<AZ316,\"②の「患者数」よりも値が大きくなっています。②の内数をご記入ください。\",IF($AZ$307<>SUM($AZ$310,$AZ$313,$AZ$316,$AZ$319,$AZ$322,$AZ$325,$AZ$328),\"内訳の合計値が②の「患者数」と一致していません。②の内数をご記入ください。\",\"\")))","v":""}]
[]
[]
[null,null,"上記②のうち、介護老人福祉施設に入所",null,null,null,null,null,null,null,null,null,null,null,null,null,null,null,null,null,null,null,null,null,null,null,null,null,null,null,null,null,null,null,null,null,null,null,null,null,null,null,null,null,null,null,null,"(94)",null,null,null,null,null,null,null,null,null,null,null,null,null,null,null,"人",null,{"$f":"IF(BO319<>\"\",\"●\",\"\")","v":""},{"$f":"IF(AND(COUNTA($AZ$310,$AZ$313,$AZ$316,$AZ$319,$AZ$322,$AZ$325,$AZ$328)>0,AZ319=\"\"),\"内数の「患者数」に未記入の欄があります。ご報告いただく場合には、当該項目のすべての設問にご記入ください。患者数が0の場合は「0」とご記入ください。\",IF($AZ$307<AZ319,\"②の「患者数」よりも値が大きくなっています。②の内数をご記入ください。\",IF($AZ$307<>SUM($AZ$310,$AZ$313,$AZ$316,$AZ$319,$AZ$322,$AZ$325,$AZ$328),\"内訳の合計値が②の「患者数」と一致していません。②の内数をご記入ください。\",\"\")))","v":""}]
[]
[]
[null,null,"上記②のうち、社会福祉施設・有料老人ホーム等に入所",null,null,null,null,null,null,null,null,null,null,null,null,null,null,null,null,null,null,null,null,null,null,null,null,null,null,null,null,null,null,null,null,null,null,null,null,null,null,null,null,null,null,null,null,"(95)",null,null,null,null,null,null,null,null,null,null,null,null,null,null,null,"人",null,{"$f":"IF(BO322<>\"\",\"●\",\"\")","v":""},{"$f":"IF(AND(COUNTA($AZ$310,$AZ$313,$AZ$316,$AZ$319,$AZ$322,$AZ$325,$AZ$328)>0,AZ322=\"\"),\"内数の「患者数」に未記入の欄があります。ご報告いただく場合には、当該項目のすべての設問にご記入ください。患者数が0の場合は「0」とご記入ください。\",IF($AZ$307<AZ322,\"②の「患者数」よりも値が大きくなっています。②の内数をご記入ください。\",IF($AZ$307<>SUM($AZ$310,$AZ$313,$AZ$316,$AZ$319,$AZ$322,$AZ$325,$AZ$328),\"内訳の合計値が②の「患者数」と一致していません。②の内数をご記入ください。\",\"\")))","v":""}]
[]
[]
[null,null,"上記②のうち、終了（死亡退院等）",null,null,null,null,null,null,null,null,null,null,null,null,null,null,null,null,null,null,null,null,null,null,null,null,null,null,null,null,null,null,null,null,null,null,null,null,null,null,null,null,null,null,null,null,"(96)",null,null,null,null,null,null,null,null,null,null,null,null,null,null,null,"人",null,{"$f":"IF(BO325<>\"\",\"●\",\"\")","v":""},{"$f":"IF(AND(COUNTA($AZ$310,$AZ$313,$AZ$316,$AZ$319,$AZ$322,$AZ$325,$AZ$328)>0,AZ325=\"\"),\"内数の「患者数」に未記入の欄があります。ご報告いただく場合には、当該項目のすべての設問にご記入ください。患者数が0の場合は「0」とご記入ください。\",IF($AZ$307<AZ325,\"②の「患者数」よりも値が大きくなっています。②の内数をご記入ください。\",IF($AZ$307<>SUM($AZ$310,$AZ$313,$AZ$316,$AZ$319,$AZ$322,$AZ$325,$AZ$328),\"内訳の合計値が②の「患者数」と一致していません。②の内数をご記入ください。\",\"\")))","v":""}]
[]
[]
[null,null,"上記②のうち、その他",null,null,null,null,null,null,null,null,null,null,null,null,null,null,null,null,null,null,null,null,null,null,null,null,null,null,null,null,null,null,null,null,null,null,null,null,null,null,null,null,null,null,null,null,"(97)",null,null,null,null,null,null,null,null,null,null,null,null,null,null,null,"人",null,{"$f":"IF(BO328<>\"\",\"●\",\"\")","v":""},{"$f":"IF(AND(COUNTA($AZ$310,$AZ$313,$AZ$316,$AZ$319,$AZ$322,$AZ$325,$AZ$328)>0,AZ328=\"\"),\"内数の「患者数」に未記入の欄があります。ご報告いただく場合には、当該項目のすべての設問にご記入ください。患者数が0の場合は「0」とご記入ください。\",IF($AZ$307<AZ328,\"②の「患者数」よりも値が大きくなっています。②の内数をご記入ください。\",IF($AZ$307<>SUM($AZ$310,$AZ$313,$AZ$316,$AZ$319,$AZ$322,$AZ$325,$AZ$328),\"内訳の合計値が②の「患者数」と一致していません。②の内数をご記入ください。\",\"\")))","v":""}]
[]
[null,null,"下記③及び④は、入院前の場所・退院先の場所別の入院患者の状況について、１年間の患者数を把握している場合のみご回答ください。（その場合でも、上記①及び②には必ずご回答ください。）"]
[]
["③ 新規入院患者数【平成28年７月１日～平成29年６月30日の１年間】《自動計算により算出》",null,null,null,null,null,null,null,null,null,null,null,null,null,null,null,null,null,null,null,null,null,null,null,null,null,null,null,null,null,null,null,null,null,null,null,null,null,null,null,null,null,null,null,null,null,null,"(98)",null,null,null,{"$f":"SUM(AZ335,AZ338,AZ341,AZ344,AZ347)","v":0},null,null,null,null,null,null,null,null,null,null,null,"人",null,{"$f":"IF(BO332<>\"\",\"●\",\"\")","v":""},{"$f":"IF(AND(COUNTA(AZ332,AZ335,AZ338,AZ341,AZ344,AZ347)>0,AZ332=\"\"),\"③新規入院患者数に未記入の欄があります。ご報告いただく場合には、当該項目のすべての設問にご記入ください。患者数が0の場合は「0」とご記入ください。\",IF(AND(AZ332<>\"\",COUNTA(AZ335,AZ338,AZ341,AZ344,AZ347)>0,AZ332<>AZ271),\"項目９．の①新規入院患者数と項目１０．の③新規入院患者数が異なっています。正しい患者数をご記入ください。\",\"\"))","v":""}]
[]
[null,"入院前の場所"]
[null,null,"上記③のうち、家庭からの入院",null,null,null,null,null,null,null,null,null,null,null,null,null,null,null,null,null,null,null,null,null,null,null,null,null,null,null,null,null,null,null,null,null,null,null,null,null,null,null,null,null,null,null,null,"(99)",null,null,null,null,null,null,null,null,null,null,null,null,null,null,null,"人",null,{"$f":"IF(BO335<>\"\",\"●\",\"\")","v":""},{"$f":"IF(AND(COUNTA(AZ$335,AZ$338,AZ$341,AZ$344,AZ$347)>0,AZ335=\"\"),\"内数の「患者数」に未記入の欄があります。ご報告いただく場合には、当該項目のすべての設問にご記入ください。患者数が0の場合は「0」とご記入ください。\",IF(AZ$332<AZ335,\"③の「患者数」よりも値が大きくなっています。③の内数をご記入ください。\",IF(AZ$332<>SUM(AZ$335,AZ$338,AZ$341,AZ$344,AZ$347),\"内訳の合計値が③の「患者数」と一致していません。③の内数をご記入ください。\",\"\")))","v":""}]
[]
[]
[null,null,"上記③のうち、他の病院、診療所からの転院",null,null,null,null,null,null,null,null,null,null,null,null,null,null,null,null,null,null,null,null,null,null,null,null,null,null,null,null,null,null,null,null,null,null,null,null,null,null,null,null,null,null,null,null,"(100)",null,null,null,null,null,null,null,null,null,null,null,null,null,null,null,"人",null,{"$f":"IF(BO338<>\"\",\"●\",\"\")","v":""},{"$f":"IF(AND(COUNTA(AZ$335,AZ$338,AZ$341,AZ$344,AZ$347)>0,AZ338=\"\"),\"内数の「患者数」に未記入の欄があります。ご報告いただく場合には、当該項目のすべての設問にご記入ください。患者数が0の場合は「0」とご記入ください。\",IF(AZ$332<AZ338,\"③の「患者数」よりも値が大きくなっています。③の内数をご記入ください。\",IF(AZ$332<>SUM(AZ$335,AZ$338,AZ$341,AZ$344,AZ$347),\"内訳の合計値が③の「患者数」と一致していません。③の内数をご記入ください。\",\"\")))","v":""}]
[]
[]
[null,null,"上記③のうち、介護施設・福祉施設からの入院",null,null,null,null,null,null,null,null,null,null,null,null,null,null,null,null,null,null,null,null,null,null,null,null,null,null,null,null,null,null,null,null,null,null,null,null,null,null,null,null,null,null,null,null,"(101)",null,null,null,null,null,null,null,null,null,null,null,null,null,null,null,"人",null,{"$f":"IF(BO341<>\"\",\"●\",\"\")","v":""},{"$f":"IF(AND(COUNTA(AZ$335,AZ$338,AZ$341,AZ$344,AZ$347)>0,AZ341=\"\"),\"内数の「患者数」に未記入の欄があります。ご報告いただく場合には、当該項目のすべての設問にご記入ください。患者数が0の場合は「0」とご記入ください。\",IF(AZ$332<AZ341,\"③の「患者数」よりも値が大きくなっています。③の内数をご記入ください。\",IF(AZ$332<>SUM(AZ$335,AZ$338,AZ$341,AZ$344,AZ$347),\"内訳の合計値が③の「患者数」と一致していません。③の内数をご記入ください。\",\"\")))","v":""}]
[]
[]
[null,null,"上記③のうち、院内の出生",null,null,null,null,null,null,null,null,null,null,null,null,null,null,null,null,null,null,null,null,null,null,null,null,null,null,null,null,null,null,null,null,null,null,null,null,null,null,null,null,null,null,null,null,"(102)",null,null,null,null,null,null,null,null,null,null,null,null,null,null,null,"人",null,{"$f":"IF(BO344<>\"\",\"●\",\"\")","v":""},{"$f":"IF(AND(COUNTA(AZ$335,AZ$338,AZ$341,AZ$344,AZ$347)>0,AZ344=\"\"),\"内数の「患者数」に未記入の欄があります。ご報告いただく場合には、当該項目のすべての設問にご記入ください。患者数が0の場合は「0」とご記入ください。\",IF(AZ$332<AZ344,\"③の「患者数」よりも値が大きくなっています。③の内数をご記入ください。\",IF(AZ$332<>SUM(AZ$335,AZ$338,AZ$341,AZ$344,AZ$347),\"内訳の合計値が③の「患者数」と一致していません。③の内数をご記入ください。\",\"\")))","v":""}]
[]
[]
[null,null,"上記③のうち、その他",null,null,null,null,null,null,null,null,null,null,null,null,null,null,null,null,null,null,null,null,null,null,null,null,null,null,null,null,null,null,null,null,null,null,null,null,null,null,null,null,null,null,null,null,"(103)",null,null,null,null,null,null,null,null,null,null,null,null,null,null,null,"人",null,{"$f":"IF(BO347<>\"\",\"●\",\"\")","v":""},{"$f":"IF(AND(COUNTA(AZ$335,AZ$338,AZ$341,AZ$344,AZ$347)>0,AZ347=\"\"),\"内数の「患者数」に未記入の欄があります。ご報告いただく場合には、当該項目のすべての設問にご記入ください。患者数が0の場合は「0」とご記入ください。\",IF(AZ$332<AZ347,\"③の「患者数」よりも値が大きくなっています。③の内数をご記入ください。\",IF(AZ$332<>SUM(AZ$335,AZ$338,AZ$341,AZ$344,AZ$347),\"内訳の合計値が③の「患者数」と一致していません。③の内数をご記入ください。\",\"\")))","v":""}]
[]
[]
["④ 退院患者数【平成28年７月１日～平成29年６月30日の１年間】《自動計算により算出》",null,null,null,null,null,null,null,null,null,null,null,null,null,null,null,null,null,null,null,null,null,null,null,null,null,null,null,null,null,null,null,null,null,null,null,null,null,null,null,null,null,null,null,null,null,null,"(104)",null,null,null,{"$f":"SUM(AZ353,AZ356,AZ359,AZ362,AZ365,AZ368,AZ371)","v":0},null,null,null,null,null,null,null,null,null,null,null,"人",null,{"$f":"IF(BO350<>\"\",\"●\",\"\")","v":""},{"$f":"IF(AND(COUNTA(AZ350,AZ353,AZ356,AZ359,AZ362,AZ365,AZ368,AZ371)>0,AZ350=\"\"),\"④退院患者数に未記入の欄があります。ご報告いただく場合には、当該項目のすべての設問にご記入ください。患者数が0の場合は「0」とご記入ください。\",IF(AND(AZ350<>\"\",COUNTA(AZ353,AZ356,AZ359,AZ362,AZ365,AZ368,AZ371)>0,AZ350<>AZ283),\"項目９．の③退院患者数と項目１０．の④退院患者数が異なっています。正しい患者数をご記入ください。\",\"\"))","v":""}]
[]
[null,"退院先の場所"]
[null,null,"上記④のうち、家庭へ退院",null,null,null,null,null,null,null,null,null,null,null,null,null,null,null,null,null,null,null,null,null,null,null,null,null,null,null,null,null,null,null,null,null,null,null,null,null,null,null,null,null,null,null,null,"(105)",null,null,null,null,null,null,null,null,null,null,null,null,null,null,null,"人",null,{"$f":"IF(BO353<>\"\",\"●\",\"\")","v":""},{"$f":"IF(AND(COUNTA(AZ$353,AZ$356,AZ$359,AZ$362,AZ$365,AZ$368,AZ$371)>0,AZ353=\"\"),\"内数の「患者数」に未記入の欄があります。ご報告いただく場合には、当該項目のすべての設問にご記入ください。患者数が0の場合は「0」とご記入ください。\",IF(AZ$350<AZ353,\"④の「患者数」よりも値が大きくなっています。④の内数をご記入ください。\",IF(AZ$350<>SUM(AZ$353,AZ$356,AZ$359,AZ$362,AZ$365,AZ$368,AZ$371),\"内訳の合計値が④の「患者数」と一致していません。④の内数をご記入ください。\",\"\")))","v":""}]
[]
[]
[null,null,"上記④のうち、他の病院、診療所へ転院",null,null,null,null,null,null,null,null,null,null,null,null,null,null,null,null,null,null,null,null,null,null,null,null,null,null,null,null,null,null,null,null,null,null,null,null,null,null,null,null,null,null,null,null,"(106)",null,null,null,null,null,null,null,null,null,null,null,null,null,null,null,"人",null,{"$f":"IF(BO356<>\"\",\"●\",\"\")","v":""},{"$f":"IF(AND(COUNTA(AZ$353,AZ$356,AZ$359,AZ$362,AZ$365,AZ$368,AZ$371)>0,AZ356=\"\"),\"内数の「患者数」に未記入の欄があります。ご報告いただく場合には、当該項目のすべての設問にご記入ください。患者数が0の場合は「0」とご記入ください。\",IF(AZ$350<AZ356,\"④の「患者数」よりも値が大きくなっています。④の内数をご記入ください。\",IF(AZ$350<>SUM(AZ$353,AZ$356,AZ$359,AZ$362,AZ$365,AZ$368,AZ$371),\"内訳の合計値が④の「患者数」と一致していません。④の内数をご記入ください。\",\"\")))","v":""}]
[]
[]
[null,null,"上記④のうち、介護老人保健施設に入所",null,null,null,null,null,null,null,null,null,null,null,null,null,null,null,null,null,null,null,null,null,null,null,null,null,null,null,null,null,null,null,null,null,null,null,null,null,null,null,null,null,null,null,null,"(107)",null,null,null,null,null,null,null,null,null,null,null,null,null,null,null,"人",null,{"$f":"IF(BO359<>\"\",\"●\",\"\")","v":""},{"$f":"IF(AND(COUNTA(AZ$353,AZ$356,AZ$359,AZ$362,AZ$365,AZ$368,AZ$371)>0,AZ359=\"\"),\"内数の「患者数」に未記入の欄があります。ご報告いただく場合には、当該項目のすべての設問にご記入ください。患者数が0の場合は「0」とご記入ください。\",IF(AZ$350<AZ359,\"④の「患者数」よりも値が大きくなっています。④の内数をご記入ください。\",IF(AZ$350<>SUM(AZ$353,AZ$356,AZ$359,AZ$362,AZ$365,AZ$368,AZ$371),\"内訳の合計値が④の「患者数」と一致していません。④の内数をご記入ください。\",\"\")))","v":""}]
[]
[]
[null,null,"上記④のうち、介護老人福祉施設に入所",null,null,null,null,null,null,null,null,null,null,null,null,null,null,null,null,null,null,null,null,null,null,null,null,null,null,null,null,null,null,null,null,null,null,null,null,null,null,null,null,null,null,null,null,"(108)",null,null,null,null,null,null,null,null,null,null,null,null,null,null,null,"人",null,{"$f":"IF(BO362<>\"\",\"●\",\"\")","v":""},{"$f":"IF(AND(COUNTA(AZ$353,AZ$356,AZ$359,AZ$362,AZ$365,AZ$368,AZ$371)>0,AZ362=\"\"),\"内数の「患者数」に未記入の欄があります。ご報告いただく場合には、当該項目のすべての設問にご記入ください。患者数が0の場合は「0」とご記入ください。\",IF(AZ$350<AZ362,\"④の「患者数」よりも値が大きくなっています。④の内数をご記入ください。\",IF(AZ$350<>SUM(AZ$353,AZ$356,AZ$359,AZ$362,AZ$365,AZ$368,AZ$371),\"内訳の合計値が④の「患者数」と一致していません。④の内数をご記入ください。\",\"\")))","v":""}]
[]
[]
[null,null,"上記④のうち、社会福祉施設・有料老人ホーム等に入所",null,null,null,null,null,null,null,null,null,null,null,null,null,null,null,null,null,null,null,null,null,null,null,null,null,null,null,null,null,null,null,null,null,null,null,null,null,null,null,null,null,null,null,null,"(109)",null,null,null,null,null,null,null,null,null,null,null,null,null,null,null,"人",null,{"$f":"IF(BO365<>\"\",\"●\",\"\")","v":""},{"$f":"IF(AND(COUNTA(AZ$353,AZ$356,AZ$359,AZ$362,AZ$365,AZ$368,AZ$371)>0,AZ365=\"\"),\"内数の「患者数」に未記入の欄があります。ご報告いただく場合には、当該項目のすべての設問にご記入ください。患者数が0の場合は「0」とご記入ください。\",IF(AZ$350<AZ365,\"④の「患者数」よりも値が大きくなっています。④の内数をご記入ください。\",IF(AZ$350<>SUM(AZ$353,AZ$356,AZ$359,AZ$362,AZ$365,AZ$368,AZ$371),\"内訳の合計値が④の「患者数」と一致していません。④の内数をご記入ください。\",\"\")))","v":""}]
[]
[]
[null,null,"上記④のうち、終了（死亡退院等）",null,null,null,null,null,null,null,null,null,null,null,null,null,null,null,null,null,null,null,null,null,null,null,null,null,null,null,null,null,null,null,null,null,null,null,null,null,null,null,null,null,null,null,null,"(110)",null,null,null,null,null,null,null,null,null,null,null,null,null,null,null,"人",null,{"$f":"IF(BO368<>\"\",\"●\",\"\")","v":""},{"$f":"IF(AND(COUNTA(AZ$353,AZ$356,AZ$359,AZ$362,AZ$365,AZ$368,AZ$371)>0,AZ368=\"\"),\"内数の「患者数」に未記入の欄があります。ご報告いただく場合には、当該項目のすべての設問にご記入ください。患者数が0の場合は「0」とご記入ください。\",IF(AZ$350<AZ368,\"④の「患者数」よりも値が大きくなっています。④の内数をご記入ください。\",IF(AZ$350<>SUM(AZ$353,AZ$356,AZ$359,AZ$362,AZ$365,AZ$368,AZ$371),\"内訳の合計値が④の「患者数」と一致していません。④の内数をご記入ください。\",\"\")))","v":""}]
[]
[]
[null,null,"上記④のうち、その他",null,null,null,null,null,null,null,null,null,null,null,null,null,null,null,null,null,null,null,null,null,null,null,null,null,null,null,null,null,null,null,null,null,null,null,null,null,null,null,null,null,null,null,null,"(111)",null,null,null,null,null,null,null,null,null,null,null,null,null,null,null,"人",null,{"$f":"IF(BO371<>\"\",\"●\",\"\")","v":""},{"$f":"IF(AND(COUNTA(AZ$353,AZ$356,AZ$359,AZ$362,AZ$365,AZ$368,AZ$371)>0,AZ371=\"\"),\"内数の「患者数」に未記入の欄があります。ご報告いただく場合には、当該項目のすべての設問にご記入ください。患者数が0の場合は「0」とご記入ください。\",IF(AZ$350<AZ371,\"④の「患者数」よりも値が大きくなっています。④の内数をご記入ください。\",IF(AZ$350<>SUM(AZ$353,AZ$356,AZ$359,AZ$362,AZ$365,AZ$368,AZ$371),\"内訳の合計値が④の「患者数」と一致していません。④の内数をご記入ください。\",\"\")))","v":""}]
[]
[]
["11．退院後に在宅医療を必要とする患者の状況"]
["① 上記の項目10.ー②「退院患者数【平成29年６月の１か月間】」のうち、\n　　※本項目の内訳の患者数の合計と上記の「10－②退院患者数」が一致すること"]
[null,null,null,null,null,null,null,null,null,null,null,null,null,null,null,null,null,null,null,null,null,null,null,null,null,null,null,null,null,null,null,null,null,null,null,null,null,null,null,null,null,null,null,null,null,null,null,null,null,null,null,null,null,null,null,null,null,null,null,null,null,null,null,null,null,{"$f":"IF(BO376<>\"\",\"●\",\"\")","v":""},{"$f":"IF(AND($AZ$379=\"\",$AZ$382=\"\",$AZ$385=\"\",$AZ$388=\"\"),\"\",IF(SUM(AZ379,AZ382,AZ385,AZ388)<>SUM(AZ310,AZ313,AZ316,AZ319,AZ322,AZ325,AZ328),\"本項目の内訳の患者数の合計値が上記の項目１０．－②の「退院患者数」と一致していません。正しい患者数をご記入ください。\",\"\"))","v":""}]
[]
[]
[null,"退院後１か月以内に在宅医療を必要としない患者（死亡退院を含む）",null,null,null,null,null,null,null,null,null,null,null,null,null,null,null,null,null,null,null,null,null,null,null,null,null,null,null,null,null,null,null,null,null,null,null,null,null,null,null,null,null,null,null,null,null,"(112)",null,null,null,null,null,null,null,null,null,null,null,null,null,null,null,"人",null,{"$f":"IF(BO379<>\"\",\"●\",\"\")","v":""},{"$f":"IF(AND($AZ$379=\"\",$AZ$382=\"\",$AZ$385=\"\",$AZ$388=\"\"),\"\",IF(AND(COUNTA($AZ$382,$AZ$385,$AZ$379,$AZ$388)>0,AZ379=\"\"),\"内数の「患者数」に未記入の欄があります。ご報告いただく場合には、当該項目のすべての設問にご記入ください。患者数が0の場合は「0」とご記入ください。\",IF($AZ$307<AZ379,\"上記の項目10．－②の「退院患者数」よりも値が大きくなっています。項目10．－②「退院患者数」の内数をご記入ください。\",IF($AZ$307<>SUM($AZ$379,$AZ$382,$AZ$385,$AZ$388),\"内訳の合計値が上記10．－②の「退院患者数」と一致していません。項目10．－②「退院患者数」の内数をご記入ください。\",\"\"))))","v":""}]
[]
[]
[null,"退院後１か月以内に自院が在宅医療を提供する予定の患者",null,null,null,null,null,null,null,null,null,null,null,null,null,null,null,null,null,null,null,null,null,null,null,null,null,null,null,null,null,null,null,null,null,null,null,null,null,null,null,null,null,null,null,null,null,"(113)",null,null,null,null,null,null,null,null,null,null,null,null,null,null,null,"人",null,{"$f":"IF(BO382<>\"\",\"●\",\"\")","v":""},{"$f":"IF(AND($AZ$379=\"\",$AZ$382=\"\",$AZ$385=\"\",$AZ$388=\"\"),\"\",IF(AND(COUNTA($AZ$382,$AZ$385,$AZ$379,$AZ$388)>0,AZ382=\"\"),\"内数の「患者数」に未記入の欄があります。ご報告いただく場合には、当該項目のすべての設問にご記入ください。患者数が0の場合は「0」とご記入ください。\",IF($AZ$307<AZ382,\"上記の項目10．－②の「退院患者数」よりも値が大きくなっています。項目10．－②「退院患者数」の内数をご記入ください。\",IF($AZ$307<>SUM($AZ$379,$AZ$382,$AZ$385,$AZ$388),\"内訳の合計値が上記10．－②の「退院患者数」と一致していません。項目10．－②「退院患者数」の内数をご記入ください。\",\"\"))))","v":""}]
[]
[]
[null,"退院後１か月以内に他施設が在宅医療を提供する予定の患者",null,null,null,null,null,null,null,null,null,null,null,null,null,null,null,null,null,null,null,null,null,null,null,null,null,null,null,null,null,null,null,null,null,null,null,null,null,null,null,null,null,null,null,null,null,"(114)",null,null,null,null,null,null,null,null,null,null,null,null,null,null,null,"人",null,{"$f":"IF(BO385<>\"\",\"●\",\"\")","v":""},{"$f":"IF(AND($AZ$379=\"\",$AZ$382=\"\",$AZ$385=\"\",$AZ$388=\"\"),\"\",IF(AND(COUNTA($AZ$382,$AZ$385,$AZ$379,$AZ$388)>0,AZ385=\"\"),\"内数の「患者数」に未記入の欄があります。ご報告いただく場合には、当該項目のすべての設問にご記入ください。患者数が0の場合は「0」とご記入ください。\",IF($AZ$307<AZ385,\"上記の項目10．－②の「退院患者数」よりも値が大きくなっています。項目10．－②「退院患者数」の内数をご記入ください。\",IF($AZ$307<>SUM($AZ$379,$AZ$382,$AZ$385,$AZ$388),\"内訳の合計値が上記10．－②の「退院患者数」と一致していません。項目10．－②「退院患者数」の内数をご記入ください。\",\"\"))))","v":""}]
[]
[]
[null,"退院後１か月以内の在宅医療の実施予定が不明の患者",null,null,null,null,null,null,null,null,null,null,null,null,null,null,null,null,null,null,null,null,null,null,null,null,null,null,null,null,null,null,null,null,null,null,null,null,null,null,null,null,null,null,null,null,null,"(115)",null,null,null,null,null,null,null,null,null,null,null,null,null,null,null,"人",null,{"$f":"IF(BO388<>\"\",\"●\",\"\")","v":""},{"$f":"IF(AND($AZ$379=\"\",$AZ$382=\"\",$AZ$385=\"\",$AZ$388=\"\"),\"\",IF(AND(COUNTA($AZ$382,$AZ$385,$AZ$379,$AZ$388)>0,AZ388=\"\"),\"内数の「患者数」に未記入の欄があります。ご報告いただく場合には、当該項目のすべての設問にご記入ください。患者数が0の場合は「0」とご記入ください。\",IF($AZ$307<AZ388,\"上記の項目10．－②の「退院患者数」よりも値が大きくなっています。項目10．－②「退院患者数」の内数をご記入ください。\",IF($AZ$307<>SUM($AZ$379,$AZ$382,$AZ$385,$AZ$388),\"内訳の合計値が上記10．－②の「退院患者数」と一致していません。項目10．－②「退院患者数」の内数をご記入ください。\",\"\"))))","v":""}]
[]
[null,null,"下記②は、退院後に在宅医療を必要とする患者の状況について、１年間の患者数を把握している場合のみご回答ください。（その場合でも、上記①には必ずご回答ください。）"]
["② 上記の項目10.ー④「退院患者数【平成28年７月１日～平成29年６月30日の１年間】」のうち、\n　　※本項目の内訳の患者数の合計と上記の「10.－④退院患者数」が一致すること"]
[null,null,null,null,null,null,null,null,null,null,null,null,null,null,null,null,null,null,null,null,null,null,null,null,null,null,null,null,null,null,null,null,null,null,null,null,null,null,null,null,null,null,null,null,null,null,null,null,null,null,null,null,null,null,null,null,null,null,null,null,null,null,null,null,null,{"$f":"IF(BO392<>\"\",\"●\",\"\")","v":""},{"$f":"IF(AND(AZ395=\"\",AZ398=\"\",AZ401=\"\",AZ404=\"\"),\"\",IF(SUM(AZ395,AZ398,AZ401,AZ404)<>SUM(AZ353,AZ356,AZ359,AZ362,AZ365,AZ368,AZ371),\"本項目の内訳の患者数の合計値が上記の項目10．－④の「退院患者数」と一致していません。正しい患者数をご記入ください。\",\"\"))","v":""}]
[]
[]
[null,"退院後１か月以内に在宅医療を必要としない患者（死亡退院を含む）",null,null,null,null,null,null,null,null,null,null,null,null,null,null,null,null,null,null,null,null,null,null,null,null,null,null,null,null,null,null,null,null,null,null,null,null,null,null,null,null,null,null,null,null,null,"(116)",null,null,null,null,null,null,null,null,null,null,null,null,null,null,null,"人",null,{"$f":"IF(BO395<>\"\",\"●\",\"\")","v":""},{"$f":"IF(AND(AZ$395=\"\",AZ$398=\"\",AZ$401=\"\",AZ$404=\"\"),\"\",IF(AND(COUNTA(AZ$395,AZ$398,AZ$401,AZ$404)>0,AZ395=\"\"),\"内数の「患者数」に未記入の欄があります。ご報告いただく場合には、当該項目のすべての設問にご記入ください。患者数が0の場合は「0」とご記入ください。\",IF(AZ$350<AZ395,\"上記の項目１０．－④の「退院患者数」よりも値が大きくなっています。項目１０．－④「退院患者数」の内数をご記入ください。\",IF(AZ$350<>SUM(AZ$395,AZ$398,AZ$401,AZ$404),\"内訳の合計値が上記の項目１０．－④の「退院患者数」と一致していません。項目１０．－④「退院患者数」の内数をご記入ください。\",\"\"))))","v":""}]
[]
[]
[null,"退院後１か月以内に自院が在宅医療を提供する予定の患者",null,null,null,null,null,null,null,null,null,null,null,null,null,null,null,null,null,null,null,null,null,null,null,null,null,null,null,null,null,null,null,null,null,null,null,null,null,null,null,null,null,null,null,null,null,"(117)",null,null,null,null,null,null,null,null,null,null,null,null,null,null,null,"人",null,{"$f":"IF(BO398<>\"\",\"●\",\"\")","v":""},{"$f":"IF(AND(AZ$395=\"\",AZ$398=\"\",AZ$401=\"\",AZ$404=\"\"),\"\",IF(AND(COUNTA(AZ$395,AZ$398,AZ$401,AZ$404)>0,AZ398=\"\"),\"内数の「患者数」に未記入の欄があります。ご報告いただく場合には、当該項目のすべての設問にご記入ください。患者数が0の場合は「0」とご記入ください。\",IF(AZ$350<AZ398,\"上記の項目１０．－④の「退院患者数」よりも値が大きくなっています。項目１０．－④「退院患者数」の内数をご記入ください。\",IF(AZ$350<>SUM(AZ$395,AZ$398,AZ$401,AZ$404),\"内訳の合計値が上記の項目１０．－④の「退院患者数」と一致していません。項目１０．－④「退院患者数」の内数をご記入ください。\",\"\"))))","v":""}]
[]
[]
[null,"退院後１か月以内に他施設が在宅医療を提供する予定の患者",null,null,null,null,null,null,null,null,null,null,null,null,null,null,null,null,null,null,null,null,null,null,null,null,null,null,null,null,null,null,null,null,null,null,null,null,null,null,null,null,null,null,null,null,null,"(118)",null,null,null,null,null,null,null,null,null,null,null,null,null,null,null,"人",null,{"$f":"IF(BO401<>\"\",\"●\",\"\")","v":""},{"$f":"IF(AND(AZ$395=\"\",AZ$398=\"\",AZ$401=\"\",AZ$404=\"\"),\"\",IF(AND(COUNTA(AZ$395,AZ$398,AZ$401,AZ$404)>0,AZ401=\"\"),\"内数の「患者数」に未記入の欄があります。ご報告いただく場合には、当該項目のすべての設問にご記入ください。患者数が0の場合は「0」とご記入ください。\",IF(AZ$350<AZ401,\"上記の項目１０．－④の「退院患者数」よりも値が大きくなっています。項目１０．－④「退院患者数」の内数をご記入ください。\",IF(AZ$350<>SUM(AZ$395,AZ$398,AZ$401,AZ$404),\"内訳の合計値が上記の項目１０．－④の「退院患者数」と一致していません。項目１０．－④「退院患者数」の内数をご記入ください。\",\"\"))))","v":""}]
[]
[]
[null,"退院後１か月以内の在宅医療の実施予定が不明の患者",null,null,null,null,null,null,null,null,null,null,null,null,null,null,null,null,null,null,null,null,null,null,null,null,null,null,null,null,null,null,null,null,null,null,null,null,null,null,null,null,null,null,null,null,null,"(119)",null,null,null,null,null,null,null,null,null,null,null,null,null,null,null,"人",null,{"$f":"IF(BO404<>\"\",\"●\",\"\")","v":""},{"$f":"IF(AND(AZ$395=\"\",AZ$398=\"\",AZ$401=\"\",AZ$404=\"\"),\"\",IF(AND(COUNTA(AZ$395,AZ$398,AZ$401,AZ$404)>0,AZ404=\"\"),\"内数の「患者数」に未記入の欄があります。ご報告いただく場合には、当該項目のすべての設問にご記入ください。患者数が0の場合は「0」とご記入ください。\",IF(AZ$350<AZ404,\"上記の項目１０．－④の「退院患者数」よりも値が大きくなっています。項目１０．－④「退院患者数」の内数をご記入ください。\",IF(AZ$350<>SUM(AZ$395,AZ$398,AZ$401,AZ$404),\"内訳の合計値が上記の項目１０．－④の「退院患者数」と一致していません。項目１０．－④「退院患者数」の内数をご記入ください。\",\"\"))))","v":""}]
[]
[]
["12．在宅療養支援診療所の届出の有無【平成29年７月１日時点】"]
[]
["① 在宅療養支援診療所の届出の有無",null,null,null,null,null,null,null,null,null,null,null,null,null,null,null,null,null,null,null,null,null,null,null,null,null,null,null,null,"　１．有り　２．無し",null,null,null,null,null,null,null,null,null,null,null,null,null,null,null,null,null,null,null,"該当番号 ⇒(120)"]
[]
[]
["13．往診、訪問診療を行った患者延べ数"]
[]
["① 往診を実施した患者延べ数【平成29年６月の１か月間】",null,null,null,null,null,null,null,null,null,null,null,null,null,null,null,null,null,null,null,null,null,null,null,null,null,null,null,null,null,null,null,null,null,null,null,null,null,null,null,null,null,null,null,null,null,null,"(121)",null,null,null,null,null,null,null,null,null,null,null,null,null,null,null,"人",null,{"$f":"IF(BO414<>\"\",\"●\",\"\")","v":""},{"$f":"IF(AND(COUNTA(AZ414,AZ417)>0,AZ414=\"\"),\"①の「患者数」に未記入の欄があります。ご報告いただく場合には、当該項目のすべての設問にご記入ください。患者数が0の場合は「0」とご記入ください。\",\"\")","v":""}]
[]
[]
["② 訪問診療を実施した患者延べ数【平成29年６月の１か月間】",null,null,null,null,null,null,null,null,null,null,null,null,null,null,null,null,null,null,null,null,null,null,null,null,null,null,null,null,null,null,null,null,null,null,null,null,null,null,null,null,null,null,null,null,null,null,"(122)",null,null,null,null,null,null,null,null,null,null,null,null,null,null,null,"人",null,{"$f":"IF(BO417<>\"\",\"●\",\"\")","v":""},{"$f":"IF(AND(COUNTA(AZ414,AZ417)>0,AZ417=\"\"),\"②の「患者数」に未記入の欄があります。ご報告いただく場合には、当該項目のすべての設問にご記入ください。患者数が0の場合は「0」とご記入ください。\",\"\")","v":""}]
[]
[]
["14．看取りを行った患者数"]
["① 医療機関以外での看取り数【平成28年７月１日～平成29年６月30日の１年間】"]
[null,"直近１年間に在宅療養を担当した患者について"]
[]
[null,"（１）医療機関以外での死亡者数【平成28年７月１日～平成29年６月30日の１年間】",null,null,null,null,null,null,null,null,null,null,null,null,null,null,null,null,null,null,null,null,null,null,null,null,null,null,null,null,null,null,null,null,null,null,null,null,null,null,null,null,null,null,null,null,null,"(123)",null,null,null,{"$f":"SUM(AZ427,AZ430)","v":0},null,null,null,null,null,null,null,null,null,null,null,"人",null,null,{"$f":"IF(AND(COUNTA(AZ427,AZ430,AZ438,AZ441)>0,AZ424=\"\"),\"「死亡者数」に未記入の欄があります。ご報告いただく場合には、当該項目のすべての設問にご記入ください。死亡者数が0の場合は「0」とご記入ください。\",\"\")","v":""}]
[]
[]
[null,null,"上記（１）のうち、自宅での死亡者数【平成28年７月１日～平成29年６月30日の１年間】",null,null,null,null,null,null,null,null,null,null,null,null,null,null,null,null,null,null,null,null,null,null,null,null,null,null,null,null,null,null,null,null,null,null,null,null,null,null,null,null,null,null,null,null,"(124)",null,null,null,null,null,null,null,null,null,null,null,null,null,null,null,"人",null,{"$f":"IF(BO427<>\"\",\"●\",\"\")","v":""},{"$f":"IF(AND(COUNTA(AZ427,AZ430,AZ438,AZ441)>0,AZ427=\"\"),\"内数の「死亡者数」に未記入の欄があります。ご報告いただく場合には、当該項目のすべての設問にご記入ください。死亡者数が0の場合は「0」とご記入ください。\",IF(AZ424<AZ427,\"（１）の「死亡者数」よりも値が大きくなっています。（１）の内数をご記入ください。\",IF(AZ424<>SUM(AZ427,AZ430),\"内訳の合計値が（１）の「死亡者数」と一致していません。（１）の内数をご記入ください。\",\"\")))","v":""}]
[]
[]
[null,null,"上記（１）のうち、自宅以外での死亡者数【平成28年７月１日～平成29年６月30日の１年間】",null,null,null,null,null,null,null,null,null,null,null,null,null,null,null,null,null,null,null,null,null,null,null,null,null,null,null,null,null,null,null,null,null,null,null,null,null,null,null,null,null,null,null,null,"(125)",null,null,null,null,null,null,null,null,null,null,null,null,null,null,null,"人",null,{"$f":"IF(BO430<>\"\",\"●\",\"\")","v":""},{"$f":"IF(AND(COUNTA(AZ427,AZ430,AZ438,AZ441)>0,AZ430=\"\"),\"内数の「死亡者数」に未記入の欄があります。ご報告いただく場合には、当該項目のすべての設問にご記入ください。死亡者数が0の場合は「0」とご記入ください。\",IF(AZ424<AZ430,\"（１）の「死亡者数」よりも値が大きくなっています。（１）の内数をご記入ください。\",IF(AZ424<>SUM(AZ427,AZ430),\"内訳の合計値が（１）の「死亡者数」と一致していません。（１）の内数をご記入ください。\",\"\")))","v":""}]
[]
["② 医療機関での看取り数【平成28年７月１日～平成29年６月30日の１年間】"]
[null,"直近１年間に在宅療養を担当した患者について"]
[]
[null,"（２）医療機関での死亡者数【平成28年７月１日～平成29年６月30日の１年間】",null,null,null,null,null,null,null,null,null,null,null,null,null,null,null,null,null,null,null,null,null,null,null,null,null,null,null,null,null,null,null,null,null,null,null,null,null,null,null,null,null,null,null,null,null,"(126)",null,null,null,{"$f":"SUM(AZ438,AZ441)","v":0},null,null,null,null,null,null,null,null,null,null,null,"人",null,null,{"$f":"IF(AND(COUNTA(AZ427,AZ430,AZ438,AZ441)>0,AZ435=\"\"),\"「死亡者数」に未記入の欄があります。ご報告いただく場合には、当該項目のすべての設問にご記入ください。死亡者数が0の場合は「0」とご記入ください。\",\"\")","v":""}]
[]
[]
[null,null,"上記（２）のうち、連携医療機関での死亡者数【平成28年７月１日～平成29年６月30日の１年間】",null,null,null,null,null,null,null,null,null,null,null,null,null,null,null,null,null,null,null,null,null,null,null,null,null,null,null,null,null,null,null,null,null,null,null,null,null,null,null,null,null,null,null,null,"(127)",null,null,null,null,null,null,null,null,null,null,null,null,null,null,null,"人",null,{"$f":"IF(BO438<>\"\",\"●\",\"\")","v":""},{"$f":"IF(AND(COUNTA(AZ427,AZ430,AZ438,AZ441)>0,AZ438=\"\"),\"内数の「死亡者数」に未記入の欄があります。ご報告いただく場合には、当該項目のすべての設問にご記入ください。死亡者数が0の場合は「0」とご記入ください。\",IF(AZ435<AZ438,\"（２）の「死亡者数」よりも値が大きくなっています。（２）の内数をご記入ください。\",IF(AZ435<>SUM(AZ438,AZ441),\"内訳の合計値が（２）の「死亡者数」と一致していません。（２）の内数をご記入ください。\",\"\")))","v":""}]
[]
[]
[null,null,"上記（２）のうち、連携医療機関以外での死亡者数【平成28年７月１日～平成29年６月30日の１年間】",null,null,null,null,null,null,null,null,null,null,null,null,null,null,null,null,null,null,null,null,null,null,null,null,null,null,null,null,null,null,null,null,null,null,null,null,null,null,null,null,null,null,null,null,"(128)",null,null,null,null,null,null,null,null,null,null,null,null,null,null,null,"人",null,{"$f":"IF(BO441<>\"\",\"●\",\"\")","v":""},{"$f":"IF(AND(COUNTA(AZ427,AZ430,AZ438,AZ441)>0,AZ441=\"\"),\"内数の「死亡者数」に未記入の欄があります。ご報告いただく場合には、当該項目のすべての設問にご記入ください。死亡者数が0の場合は「0」とご記入ください。\",IF(AZ435<AZ441,\"（２）の「死亡者数」よりも値が大きくなっています。（２）の内数をご記入ください。\",IF(AZ435<>SUM(AZ438,AZ441),\"内訳の合計値が（２）の「死亡者数」と一致していません。（２）の内数をご記入ください。\",\"\")))","v":""}]
[]
["※ 自院で死亡した患者については、「医療機関での死亡者数」の「上記（２）のうち、連携医療機関での死亡者数」欄へ計上してください。"]
["※ 介護老人保健施設等の入所施設で死亡した患者については、「医療機関以外での死亡者数」の「上記（１）のうち、自宅以外での死亡者数」欄へ計上してください。"]
[]
[]
["15．分娩件数（正常分娩、帝王切開を含む、死産を除く）【平成29年６月の１か月間】",null,null,null,null,null,null,null,null,null,null,null,null,null,null,null,null,null,null,null,null,null,null,null,null,null,null,null,null,null,null,null,null,null,null,null,null,null,null,null,null,null,null,null,null,null,null,"(129)",null,null,null,null,null,null,null,null,null,null,null,null,null,null,null,"件"]
[]
[]
["16．救急医療の実施状況"]
[null,"※休日とは、日曜日及び国民の祝日に関する法律第３条に規定する休日、１月２日及び３日並びに12月29日、30日及び31日を指します。また、夜間・時間外とは、貴院が表示する診療時間以外の時間（休日を除く）を指します。"]
[null,"※休日の夜間に受診した患者については、休日に受診した患者延べ数にのみ計上してください。"]
[]
["① 休日に受診した患者延べ数【平成28年７月１日～平成29年６月30日の１年間】",null,null,null,null,null,null,null,null,null,null,null,null,null,null,null,null,null,null,null,null,null,null,null,null,null,null,null,null,null,null,null,null,null,null,null,null,null,null,null,null,null,null,null,null,null,null,"(130)",null,null,null,null,null,null,null,null,null,null,null,null,null,null,null,"人",null,{"$f":"IF(BO454<>\"\",\"●\",\"\")","v":""},{"$f":"IF(AND(COUNTA(AZ454,AZ457)>0,AZ454=\"\"),\"①の「患者数」に未記入の欄があります。ご報告いただく場合には、当該項目のすべての設問にご記入ください。患者数が0の場合は「0」とご記入ください。\",\"\")","v":""}]
[]
[]
[null,"上記①のうち、診察後直ちに入院となった患者延べ数【平成28年７月１日～平成29年６月30日の１年間】",null,null,null,null,null,null,null,null,null,null,null,null,null,null,null,null,null,null,null,null,null,null,null,null,null,null,null,null,null,null,null,null,null,null,null,null,null,null,null,null,null,null,null,null,null,"(131)",null,null,null,null,null,null,null,null,null,null,null,null,null,null,null,"人",null,{"$f":"IF(BO457<>\"\",\"●\",\"\")","v":""},{"$f":"IF(AND(COUNTA(AZ454,AZ457)>0,AZ457=\"\"),\"内数の「患者数」に未記入の欄があります。ご報告いただく場合には、当該項目のすべての設問にご記入ください。患者数が0の場合は「0」とご記入ください。\",IF(AZ454<AZ457,\"①の「患者延べ数」よりも値が大きくなっています。①の内数をご記入ください。\",\"\"))","v":""}]
[]
[]
["② 夜間・時間外に受診した患者延べ数【平成28年７月１日～平成29年６月30日の１年間】",null,null,null,null,null,null,null,null,null,null,null,null,null,null,null,null,null,null,null,null,null,null,null,null,null,null,null,null,null,null,null,null,null,null,null,null,null,null,null,null,null,null,null,null,null,null,"(132)",null,null,null,null,null,null,null,null,null,null,null,null,null,null,null,"人",null,{"$f":"IF(BO460<>\"\",\"●\",\"\")","v":""},{"$f":"IF(AND(COUNTA(AZ460,AZ463)>0,AZ460=\"\"),\"②の「患者数」に未記入の欄があります。ご報告いただく場合には、当該項目のすべての設問にご記入ください。患者数が0の場合は「0」とご記入ください。\",\"\")","v":""}]
[]
[]
[null,"上記②のうち、診察後直ちに入院となった患者延べ数【平成28年７月１日～平成29年６月30日の１年間】",null,null,null,null,null,null,null,null,null,null,null,null,null,null,null,null,null,null,null,null,null,null,null,null,null,null,null,null,null,null,null,null,null,null,null,null,null,null,null,null,null,null,null,null,null,"(133)",null,null,null,null,null,null,null,null,null,null,null,null,null,null,null,"人",null,{"$f":"IF(BO463<>\"\",\"●\",\"\")","v":""},{"$f":"IF(AND(COUNTA(AZ460,AZ463)>0,AZ463=\"\"),\"内数の「患者数」に未記入の欄があります。ご報告いただく場合には、当該項目のすべての設問にご記入ください。患者数が0の場合は「0」とご記入ください。\",IF(AZ460<AZ463,\"②の「患者延べ数」よりも値が大きくなっています。②の内数をご記入ください。\",\"\"))","v":""}]
[]
[]
["③ 救急車の受入件数【平成28年７月１日～平成29年６月30日の１年間】",null,null,null,null,null,null,null,null,null,null,null,null,null,null,null,null,null,null,null,null,null,null,null,null,null,null,null,null,null,null,null,null,null,null,null,null,null,null,null,null,null,null,null,null,null,null,"(134)",null,null,null,null,null,null,null,null,null,null,null,null,null,null,null,"件"]
[]
[]
["17．リハビリテーションの状況"]
[]
["① リハビリテーションを実施した患者の割合【平成29年６月の１か月間】（小数点第２位を四捨五入）",null,null,null,null,null,null,null,null,null,null,null,null,null,null,null,null,null,null,null,null,null,null,null,null,null,null,null,null,null,null,null,null,null,null,null,null,null,null,null,null,null,null,null,null,null,null,null,null,"(135)",null,null,null,null,null,null,null,null,null,null,null,null,null,"％",null,{"$f":"IF(BO471<>\"\",\"●\",\"\")","v":""},{"$f":"IF(BB471=\"\",\"\",IF(BB471>100,\"「患者割合」が100％を超えています。正しい患者割合をご記入ください。\",\"\"))","v":""}]
[]
[]
["② 平均リハ単位数（１患者１日当たり）【平成29年６月の１ヵ月間の平均】（小数点第２位を四捨五入）",null,null,null,null,null,null,null,null,null,null,null,null,null,null,null,null,null,null,null,null,null,null,null,null,null,null,null,null,null,null,null,null,null,null,null,null,null,null,null,null,null,null,null,null,null,null,"(136)",null,null,null,null,null,null,null,null,null,null,null,null,null,null,null,"単位",null,{"$f":"IF(BO474<>\"\",\"●\",\"\")","v":""},{"$f":"IF(AZ474=\"\",\"\",IF(AZ474>36,\"平均リハ単位数が過大（１患者１日当たり平均36単位を超える値）となっています。１患者１日当たりの平均リハ単位数をご記入ください。\",\"\"))","v":""}]
[]
[null,null,null,null,null,null,null,null,null,null,null,null,null,null,null,null,null,null,null,null,null,null,null,null,null,null,null,null,null,null,null,null,null,null,null,null,null,null,null,null,null,null,null,null,null,null,null,null,null,null,"※上記の項目９.－③「退院\n　患者数」の患者数"]
["③ 過去１年間の総退院患者数【平成28年７月１日～平成29年６月30日の１年間】",null,null,null,null,null,null,null,null,null,null,null,null,null,null,null,null,null,null,null,null,null,null,null,null,null,null,null,null,null,null,null,null,null,null,null,null,null,null,null,null,null,null,null,null,null,null,"(137)"]
[]
[null,"④ 上記③のうち、入院時の日常生活機能評価が10点以上であった患者数\n　 【平成28年７月１日～平成29年６月30日の１年間】"]
[null,null,null,null,null,null,null,null,null,null,null,null,null,null,null,null,null,null,null,null,null,null,null,null,null,null,null,null,null,null,null,null,null,null,null,null,null,null,null,null,null,null,null,null,null,null,null,"(138)",null,null,null,null,null,null,null,null,null,null,null,null,null,null,null,"人",null,{"$f":"IF(BO480<>\"\",\"●\",\"\")","v":""},{"$f":"IF(AND(AZ480=\"\",AZ484=\"\"),\"\",IF(AND(COUNTA(AZ480,AZ484)>0,AZ480=\"\"),\"④の「患者数」に未記入の欄があります。ご報告いただく場合には、当該項目のすべての設問にご記入ください。患者数が0の場合は「0」とご記入ください。\",IF(AZ283<AZ480,\"上記の項目９．－③の「退院患者数」よりも値が大きくなっています。項目９．－③「退院患者数」の内数をご記入ください。\",\"\")))","v":""}]
[]
[null,null,"⑤ 上記④のうち、退院時（転院時を含む）の日常生活機能評価が、入院時に比較して\n　 ３点以上（回復期リハビリテーション病棟入院料１の場合には４点以上）改善\n　 していた患者数【平成28年７月１日～平成29年６月30日の１年間】"]
[]
[null,null,null,null,null,null,null,null,null,null,null,null,null,null,null,null,null,null,null,null,null,null,null,null,null,null,null,null,null,null,null,null,null,null,null,null,null,null,null,null,null,null,null,null,null,null,null,"(139)",null,null,null,null,null,null,null,null,null,null,null,null,null,null,null,"人",null,{"$f":"IF(BO484<>\"\",\"●\",\"\")","v":""},{"$f":"IF(AND(COUNTA(AZ480,AZ484)>0,AZ484=\"\"),\"⑤の「患者数」に未記入の欄があります。ご報告いただく場合には、当該項目のすべての設問にご記入ください。患者数が0の場合は「0」とご記入ください。\",IF(AZ480<AZ484,\"④の「患者数」よりも値が大きくなっています。④の内数をご記入ください。\",\"\"))","v":""}]
[]
[]
[]
["18．医療機器の台数【平成29年７月１日時点】"]
[]
["① ＣＴ",null,null,null,null,null,null,null,null,null,null,null,null,null,"　マルチスライスＣＴ",null,null,null,null,null,null,null,null,null,null,null,null,null,null,null,null,null,null,null,null,null,"　64列以上",null,null,null,null,null,null,null,null,null,null,null,null,null,null,null,null,null,null,"(140)",null,null,null,null,null,null,null,"台",null,{"$f":"IF(BO490<>\"\",\"●\",\"\")","v":""},{"$f":"IF(AND(COUNTA($BH$490,$BH$493,$BH$496,$BH$499,$BH$502,$BH$505,$BH$508,$BH$511,$BH$514,$BH$517,$BH$520,$BH$523,$BH$526,$BH$529,$BH$532,$BH$535,$BH$538)>0,BH490=\"\"),\"項目18．の「台数」に未記入の欄があります。ご報告いただく場合には、当該項目のすべての設問にご記入ください。台数が0の場合は「0」とご記入ください。\",\"\")","v":""}]
[]
[]
[null,null,null,null,null,null,null,null,null,null,null,null,null,null,null,null,null,null,null,null,null,null,null,null,null,null,null,null,null,null,null,null,null,null,null,null,"　16列以上64列未満",null,null,null,null,null,null,null,null,null,null,null,null,null,null,null,null,null,null,"(141)",null,null,null,null,null,null,null,"台",null,{"$f":"IF(BO493<>\"\",\"●\",\"\")","v":""},{"$f":"IF(AND(COUNTA($BH$490,$BH$493,$BH$496,$BH$499,$BH$502,$BH$505,$BH$508,$BH$511,$BH$514,$BH$517,$BH$520,$BH$523,$BH$526,$BH$529,$BH$532,$BH$535,$BH$538)>0,BH493=\"\"),\"項目18．の「台数」に未記入の欄があります。ご報告いただく場合には、当該項目のすべての設問にご記入ください。台数が0の場合は「0」とご記入ください。\",\"\")","v":""}]
[]
[]
[null,null,null,null,null,null,null,null,null,null,null,null,null,null,null,null,null,null,null,null,null,null,null,null,null,null,null,null,null,null,null,null,null,null,null,null,"　16列未満",null,null,null,null,null,null,null,null,null,null,null,null,null,null,null,null,null,null,"(142)",null,null,null,null,null,null,null,"台",null,{"$f":"IF(BO496<>\"\",\"●\",\"\")","v":""},{"$f":"IF(AND(COUNTA($BH$490,$BH$493,$BH$496,$BH$499,$BH$502,$BH$505,$BH$508,$BH$511,$BH$514,$BH$517,$BH$520,$BH$523,$BH$526,$BH$529,$BH$532,$BH$535,$BH$538)>0,BH496=\"\"),\"項目18．の「台数」に未記入の欄があります。ご報告いただく場合には、当該項目のすべての設問にご記入ください。台数が0の場合は「0」とご記入ください。\",\"\")","v":""}]
[]
[]
[null,null,null,null,null,null,null,null,null,null,null,null,null,null,"　その他のＣＴ（上記の多列検出器ＣＴ以外のＣＴ）",null,null,null,null,null,null,null,null,null,null,null,null,null,null,null,null,null,null,null,null,null,null,null,null,null,null,null,null,null,null,null,null,null,null,null,null,null,null,null,null,"(143)",null,null,null,null,null,null,null,"台",null,{"$f":"IF(BO499<>\"\",\"●\",\"\")","v":""},{"$f":"IF(AND(COUNTA($BH$490,$BH$493,$BH$496,$BH$499,$BH$502,$BH$505,$BH$508,$BH$511,$BH$514,$BH$517,$BH$520,$BH$523,$BH$526,$BH$529,$BH$532,$BH$535,$BH$538)>0,BH499=\"\"),\"項目18．の「台数」に未記入の欄があります。ご報告いただく場合には、当該項目のすべての設問にご記入ください。台数が0の場合は「0」とご記入ください。\",\"\")","v":""}]
[]
[]
["② ＭＲＩ",null,null,null,null,null,null,null,null,null,null,null,null,null,"　３テスラ以上",null,null,null,null,null,null,null,null,null,null,null,null,null,null,null,null,null,null,null,null,null,null,null,null,null,null,null,null,null,null,null,null,null,null,null,null,null,null,null,null,"(144)",null,null,null,null,null,null,null,"台",null,{"$f":"IF(BO502<>\"\",\"●\",\"\")","v":""},{"$f":"IF(AND(COUNTA($BH$490,$BH$493,$BH$496,$BH$499,$BH$502,$BH$505,$BH$508,$BH$511,$BH$514,$BH$517,$BH$520,$BH$523,$BH$526,$BH$529,$BH$532,$BH$535,$BH$538)>0,BH502=\"\"),\"項目18．の「台数」に未記入の欄があります。ご報告いただく場合には、当該項目のすべての設問にご記入ください。台数が0の場合は「0」とご記入ください。\",\"\")","v":""}]
[]
[]
[null,null,null,null,null,null,null,null,null,null,null,null,null,null,"　1.5テスラ以上３テスラ未満",null,null,null,null,null,null,null,null,null,null,null,null,null,null,null,null,null,null,null,null,null,null,null,null,null,null,null,null,null,null,null,null,null,null,null,null,null,null,null,null,"(145)",null,null,null,null,null,null,null,"台",null,{"$f":"IF(BO505<>\"\",\"●\",\"\")","v":""},{"$f":"IF(AND(COUNTA($BH$490,$BH$493,$BH$496,$BH$499,$BH$502,$BH$505,$BH$508,$BH$511,$BH$514,$BH$517,$BH$520,$BH$523,$BH$526,$BH$529,$BH$532,$BH$535,$BH$538)>0,BH505=\"\"),\"項目18．の「台数」に未記入の欄があります。ご報告いただく場合には、当該項目のすべての設問にご記入ください。台数が0の場合は「0」とご記入ください。\",\"\")","v":""}]
[]
[]
[null,null,null,null,null,null,null,null,null,null,null,null,null,null,"　1.5テスラ未満",null,null,null,null,null,null,null,null,null,null,null,null,null,null,null,null,null,null,null,null,null,null,null,null,null,null,null,null,null,null,null,null,null,null,null,null,null,null,null,null,"(146)",null,null,null,null,null,null,null,"台",null,{"$f":"IF(BO508<>\"\",\"●\",\"\")","v":""},{"$f":"IF(AND(COUNTA($BH$490,$BH$493,$BH$496,$BH$499,$BH$502,$BH$505,$BH$508,$BH$511,$BH$514,$BH$517,$BH$520,$BH$523,$BH$526,$BH$529,$BH$532,$BH$535,$BH$538)>0,BH508=\"\"),\"項目18．の「台数」に未記入の欄があります。ご報告いただく場合には、当該項目のすべての設問にご記入ください。台数が0の場合は「0」とご記入ください。\",\"\")","v":""}]
[]
[]
["③ その他の医療機器",null,null,null,null,null,null,null,null,null,null,null,null,null,"　血管連続撮影装置※",null,null,null,null,null,null,null,null,null,null,null,null,null,null,null,null,null,null,null,null,null,null,null,null,null,null,null,null,null,null,null,null,null,null,null,null,null,null,null,null,"(147)",null,null,null,null,null,null,null,"台",null,{"$f":"IF(BO511<>\"\",\"●\",\"\")","v":""},{"$f":"IF(AND(COUNTA($BH$490,$BH$493,$BH$496,$BH$499,$BH$502,$BH$505,$BH$508,$BH$511,$BH$514,$BH$517,$BH$520,$BH$523,$BH$526,$BH$529,$BH$532,$BH$535,$BH$538)>0,BH511=\"\"),\"項目18．の「台数」に未記入の欄があります。ご報告いただく場合には、当該項目のすべての設問にご記入ください。台数が0の場合は「0」とご記入ください。\",\"\")","v":""}]
[]
[]
[null,null,null,null,null,null,null,null,null,null,null,null,null,null,"　ＳＰＥＣＴ",null,null,null,null,null,null,null,null,null,null,null,null,null,null,null,null,null,null,null,null,null,null,null,null,null,null,null,null,null,null,null,null,null,null,null,null,null,null,null,null,"(148)",null,null,null,null,null,null,null,"台",null,{"$f":"IF(BO514<>\"\",\"●\",\"\")","v":""},{"$f":"IF(AND(COUNTA($BH$490,$BH$493,$BH$496,$BH$499,$BH$502,$BH$505,$BH$508,$BH$511,$BH$514,$BH$517,$BH$520,$BH$523,$BH$526,$BH$529,$BH$532,$BH$535,$BH$538)>0,BH514=\"\"),\"項目18．の「台数」に未記入の欄があります。ご報告いただく場合には、当該項目のすべての設問にご記入ください。台数が0の場合は「0」とご記入ください。\",\"\")","v":""}]
[]
[]
[null,null,null,null,null,null,null,null,null,null,null,null,null,null,"　ＰＥＴ",null,null,null,null,null,null,null,null,null,null,null,null,null,null,null,null,null,null,null,null,null,null,null,null,null,null,null,null,null,null,null,null,null,null,null,null,null,null,null,null,"(149)",null,null,null,null,null,null,null,"台",null,{"$f":"IF(BO517<>\"\",\"●\",\"\")","v":""},{"$f":"IF(AND(COUNTA($BH$490,$BH$493,$BH$496,$BH$499,$BH$502,$BH$505,$BH$508,$BH$511,$BH$514,$BH$517,$BH$520,$BH$523,$BH$526,$BH$529,$BH$532,$BH$535,$BH$538)>0,BH517=\"\"),\"項目18．の「台数」に未記入の欄があります。ご報告いただく場合には、当該項目のすべての設問にご記入ください。台数が0の場合は「0」とご記入ください。\",\"\")","v":""}]
[]
[]
[null,null,null,null,null,null,null,null,null,null,null,null,null,null,"　ＰＥＴＣＴ",null,null,null,null,null,null,null,null,null,null,null,null,null,null,null,null,null,null,null,null,null,null,null,null,null,null,null,null,null,null,null,null,null,null,null,null,null,null,null,null,"(150)",null,null,null,null,null,null,null,"台",null,{"$f":"IF(BO520<>\"\",\"●\",\"\")","v":""},{"$f":"IF(AND(COUNTA($BH$490,$BH$493,$BH$496,$BH$499,$BH$502,$BH$505,$BH$508,$BH$511,$BH$514,$BH$517,$BH$520,$BH$523,$BH$526,$BH$529,$BH$532,$BH$535,$BH$538)>0,BH520=\"\"),\"項目18．の「台数」に未記入の欄があります。ご報告いただく場合には、当該項目のすべての設問にご記入ください。台数が0の場合は「0」とご記入ください。\",\"\")","v":""}]
[]
[]
[null,null,null,null,null,null,null,null,null,null,null,null,null,null,"　ＰＥＴＭＲＩ",null,null,null,null,null,null,null,null,null,null,null,null,null,null,null,null,null,null,null,null,null,null,null,null,null,null,null,null,null,null,null,null,null,null,null,null,null,null,null,null,"(151)",null,null,null,null,null,null,null,"台",null,{"$f":"IF(BO523<>\"\",\"●\",\"\")","v":""},{"$f":"IF(AND(COUNTA($BH$490,$BH$493,$BH$496,$BH$499,$BH$502,$BH$505,$BH$508,$BH$511,$BH$514,$BH$517,$BH$520,$BH$523,$BH$526,$BH$529,$BH$532,$BH$535,$BH$538)>0,BH523=\"\"),\"項目18．の「台数」に未記入の欄があります。ご報告いただく場合には、当該項目のすべての設問にご記入ください。台数が0の場合は「0」とご記入ください。\",\"\")","v":""}]
[]
[]
[null,null,null,null,null,null,null,null,null,null,null,null,null,null,"　ガンマナイフ",null,null,null,null,null,null,null,null,null,null,null,null,null,null,null,null,null,null,null,null,null,null,null,null,null,null,null,null,null,null,null,null,null,null,null,null,null,null,null,null,"(152)",null,null,null,null,null,null,null,"台",null,{"$f":"IF(BO526<>\"\",\"●\",\"\")","v":""},{"$f":"IF(AND(COUNTA($BH$490,$BH$493,$BH$496,$BH$499,$BH$502,$BH$505,$BH$508,$BH$511,$BH$514,$BH$517,$BH$520,$BH$523,$BH$526,$BH$529,$BH$532,$BH$535,$BH$538)>0,BH526=\"\"),\"項目18．の「台数」に未記入の欄があります。ご報告いただく場合には、当該項目のすべての設問にご記入ください。台数が0の場合は「0」とご記入ください。\",\"\")","v":""}]
[]
[]
[null,null,null,null,null,null,null,null,null,null,null,null,null,null,"　サイバーナイフ",null,null,null,null,null,null,null,null,null,null,null,null,null,null,null,null,null,null,null,null,null,null,null,null,null,null,null,null,null,null,null,null,null,null,null,null,null,null,null,null,"(153)",null,null,null,null,null,null,null,"台",null,{"$f":"IF(BO529<>\"\",\"●\",\"\")","v":""},{"$f":"IF(AND(COUNTA($BH$490,$BH$493,$BH$496,$BH$499,$BH$502,$BH$505,$BH$508,$BH$511,$BH$514,$BH$517,$BH$520,$BH$523,$BH$526,$BH$529,$BH$532,$BH$535,$BH$538)>0,BH529=\"\"),\"項目18．の「台数」に未記入の欄があります。ご報告いただく場合には、当該項目のすべての設問にご記入ください。台数が0の場合は「0」とご記入ください。\",\"\")","v":""}]
[]
[]
[null,null,null,null,null,null,null,null,null,null,null,null,null,null,"　強度変調放射線治療器",null,null,null,null,null,null,null,null,null,null,null,null,null,null,null,null,null,null,null,null,null,null,null,null,null,null,null,null,null,null,null,null,null,null,null,null,null,null,null,null,"(154)",null,null,null,null,null,null,null,"台",null,{"$f":"IF(BO532<>\"\",\"●\",\"\")","v":""},{"$f":"IF(AND(COUNTA($BH$490,$BH$493,$BH$496,$BH$499,$BH$502,$BH$505,$BH$508,$BH$511,$BH$514,$BH$517,$BH$520,$BH$523,$BH$526,$BH$529,$BH$532,$BH$535,$BH$538)>0,BH532=\"\"),\"項目18．の「台数」に未記入の欄があります。ご報告いただく場合には、当該項目のすべての設問にご記入ください。台数が0の場合は「0」とご記入ください。\",\"\")","v":""}]
[]
[]
[null,null,null,null,null,null,null,null,null,null,null,null,null,null,"　遠隔操作式密封小線源治療装置",null,null,null,null,null,null,null,null,null,null,null,null,null,null,null,null,null,null,null,null,null,null,null,null,null,null,null,null,null,null,null,null,null,null,null,null,null,null,null,null,"(155)",null,null,null,null,null,null,null,"台",null,{"$f":"IF(BO535<>\"\",\"●\",\"\")","v":""},{"$f":"IF(AND(COUNTA($BH$490,$BH$493,$BH$496,$BH$499,$BH$502,$BH$505,$BH$508,$BH$511,$BH$514,$BH$517,$BH$520,$BH$523,$BH$526,$BH$529,$BH$532,$BH$535,$BH$538)>0,BH535=\"\"),\"項目18．の「台数」に未記入の欄があります。ご報告いただく場合には、当該項目のすべての設問にご記入ください。台数が0の場合は「0」とご記入ください。\",\"\")","v":""}]
[]
[]
[null,null,null,null,null,null,null,null,null,null,null,null,null,null,"　内視鏡手術用支援機器（ダヴィンチ）",null,null,null,null,null,null,null,null,null,null,null,null,null,null,null,null,null,null,null,null,null,null,null,null,null,null,null,null,null,null,null,null,null,null,null,null,null,null,null,null,"(156)",null,null,null,null,null,null,null,"台",null,{"$f":"IF(BO538<>\"\",\"●\",\"\")","v":""},{"$f":"IF(AND(COUNTA($BH$490,$BH$493,$BH$496,$BH$499,$BH$502,$BH$505,$BH$508,$BH$511,$BH$514,$BH$517,$BH$520,$BH$523,$BH$526,$BH$529,$BH$532,$BH$535,$BH$538)>0,BH538=\"\"),\"項目18．の「台数」に未記入の欄があります。ご報告いただく場合には、当該項目のすべての設問にご記入ください。台数が0の場合は「0」とご記入ください。\",\"\")","v":""}]
[]
["※ デジタル・サブトラクション・アンギオグラフィー法を行う装置。"]
[]
["19．退院調整部門の設置状況【平成29年７月１日時点】"]
[]
["① 退院調整部門の有無",null,null,null,null,null,null,null,null,null,null,null,null,null,null,null,null,null,null,null,null,null,null,null,null,null,null,null,null,"　１．有り　２．無し",null,null,null,null,null,null,null,null,null,null,null,null,null,null,null,null,null,null,null,"該当番号 ⇒(157)",null,null,null,null,null,null,null,null,null,null,null,null,null,null,null,{"$f":"IF(BO544<>\"\",\"●\",\"\")","v":""},{"$f":"IF(AND(OR(BH544=2,BH544=\"\"),SUM(H549,R549,AP549,AZ549,H552,R552,AP552,AZ552,H555,R555,AP555,AZ555)>0),\"①の退院調整部門が未記入あるいは「２．無し」と記入されていますが、②の「職員数」が計上されています。退院調整部門が設置されている場合は、「１．有り」をご記入ください。\",IF(AND(BH544=1,SUM(H549,R549,AP549,AZ549,H552,R552,AP552,AZ552,H555,R555,AP555,AZ555)=0),\"①の退院調整部門が「１．有り」と記入されていますが、②の「職員数」が計上されていません。退院調整部門が設置されていない場合は、「２．無し」をご記入ください。\",\"\"))","v":""}]
[]
["② 退院調整部門に勤務する職員数"]
[null,null,null,null,null,null,"専　従\n従事者の実人数\n",null,null,null,null,null,null,null,null,null,"専　任\n従事者の常勤換算\n（小数点第２位四捨五入）",null,null,null,null,null,null,null,null,null,null,null,null,null,null,null,null,null,null,null,null,null,null,null,"専　従\n従事者の実人数\n",null,null,null,null,null,null,null,null,null,"専　任\n従事者の常勤換算\n（小数点第２位四捨五入）"]
[]
["(158) 医師",null,null,null,null,null,null,null,null,null,null,null,null,null,null,"人",null,null,null,null,null,null,null,null,null,null,null,null,null,"人","(159) 看護職員",null,null,null,null,null,null,null,null,null,null,null,null,null,null,null,null,null,null,"人",null,null,null,null,null,null,null,null,null,null,null,null,null,"人",null,{"$f":"IF(BO549<>\"\",\"●\",\"\")","v":""},{"$f":"IF(AND(COUNTA(H549,R549,AP549,AZ549,H552,R552,AP552,AZ552,H555,R555,AP555,AZ555)>0,OR(H549=\"\",R549=\"\",AP549=\"\",AZ549=\"\")),\"②の「職員数」に未記入の欄があります。ご報告いただく場合には、当該項目のすべての設問にご記入ください。職員数が0の場合は「0」とご記入ください。\",IF(OR(H549-INT(H549)>0,AP549-INT(AP549)>0),\"専従の「職員数」に小数点以下が入力されています。専従の職員数は整数でご記入ください。\",\"\"))","v":""}]
[]
[null,null,null,null,null,null,null,null,null,null,null,null,null,null,null,null,null,null,null,null,null,null,null,null,null,null,null,null,null,null,"(161) 【再掲】ＭＳＷのうち、社会福祉士の資格を有する者"]
["(160) ＭＳＷ",null,null,null,null,null,null,null,null,null,null,null,null,null,null,"人",null,null,null,null,null,null,null,null,null,null,null,null,null,"人",null,null,null,null,null,null,null,null,null,null,null,null,null,null,null,null,null,null,null,"人",null,null,null,null,null,null,null,null,null,null,null,null,null,"人",null,{"$f":"IF(BO552<>\"\",\"●\",\"\")","v":""},{"$f":"IF(AND(COUNTA(H549,R549,AP549,AZ549,H552,R552,AP552,AZ552,H555,R555,AP555,AZ555)>0,OR(H552=\"\",R552=\"\",AP552=\"\",AZ552=\"\")),\"②の「職員数」に未記入の欄があります。ご報告いただく場合には、当該項目のすべての設問にご記入ください。職員数が0の場合は「0」とご記入ください。\",IF(OR(H552<AP552,R552<AZ552),\"「ＭＳＷ」の職員数よりも「ＭＳＷのうち、社会福祉士の資格を有する者」の職員数が大きくなっています。再掲は「ＭＳＷ」の職員数の内数をご記入ください。\",IF(OR(H552-INT(H552)>0,AP552-INT(AP552)>0),\"専従の「職員数」に小数点以下が入力されています。専従の職員数は整数でご記入ください。\",\"\")))","v":""}]
[]
[]
["(162) 事務員",null,null,null,null,null,null,null,null,null,null,null,null,null,null,"人",null,null,null,null,null,null,null,null,null,null,null,null,null,"人","(163) その他",null,null,null,null,null,null,null,null,null,null,null,null,null,null,null,null,null,null,"人",null,null,null,null,null,null,null,null,null,null,null,null,null,"人",null,{"$f":"IF(BO555<>\"\",\"●\",\"\")","v":""},{"$f":"IF(AND(COUNTA(H549,R549,AP549,AZ549,H552,R552,AP552,AZ552,H555,R555,AP555,AZ555)>0,OR(H555=\"\",R555=\"\",AP555=\"\",AZ555=\"\")),\"②の「職員数」に未記入の欄があります。ご報告いただく場合には、当該項目のすべての設問にご記入ください。職員数が0の場合は「0」とご記入ください。\",IF(OR(H555-INT(H555)>0,AP555-INT(AP555)>0),\"専従の「職員数」に小数点以下が入力されています。専従の職員数は整数でご記入ください。\",\"\"))","v":""}]
[]
[]
[null,null,"本有床診療所票の報告内容について、貴院で平成28年７月１日～平成29年６月30日の期間内に入院部門の再編・見直しを行ったことで、過去１年間分の状況を平成29年７月１日時点の入院部門の単位で報告することが困難な場合は、下の項目にチェックを入れて、平成29年７月１日時点の入院部門の単位で「月単位」で報告が可能な過去の期間をご記入ください。本有床診療所票で過去１年間の状況を報告する項目では、ご記入いただいた対象期間における状況についてご記入ください。"]
[]
[null,null,null,null,null,null,null,null,null,null,null,null,null,null,null,null,null,null,"《報告可能な対象期間》"]
[null,"過去１年間の間に入院\n部門の再編・見直しあり"]
[null,null,null,null,null,null,null,null,null,null,null,null,null,"　",null,null,null,"⇒",null,"平成",null,null,null,null,null,null,null,"年",null,null,null,null,null,"月",null,"１日",null,null,"～",null,null,"平成",null,null,null,null,null,null,null,"年",null,null,null,null,null,"月","末日",null,null,null,null,null,null,null,null,{"$f":"IF(BO562<>\"\",\"●\",\"\")","v":""},{"$f":"IF(OR(N562=\"\",N562=\"　\"),IF(AND(X562=\"\",AD562=\"\",AT562=\"\",AZ562=\"\"),\"\",\"「チェックボックス」が未記入です。すべての欄にご記入ください。\"),IF(AND(X562<>\"\",AD562<>\"\",AT562<>\"\",AZ562<>\"\"),IF(AND(X562=28,AD562<7),\"「報告可能な対象期間」の開始年月日が平成28年７月１日より以前となっています。平成28年７月１日以降の年月をご記入ください。\",IF(AND(AT562=29,AZ562>6),\"「報告可能な対象期間」の終了年月日が平成29年６月30日以降となっています。平成29年６月30日以前の年月をご記入ください。\",IF(OR(X562>AT562,AND(X562=AT562,AD562>AZ562)),\"「報告可能な対象期間」の開始年月日と終了年月日の時系列が逆になっています。正しい年月日をご記入ください。\",IF(OR(X562<28,X562>29,AT562<28,AT562>29),\"「報告可能な対象期間」が平成28年以前か平成29年以降となっています。平成28年から平成29年の年月をご記入ください。\",\"\")))),\"「報告可能な対象期間」に未記入の欄があります。すべての欄にご記入ください。\"))","v":""}]
[]
[]
[]
["　その他、ご報告にあたっての特記事項【自由記入欄】"]
[]
[]
[]
[null,null,{"$f":"IF(COUNTIF($BN$3:$BN$562,\"●\")>0,\"未記入、もしくは記入内容の見直しが必要な欄があります。\",\"\")","v":"未記入、もしくは記入内容の見直しが必要な欄があります。"}]
[null,null,{"$f":"IF(COUNTIF($BN$3:$BN$562,\"●\")>0,\"報告様式の右側に表記されている内容をご確認ください。\",\"\")","v":"報告様式の右側に表記されている内容をご確認ください。"}]

{"sheet":"テキスト化ツール","index":2,"n_rows":3,"n_cols":7,"rows_kept":3,"cut":false,"hidden":false,"merged":[[0,0,1,11],[2,6,14,11]]}
["テキスト化ツール"]
[]
[null,null,null,null,null,null,"◆操作手順◆\n\n１．本ファイルの「診療所票H29」シートの各項目にご入力ください。\n\n２．左の「テキストファイル化　実行」ボタンを押下してください。\n\n３．以下の名称のテキストファイルが、デスクトップ上に作成された「H29病床機能報告_報告様式1入力ファイル(テキストファイル形式)」フォルダ内に格納されますので、ご確認ください。\n\n　・診療所票1(12_h29_1shinryoujo_1_XXXXXXXX_YYYYMMDDhhmmss.txt)\n　・診療所票2(12_h29_1shinryoujo_2_XXXXXXXX_YYYYMMDDhhmmss.txt)\n"]

{"sheet":"テキスト手動保存用1","index":3,"n_rows":4,"n_cols":178,"rows_kept":4,"cut":false,"hidden":false,"merged":[]}
[1,"4H29",null,null,null,null,null,null,null,null,null,{"$f":"IF(診療所票H29!S3=\"\",\"\",診療所票H29!S3)","v":""},{"$f":"IF(診療所票H29!S5=\"\",\"\",診療所票H29!S5)","v":""},{"$f":"IF(OR(診療所票H29!W7=\"\",診療所票H29!AI7=\"\"),\"\",診療所票H29!W7  & 診療所票H29!AE7&  診療所票H29!AI7)","v":""},{"$f":"IF(診療所票H29!S8=\"\",\"\",診療所票H29!S8)","v":""},{"$f":"IF(診療所票H29!S10=\"\",\"\",診療所票H29!S10)","v":""},{"$f":"IF(診療所票H29!S11=\"\",\"\",診療所票H29!S11)","v":""},{"$f":"IF(OR(診療所票H29!AE12=\"\",診療所票H29!AM12=\"\",診療所票H29!AW12=\"\"),\"\",診療所票H29!AE12 & 診療所票H29!AK12 & 診療所票H29!AM12&診療所票H29!AU12 & 診療所票H29!AW12)","v":""},{"$f":"IF(OR(診療所票H29!AE13=\"\",診療所票H29!AM13=\"\",診療所票H29!AW13=\"\"),\"\",診療所票H29!AE13 & 診療所票H29!AK13 & 診療所票H29!AM13&診療所票H29!AU13 & 診療所票H29!AW13)","v":""},{"$f":"IF(OR(診療所票H29!AA14=\"\",診療所票H29!AW14=\"\"),\"\",診療所票H29!AA14  & 診療所票H29!AU14&  診療所票H29!AW14)","v":""},{"$f":"IF(診療所票H29!BH18=\"\",\"\",診療所票H29!BH18)","v":""},{"$f":"IF(診療所票H29!BH21=\"\",\"\",診療所票H29!BH21)","v":""},{"$f":"IF(診療所票H29!BH24=\"\",\"\",診療所票H29!BH24)","v":""},{"$f":"IF(診療所票H29!BH29=\"\",\"\",診療所票H29!BH29)","v":""},{"$f":"IF(診療所票H29!BC39=\"\",\"\",診療所票H29!BC39)","v":"　"},{"$f":"IF(診療所票H29!BH51=\"\",\"\",診療所票H29!BH51)","v":""},{"$f":"IF(診療所票H29!BH59=\"\",\"\",診療所票H29!BH59)","v":""},{"$f":"IF(診療所票H29!BH62=\"\",\"\",診療所票H29!BH62)","v":""},{"$f":"IF(診療所票H29!BH80=\"\",\"\",診療所票H29!BH80)","v":""},{"$f":"IF(診療所票H29!BH83=\"\",\"\",診療所票H29!BH83)","v":""},{"$f":"IF(診療所票H29!BH86=\"\",\"\",診療所票H29!BH86)","v":""},{"$f":"IF(診療所票H29!BH91=\"\",\"\",診療所票H29!BH91)","v":""},{"$f":"IF(診療所票H29!N97=\"\",\"\",診療所票H29!N97)","v":""},{"$f":"IF(診療所票H29!AH97=\"\",\"\",診療所票H29!AH97)","v":""},{"$f":"IF(診療所票H29!AZ97=\"\",\"\",診療所票H29!AZ97)","v":""},{"$f":"IF(診療所票H29!BF97=\"\",\"\",診療所票H29!BF97)","v":""},{"$f":"IF(診療所票H29!AR107=\"\",\"\",診療所票H29!AR107)","v":""},{"$f":"IF(診療所票H29!AV107=\"\",\"\",診療所票H29!AV107)","v":""},{"$f":"IF(診療所票H29!AZ107=\"\",\"\",診療所票H29!AZ107)","v":""},{"$f":"IF(診療所票H29!BD107=\"\",\"\",診療所票H29!BD107)","v":""},{"$f":"IF(診療所票H29!BH107=\"\",\"\",診療所票H29!BH107)","v":""},{"$f":"IF(診療所票H29!AP114=\"\",\"\",診療所票H29!AP114)","v":""},{"$f":"IF(診療所票H29!AX114=\"\",\"\",診療所票H29!AX114)","v":0},{"$f":"IF(診療所票H29!BF114=\"\",\"\",診療所票H29!BF114)","v":""},{"$f":"IF(診療所票H29!AP117=\"\",\"\",診療所票H29!AP117)","v":""},{"$f":"IF(診療所票H29!AP120=\"\",\"\",診療所票H29!AP120)","v":""},{"$f":"IF(診療所票H29!AX120=\"\",\"\",診療所票H29!AX120)","v":0},{"$f":"IF(診療所票H29!BF120=\"\",\"\",診療所票H29!BF120)","v":""},{"$f":"IF(診療所票H29!AP123=\"\",\"\",診療所票H29!AP123)","v":""},{"$f":"IF(診療所票H29!AX123=\"\",\"\",診療所票H29!AX123)","v":0},{"$f":"IF(診療所票H29!BF123=\"\",\"\",診療所票H29!BF123)","v":""},{"$f":"IF(診療所票H29!AP126=\"\",\"\",診療所票H29!AP126)","v":0},{"$f":"IF(診療所票H29!AX126=\"\",\"\",診療所票H29!AX126)","v":0},{"$f":"IF(診療所票H29!BF126=\"\",\"\",診療所票H29!BF126)","v":0},{"$f":"IF(診療所票H29!A130=\"\",\"\",診療所票H29!A130)","v":""},{"$f":"IF(診療所票H29!BF134=\"\",\"\",診療所票H29!BF134)","v":""},{"$f":"IF(診療所票H29!BF137=\"\",\"\",診療所票H29!BF137)","v":""},{"$f":"IF(診療所票H29!BF140=\"\",\"\",診療所票H29!BF140)","v":""},{"$f":"IF(診療所票H29!BF143=\"\",\"\",診療所票H29!BF143)","v":0},{"$f":"IF(診療所票H29!H152=\"\",\"\",診療所票H29!H152)","v":""},{"$f":"IF(診療所票H29!R152=\"\",\"\",診療所票H29!R152)","v":""},{"$f":"IF(診療所票H29!AP152=\"\",\"\",診療所票H29!AP152)","v":""},{"$f":"IF(診療所票H29!AZ152=\"\",\"\",診療所票H29!AZ152)","v":""},{"$f":"IF(診療所票H29!H155=\"\",\"\",診療所票H29!H155)","v":0},{"$f":"IF(診療所票H29!R155=\"\",\"\",診療所票H29!R155)","v":0},{"$f":"IF(診療所票H29!AP155=\"\",\"\",診療所票H29!AP155)","v":0},{"$f":"IF(診療所票H29!AZ155=\"\",\"\",診療所票H29!AZ155)","v":0},{"$f":"IF(診療所票H29!H158=\"\",\"\",診療所票H29!H158)","v":0},{"$f":"IF(診療所票H29!R158=\"\",\"\",診療所票H29!R158)","v":0},{"$f":"IF(診療所票H29!AP158=\"\",\"\",診療所票H29!AP158)","v":0},{"$f":"IF(診療所票H29!AZ158=\"\",\"\",診療所票H29!AZ158)","v":0},{"$f":"IF(診療所票H29!H161=\"\",\"\",診療所票H29!H161)","v":0},{"$f":"IF(診療所票H29!R161=\"\",\"\",診療所票H29!R161)","v":0},{"$f":"IF(診療所票H29!AP161=\"\",\"\",診療所票H29!AP161)","v":0},{"$f":"IF(診療所票H29!AZ161=\"\",\"\",診療所票H29!AZ161)","v":0},{"$f":"IF(診療所票H29!H164=\"\",\"\",診療所票H29!H164)","v":0},{"$f":"IF(診療所票H29!R164=\"\",\"\",診療所票H29!R164)","v":0},{"$f":"IF(診療所票H29!AP164=\"\",\"\",診療所票H29!AP164)","v":0},{"$f":"IF(診療所票H29!AZ164=\"\",\"\",診療所票H29!AZ164)","v":0},{"$f":"IF(診療所票H29!H167=\"\",\"\",診療所票H29!H167)","v":""},{"$f":"IF(診療所票H29!R167=\"\",\"\",診療所票H29!R167)","v":""},{"$f":"IF(診療所票H29!AP167=\"\",\"\",診療所票H29!AP167)","v":""},{"$f":"IF(診療所票H29!AZ167=\"\",\"\",診療所票H29!AZ167)","v":""},{"$f":"IF(診療所票H29!H170=\"\",\"\",診療所票H29!H170)","v":0},{"$f":"IF(診療所票H29!R170=\"\",\"\",診療所票H29!R170)","v":0},{"$f":"IF(診療所票H29!AP170=\"\",\"\",診療所票H29!AP170)","v":0},{"$f":"IF(診療所票H29!AZ170=\"\",\"\",診療所票H29!AZ170)","v":0},{"$f":"IF(診療所票H29!H176=\"\",\"\",診療所票H29!H176)","v":""},{"$f":"IF(診療所票H29!R176=\"\",\"\",診療所票H29!R176)","v":""},{"$f":"IF(診療所票H29!AP176=\"\",\"\",診療所票H29!AP176)","v":""},{"$f":"IF(診療所票H29!AZ176=\"\",\"\",診療所票H29!AZ176)","v":""},{"$f":"IF(診療所票H29!H179=\"\",\"\",診療所票H29!H179)","v":""},{"$f":"IF(診療所票H29!R179=\"\",\"\",診療所票H29!R179)","v":""},{"$f":"IF(診療所票H29!AP179=\"\",\"\",診療所票H29!AP179)","v":""},{"$f":"IF(診療所票H29!AZ179=\"\",\"\",診療所票H29!AZ179)","v":""},{"$f":"IF(診療所票H29!H182=\"\",\"\",診療所票H29!H182)","v":""},{"$f":"IF(診療所票H29!R182=\"\",\"\",診療所票H29!R182)","v":""},{"$f":"IF(診療所票H29!AP182=\"\",\"\",診療所票H29!AP182)","v":""},{"$f":"IF(診療所票H29!AZ182=\"\",\"\",診療所票H29!AZ182)","v":""},{"$f":"IF(診療所票H29!H185=\"\",\"\",診療所票H29!H185)","v":""},{"$f":"IF(診療所票H29!R185=\"\",\"\",診療所票H29!R185)","v":""},{"$f":"IF(診療所票H29!AP185=\"\",\"\",診療所票H29!AP185)","v":""},{"$f":"IF(診療所票H29!AZ185=\"\",\"\",診療所票H29!AZ185)","v":""},{"$f":"IF(診療所票H29!H188=\"\",\"\",診療所票H29!H188)","v":""},{"$f":"IF(診療所票H29!R188=\"\",\"\",診療所票H29!R188)","v":""},{"$f":"IF(診療所票H29!AP188=\"\",\"\",診療所票H29!AP188)","v":""},{"$f":"IF(診療所票H29!AZ188=\"\",\"\",診療所票H29!AZ188)","v":""},{"$f":"IF(診療所票H29!BH191=\"\",\"\",診療所票H29!BH191)","v":""},{"$f":"IF(診療所票H29!H197=\"\",\"\",診療所票H29!H197)","v":""},{"$f":"IF(診療所票H29!R197=\"\",\"\",診療所票H29!R197)","v":""},{"$f":"IF(診療所票H29!AP197=\"\",\"\",診療所票H29!AP197)","v":""},{"$f":"IF(診療所票H29!AZ197=\"\",\"\",診療所票H29!AZ197)","v":""},{"$f":"IF(診療所票H29!H200=\"\",\"\",診療所票H29!H200)","v":""},{"$f":"IF(診療所票H29!R200=\"\",\"\",診療所票H29!R200)","v":""},{"$f":"IF(診療所票H29!AP200=\"\",\"\",診療所票H29!AP200)","v":""},{"$f":"IF(診療所票H29!AZ200=\"\",\"\",診療所票H29!AZ200)","v":""},{"$f":"IF(診療所票H29!H203=\"\",\"\",診療所票H29!H203)","v":""},{"$f":"IF(診療所票H29!R203=\"\",\"\",診療所票H29!R203)","v":""},{"$f":"IF(診療所票H29!AP203=\"\",\"\",診療所票H29!AP203)","v":""},{"$f":"IF(診療所票H29!AZ203=\"\",\"\",診療所票H29!AZ203)","v":""},{"$f":"IF(診療所票H29!H206=\"\",\"\",診療所票H29!H206)","v":""},{"$f":"IF(診療所票H29!R206=\"\",\"\",診療所票H29!R206)","v":""},{"$f":"IF(診療所票H29!AP206=\"\",\"\",診療所票H29!AP206)","v":""},{"$f":"IF(診療所票H29!AZ206=\"\",\"\",診療所票H29!AZ206)","v":""},{"$f":"IF(診療所票H29!H209=\"\",\"\",診療所票H29!H209)","v":""},{"$f":"IF(診療所票H29!R209=\"\",\"\",診療所票H29!R209)","v":""},{"$f":"IF(診療所票H29!AP209=\"\",\"\",診療所票H29!AP209)","v":""},{"$f":"IF(診療所票H29!AZ209=\"\",\"\",診療所票H29!AZ209)","v":""},{"$f":"IF(診療所票H29!H216=\"\",\"\",診療所票H29!H216)","v":""},{"$f":"IF(診療所票H29!R216=\"\",\"\",診療所票H29!R216)","v":""},{"$f":"IF(診療所票H29!AP216=\"\",\"\",診療所票H29!AP216)","v":""},{"$f":"IF(診療所票H29!AZ216=\"\",\"\",診療所票H29!AZ216)","v":""},{"$f":"IF(診療所票H29!H219=\"\",\"\",診療所票H29!H219)","v":""},{"$f":"IF(診療所票H29!R219=\"\",\"\",診療所票H29!R219)","v":""},{"$f":"IF(診療所票H29!AP219=\"\",\"\",診療所票H29!AP219)","v":""},{"$f":"IF(診療所票H29!AZ219=\"\",\"\",診療所票H29!AZ219)","v":""},{"$f":"IF(診療所票H29!H222=\"\",\"\",診療所票H29!H222)","v":""},{"$f":"IF(診療所票H29!R222=\"\",\"\",診療所票H29!R222)","v":""},{"$f":"IF(診療所票H29!AP222=\"\",\"\",診療所票H29!AP222)","v":""},{"$f":"IF(診療所票H29!AZ222=\"\",\"\",診療所票H29!AZ222)","v":""},{"$f":"IF(診療所票H29!H225=\"\",\"\",診療所票H29!H225)","v":""},{"$f":"IF(診療所票H29!R225=\"\",\"\",診療所票H29!R225)","v":""},{"$f":"IF(診療所票H29!AP225=\"\",\"\",診療所票H29!AP225)","v":""},{"$f":"IF(診療所票H29!AZ225=\"\",\"\",診療所票H29!AZ225)","v":""},{"$f":"IF(診療所票H29!H228=\"\",\"\",診療所票H29!H228)","v":""},{"$f":"IF(診療所票H29!R228=\"\",\"\",診療所票H29!R228)","v":""},{"$f":"IF(診療所票H29!AP228=\"\",\"\",診療所票H29!AP228)","v":""},{"$f":"IF(診療所票H29!AZ228=\"\",\"\",診療所票H29!AZ228)","v":""},{"$f":"IF(診療所票H29!H235=\"\",\"\",診療所票H29!H235)","v":""},{"$f":"IF(診療所票H29!R235=\"\",\"\",診療所票H29!R235)","v":""},{"$f":"IF(診療所票H29!AP235=\"\",\"\",診療所票H29!AP235)","v":""},{"$f":"IF(診療所票H29!AZ235=\"\",\"\",診療所票H29!AZ235)","v":""},{"$f":"IF(診療所票H29!H238=\"\",\"\",診療所票H29!H238)","v":""},{"$f":"IF(診療所票H29!R238=\"\",\"\",診療所票H29!R238)","v":""},{"$f":"IF(診療所票H29!AP238=\"\",\"\",診療所票H29!AP238)","v":""},{"$f":"IF(診療所票H29!AZ238=\"\",\"\",診療所票H29!AZ238)","v":""},{"$f":"IF(診療所票H29!H241=\"\",\"\",診療所票H29!H241)","v":""},{"$f":"IF(診療所票H29!R241=\"\",\"\",診療所票H29!R241)","v":""},{"$f":"IF(診療所票H29!AP241=\"\",\"\",診療所票H29!AP241)","v":""},{"$f":"IF(診療所票H29!AZ241=\"\",\"\",診療所票H29!AZ241)","v":""},{"$f":"IF(診療所票H29!H244=\"\",\"\",診療所票H29!H244)","v":""},{"$f":"IF(診療所票H29!R244=\"\",\"\",診療所票H29!R244)","v":""},{"$f":"IF(診療所票H29!AP244=\"\",\"\",診療所票H29!AP244)","v":""},{"$f":"IF(診療所票H29!AZ244=\"\",\"\",診療所票H29!AZ244)","v":""},{"$f":"IF(診療所票H29!H247=\"\",\"\",診療所票H29!H247)","v":""},{"$f":"IF(診療所票H29!R247=\"\",\"\",診療所票H29!R247)","v":""},{"$f":"IF(診療所票H29!AP247=\"\",\"\",診療所票H29!AP247)","v":""},{"$f":"IF(診療所票H29!AZ247=\"\",\"\",診療所票H29!AZ247)","v":""},{"$f":"IF(診療所票H29!Z265=\"\",\"\",診療所票H29!Z265)","v":""},{"$f":"IF(診療所票H29!AZ265=\"\",\"\",診療所票H29!AZ265)","v":""},{"$f":"IF(診療所票H29!BD265=\"\",\"\",診療所票H29!BD265)","v":""},{"$f":"IF(診療所票H29!BH265=\"\",\"\",診療所票H29!BH265)","v":""},{"$f":"IF(診療所票H29!AZ271=\"\",\"\",診療所票H29!AZ271)","v":""},{"$f":"IF(診療所票H29!AZ274=\"\",\"\",診療所票H29!AZ274)","v":""},{"$f":"IF(診療所票H29!BB277=\"\",\"\",診療所票H29!BB277)","v":""},{"$f":"IF(診療所票H29!AZ280=\"\",\"\",診療所票H29!AZ280)","v":""},{"$f":"IF(診療所票H29!AZ283=\"\",\"\",診療所票H29!AZ283)","v":""}]
[]
[]
[null,null,null,null,null,null,null,null,null,null,null,null,null,null,null,null,null,null,null,null,null,null,null,null,null,null,null,null,null,null,null,null,null,null,null,null,null,null,null,null,null,null,null,null,null,null,null,null,null,null,null,null,null,null,null,null,null,null,null,null,null,null,null,null,null,null,null,null,null,null,null,null,null,null,null,null,null,null,null,null,null,null,null,null,null,null,null,null,null,null,null,null,null,null,null,null,null,null,null,null,null,null,null,null,null,null,null,null,null,null,null,null,null,null,null,null,null,null,null,null,null,null,null,null,null,null,null,null,null,null,null,null,null,null,null,null,null,null,null,null,null,null,null,null,null,null,null,null,null,null,null,null,null,null,null,null,null,null,null,null,null,null,null,null,null,null,null,null,null,null,null,null,null,null,null,null,null,"End"]

{"sheet":"4H29Layout","index":4,"n_rows":170,"n_cols":9,"rows_kept":170,"cut":false,"hidden":true,"merged":[[2,2,2,4],[2,5,2,8]]}
["　","平成29年病床機能報告(診療所票1)"]
[null,"入力用ファイルレイアウト"]
["項目数",166,"入力情報",null,null,"出力情報"]
["No","項目名称","ﾀｲﾌﾟ","データ取得区分","列数","電子調査票セル位置","行","列","値"]
[1,"貴院名",null,1,12,{"$f":"ADDRESS(G5,H5,4)","v":"S3"},3,19]
[2,"ＩＤ（報告マニュアル送付状に記載の８桁コード）","N",1,13,{"$f":"ADDRESS(G6,H6,4)","v":"S5"},5,19]
[3,"医療機関住所＿郵便番号",null,2,14,"W7 & AI7",7,"23,35"]
[4,"医療機関住所＿住所",null,1,15,{"$f":"ADDRESS(G8,H8,4)","v":"S8"},8,19]
[5,"報告担当者＿氏名",null,1,16,{"$f":"ADDRESS(G9,H9,4)","v":"S10"},10,19]
[6,"報告担当者＿部署名",null,1,17,{"$f":"ADDRESS(G10,H10,4)","v":"S11"},11,19]
[7,"報告担当者＿連絡先＿電話番号",null,3,18,"AE12 & AM12 & AW12",12,"31,39,49"]
[8,"報告担当者＿連絡先＿FAX番号",null,3,19,"AE13 & AM13 & AW13",13,"31,39,49"]
[9,"報告担当者＿連絡先＿e-mail",null,4,20,"AA14 &  AW14",14,"27,49"]
[10,"レセプト種別―①一般病床・療養病床入院患者有無＿(1)","N",1,21,{"$f":"ADDRESS(G14,H14,4)","v":"BH18"},18,60]
[11,"レセプト種別―②一般病床・医療療養病床入院患者有無＿(2)","N",1,22,{"$f":"ADDRESS(G15,H15,4)","v":"BH21"},21,60]
[12,"レセプト種別―③診療報酬請求有無＿(3)","N",1,23,"BH24",24,60]
[13,"レセプト種別―④レセプト種別＿(4)","N",1,24,"BH29",29,60]
[14,"報告様式２ＡのCDの送付希望",null,1,25,"BC39",39,55]
[15,"１．設置主体＿(5)","N",1,26,"BH51",51,60]
[16,"2．―①入院基本料の届出の有無＿(6)","N",1,27,"BH59",59,60]
[17,"2．―②稼働病床の有無＿(7)","N",1,28,"BH62",62,60]
[18,"3．―①2017年7月1日時点の機能＿(8)","N",1,29,"BH80",80,60]
[19,"3．―②6年経過の病床機能の予定＿(9)","N",1,30,"BH83",83,60]
[20,"3．―③2026年7月1日時点の機能＿(10)","N",1,31,"BH86",86,60]
[21,"3. ―④上記項目３＿(11)","N",1,32,"BH91",91,60]
[22,"6年以内に変更予定あり",null,1,33,"N97",97,14]
[23,"6年以内に変更予定あり―変更後の機能＿(12)","N",1,34,"AH97",97,34]
[24,"6年以内に変更予定あり―変更予定年","N",1,35,"AZ97",97,52]
[25,"6年以内に変更予定あり―変更予定月","N",1,36,"BF97",97,58]
[26,"4．有床診療所の病床の役割＿(13)","N",1,37,"AR107",107,44]
[27,"4．有床診療所の病床の役割＿(13)","N",1,38,"AV107",107,48]
[28,"4．有床診療所の病床の役割＿(13)","N",1,39,"AZ107",107,52]
[29,"4．有床診療所の病床の役割＿(13)","N",1,40,"BD107",107,56]
[30,"4．有床診療所の病床の役割＿(13)","N",1,41,"BH107",107,60]
[31,"5．―①一般病床＿許可病床数＿(14)","N",1,42,"AP114",114,42]
[32,"5．―①一般病床＿稼働病床数＿(14)","N",6,43,"AX114",114,50]
[33,"5．―①一般病床＿非稼働病床数＿(14)","N",1,44,"BF114",114,58]
[34,"5．―①＿経過措置該当病床＿許可病床数＿(15)","N",1,45,"AP117",117,42]
[35,"5．―②療養病床＿許可病床数＿(16)","N",1,46,"AP120",120,42]
[36,"5．―②療養病床＿稼働病床数＿(16)","N",6,47,"AX120",120,50]
[37,"5．―②療養病床＿非稼働病床数＿(16)","N",1,48,"BF120",120,58]
[38,"5．―②＿医療療養病床＿許可病床数＿(17)","N",1,49,"AP123",123,42]
[39,"5．―②＿医療療養病床＿稼働病床数＿(17)","N",6,50,"AX123",123,50]
[40,"5．―②＿医療療養病床＿非稼働病床数＿(17)","N",1,51,"BF123",123,58]
[41,"5．―②＿介護療養病床＿許可病床数＿(18)","N",6,52,"AP126",126,42]
[42,"5．―②＿介護療養病床＿稼働病床数＿(18)","N",6,53,"AX126",126,50]
[43,"5．―②＿介護療養病床＿非稼働病床数＿(18)","N",6,54,"BF126",126,58]
[44,"【自由記入欄1】",null,1,55,{"$f":"ADDRESS(G48,H48,4)","v":"A130"},130,1]
[45,"6．―① 有床診療所入院基本料＿(19)","N",1,56,{"$f":"ADDRESS(G49,H49,4)","v":"BF134"},134,58]
[46,"6．―② 有床診療所療養病床入院基本料＿(20)","N",1,57,"BF137",137,58]
[47,"6．―③ 診療所型介護療養施設サービス費等＿(21)","N",1,58,"BF140",140,58]
[48,"6．―入院料の届出なし＿(22)","N",6,59,"BF143",143,58]
[49,"7.―①＿医師＿常勤＿(23)","N",6,60,"H152",152,8]
[50,"7.―①＿医師＿非常勤＿(23)","N",6,61,"R152",152,18]
[51,"7.―①＿歯科医師＿常勤＿(24)","N",6,62,"AP152",152,42]
[52,"7.―①＿歯科医師＿非常勤＿(24)","N",6,63,"AZ152",152,52]
[53,"7．―①＿看護師＿常勤＿(25)","N",6,64,"H155",155,8]
[54,"7．―①＿看護師＿非常勤＿(25)","N",6,65,"R155",155,18]
[55,"7．―①＿准看護師＿常勤＿(26)","N",6,66,"AP155",155,42]
[56,"7．―①＿准看護師＿非常勤＿(26)","N",6,67,"AZ155",155,52]
[57,"7．―①＿看護補助者＿常勤＿(27)","N",6,68,"H158",158,8]
[58,"7．―①＿看護補助者＿非常勤＿(27)","N",6,69,"R158",158,18]
[59,"7．―①＿助産師＿常勤＿(28)","N",6,70,"AP158",158,42]
[60,"7．―①＿助産師＿非常勤＿(28)","N",6,71,"AZ158",158,52]
[61,"7．―①＿理学療法士＿常勤＿(29)","N",6,72,"H161",161,8]
[62,"7．―①＿理学療法士＿非常勤＿(29)","N",6,73,"R161",161,18]
[63,"7．―①＿作業療法士＿常勤＿(30)","N",6,74,"AP161",161,42]
[64,"7．―①＿作業療法士＿非常勤＿(30)","N",6,75,"AZ161",161,52]
[65,"7．―①＿言語聴覚士＿常勤＿(31)","N",6,76,"H164",164,8]
[66,"7．―①＿言語聴覚士＿非常勤＿(31)","N",6,77,"R164",164,18]
[67,"7．―①＿薬剤師＿常勤＿(32)","N",6,78,"AP164",164,42]
[68,"7．―①＿薬剤師＿非常勤＿(32)","N",6,79,"AZ164",164,52]
[69,"7. ―①＿診療放射線技師＿常勤＿(33)","N",6,80,"H167",167,8]
[70,"7. ―①＿診療放射線技師＿非常勤＿(33)","N",6,81,"R167",167,18]
[71,"7. ―①＿臨床検査技師＿常勤＿(34)","N",6,82,"AP167",167,42]
[72,"7. ―①＿臨床検査技師＿非常勤＿(34)","N",6,83,"AZ167",167,52]
[73,"7．―①＿臨床工学技士＿常勤＿(35)","N",6,84,"H170",170,8]
[74,"7．―①＿臨床工学技士＿非常勤＿(35)","N",6,85,"R170",170,18]
[75,"7. ―①＿管理栄養士＿常勤＿(36)","N",6,86,"AP170",170,42]
[76,"7. ―①＿管理栄養士＿非常勤＿(36)","N",6,87,"AZ170",170,52]
[77,"7．―②＿看護師＿常勤＿(37)","N",1,88,"H176",176,8]
[78,"7．―②＿看護師＿非常勤＿(37)","N",1,89,"R176",176,18]
[79,"7．―②＿准看護師＿常勤＿(38)","N",1,90,"AP176",176,42]
[80,"7．―②＿准看護師＿非常勤＿(38)","N",1,91,"AZ176",176,52]
[81,"7．―②＿看護補助者＿常勤＿(39)","N",1,92,"H179",179,8]
[82,"7．―②＿看護補助者＿非常勤＿(39)","N",1,93,"R179",179,18]
[83,"7．―②＿助産師＿常勤＿(40)","N",1,94,"AP179",179,42]
[84,"7．―②＿助産師＿非常勤＿(40)","N",1,95,"AZ179",179,52]
[85,"7．―②＿理学療法士＿常勤＿(41)","N",1,96,"H182",182,8]
[86,"7．―②＿理学療法士＿非常勤＿(41)","N",1,97,"R182",182,18]
[87,"7．―②＿作業療法士＿常勤＿(42)","N",1,98,"AP182",182,42]
[88,"7．―②＿作業療法士＿非常勤＿(42)","N",1,99,"AZ182",182,52]
[89,"7．―②＿言語聴覚士＿常勤＿(43)","N",1,100,"H185",185,8]
[90,"7．―②＿言語聴覚士＿非常勤＿(43)","N",1,101,"R185",185,18]
[91,"7．―②＿薬剤師＿常勤＿(44)","N",1,102,"AP185",185,42]
[92,"7．―②＿薬剤師＿非常勤＿(44)","N",1,103,"AZ185",185,52]
[93,"7．―②＿臨床工学技士＿常勤＿(45)","N",1,104,"H188",188,8]
[94,"7．―②＿臨床工学技士＿非常勤＿(45)","N",1,105,"R188",188,18]
[95,"7. ―②＿管理栄養士＿常勤＿(46)","N",1,106,"AP188",188,42]
[96,"7. ―②＿管理栄養士＿非常勤＿(46)","N",1,107,"AZ188",188,52]
[97,"7．―看護職員が０人となる場合＿(47)",null,1,108,"BH191",191,60]
[98,"7．―③＿看護師＿常勤＿(48)","N",1,109,"H197",197,8]
[99,"7．―③＿看護師＿非常勤＿(48)","N",1,110,"R197",197,18]
[100,"7．―③＿准看護師＿常勤＿(49)","N",1,111,"AP197",197,42]
[101,"7．―③＿准看護師＿非常勤＿(49)","N",1,112,"AZ197",197,52]
[102,"7．―③＿看護補助者＿常勤＿(50)","N",1,113,"H200",200,8]
[103,"7．―③＿看護補助者＿非常勤＿(50)","N",1,114,"R200",200,18]
[104,"7．―③＿助産師＿常勤＿(51)","N",1,115,"AP200",200,42]
[105,"7．―③＿助産師＿非常勤＿(51)","N",1,116,"AZ200",200,52]
[106,"7．―③＿理学療法士＿常勤＿(52)","N",1,117,"H203",203,8]
[107,"7．―③＿理学療法士＿非常勤＿(52)","N",1,118,"R203",203,18]
[108,"7．―③＿作業療法士＿常勤＿(53)","N",1,119,"AP203",203,42]
[109,"7．―③＿作業療法士＿非常勤＿(53)","N",1,120,{"$f":"ADDRESS(G113,H113,4)","v":"AZ203"},203,52]
[110,"7．―③＿言語聴覚士＿常勤＿(54)","N",1,121,"H206",206,8]
[111,"7．―③＿言語聴覚士＿非常勤＿(54)","N",1,122,"R206",206,18]
[112,"7．―③＿薬剤師＿常勤＿(55)","N",1,123,"AP206",206,42]
[113,"7．―③＿薬剤師＿非常勤＿(55)","N",1,124,"AZ206",206,52]
[114,"7．―③＿臨床工学技士＿常勤＿(56)","N",1,125,"H209",209,8]
[115,"7．―③＿臨床工学技士＿非常勤＿(56)","N",1,126,"R209",209,18]
[116,"7. ―③＿管理栄養士＿常勤＿(57)","N",1,127,"AP209",209,42]
[117,"7. ―③＿管理栄養士＿非常勤＿(57)","N",1,128,"AZ209",209,52]
[118,"7．―④＿看護師＿常勤＿(58)","N",1,129,"H216",216,8]
[119,"7．―④＿看護師＿非常勤＿(58)","N",1,130,"R216",216,18]
[120,"7．―④＿准看護師＿常勤＿(59)","N",1,131,"AP216",216,42]
[121,"7．―④＿准看護師＿非常勤＿(59)","N",1,132,"AZ216",216,52]
[122,"7．―④＿看護補助者＿常勤＿(60)","N",1,133,"H219",219,8]
[123,"7．―④＿看護補助者＿非常勤＿(60)","N",1,134,"R219",219,18]
[124,"7．―④＿助産師＿常勤＿(61)","N",1,135,"AP219",219,42]
[125,"7．―④＿助産師＿非常勤＿(61)","N",1,136,"AZ219",219,52]
[126,"7．―④＿理学療法士＿常勤＿(62)","N",1,137,"H222",222,8]
[127,"7．―④＿理学療法士＿非常勤＿(62)","N",1,138,"R222",222,18]
[128,"7．―④＿作業療法士＿常勤＿(63)","N",1,139,"AP222",222,42]
[129,"7．―④＿作業療法士＿非常勤＿(63)","N",1,140,"AZ222",222,52]
[130,"7．―④＿言語聴覚士＿常勤＿(64)","N",1,141,"H225",225,8]
[131,"7．―④＿言語聴覚士＿非常勤＿(64)","N",1,142,"R225",225,18]
[132,"7．―④＿薬剤師＿常勤＿(65)","N",1,143,"AP225",225,42]
[133,"7．―④＿薬剤師＿非常勤＿(65)","N",1,144,"AZ225",225,52]
[134,"7．―④＿臨床工学技士＿常勤＿(66)","N",1,145,"H228",228,8]
[135,"7．―④＿臨床工学技士＿非常勤＿(66)","N",1,146,"R228",228,18]
[136,"7. ―④＿管理栄養士＿常勤＿(67)","N",1,147,"AP228",228,42]
[137,"7. ―④＿管理栄養士＿非常勤＿(67)","N",1,148,"AZ228",228,52]
[138,"7．―⑤＿看護師＿常勤＿(68)","N",1,149,"H235",235,8]
[139,"7．―⑤＿看護師＿非常勤＿(68)","N",1,150,"R235",235,18]
[140,"7．―⑤＿准看護師＿常勤＿(69)","N",1,151,"AP235",235,42]
[141,"7．―⑤＿准看護師＿非常勤＿(69)","N",1,152,"AZ235",235,52]
[142,"7．―⑤＿看護補助者＿常勤＿(70)","N",1,153,"H238",238,8]
[143,"7．―⑤＿看護補助者＿非常勤＿(70)","N",1,154,"R238",238,18]
[144,"7．―⑤＿助産師＿常勤＿(71)","N",1,155,"AP238",238,42]
[145,"7．―⑤＿助産師＿非常勤＿(71)","N",1,156,"AZ238",238,52]
[146,"7．―⑤＿理学療法士＿常勤＿(72)","N",1,157,"H241",241,8]
[147,"7．―⑤＿理学療法士＿非常勤＿(72)","N",1,158,"R241",241,18]
[148,"7．―⑤＿作業療法士＿常勤＿(73)","N",1,159,"AP241",241,42]
[149,"7. ―⑤＿作業療法士＿非常勤＿(73)","N",1,160,"AZ241",241,52]
[150,"7．―⑤＿言語聴覚士＿常勤＿(74)","N",1,161,"H244",244,8]
[151,"7．―⑤＿言語聴覚士＿非常勤＿(74)","N",1,162,"R244",244,18]
[152,"7．―⑤＿薬剤師＿常勤＿(75)","N",1,163,"AP244",244,42]
[153,"7．―⑤＿薬剤師＿非常勤＿(75)","N",1,164,"AZ244",244,52]
[154,"7．―⑤＿臨床工学技士＿常勤＿(76)","N",1,165,"H247",247,8]
[155,"7．―⑤＿臨床工学技士＿非常勤＿(76)","N",1,166,"R247",247,18]
[156,"7. ―⑤＿管理栄養士＿常勤＿(77)","N",1,167,"AP247",247,42]
[157,"7. ―⑤＿管理栄養士＿非常勤＿(77)","N",1,168,"AZ247",247,52]
[158,"8．―該当番号＿(78)","N",1,169,"Z265",265,26]
[159,"8．―「44」を選択した場合上位１位","N",1,170,"AZ265",265,52]
[160,"8．―「44」を選択した場合上位２位","N",1,171,"BD265",265,56]
[161,"8．―「44」を選択した場合上位３位","N",1,172,"BH265",265,60]
[162,"9．―①新規入院患者数＿(79)","N",1,173,"AZ271",271,52]
[163,"9．―①＿急変入院患者数＿(80)","N",1,174,"AZ274",274,52]
[164,"9．―①＿他病院からの受入割合＿(81)","N",1,175,"BB277",277,54]
[165,"9．―②在院患者延べ数＿(82)","N",1,176,"AZ280",280,52]
[166,"9．―③退院患者数＿(83)","N",1,177,"AZ283",283,52]

{"sheet":"テキスト手動保存用2","index":5,"n_rows":4,"n_cols":106,"rows_kept":4,"cut":false,"hidden":false,"merged":[]}
[1,"5H29",null,null,null,null,null,null,null,null,null,{"$f":"IF(診療所票H29!S3=\"\",\"\",診療所票H29!S3)","v":""},{"$f":"IF(診療所票H29!S5=\"\",\"\",診療所票H29!S5)","v":""},{"$f":"IF(診療所票H29!AZ289=\"\",\"\",診療所票H29!AZ289)","v":0},{"$f":"IF(診療所票H29!AZ292=\"\",\"\",診療所票H29!AZ292)","v":""},{"$f":"IF(診療所票H29!AZ295=\"\",\"\",診療所票H29!AZ295)","v":""},{"$f":"IF(診療所票H29!AZ298=\"\",\"\",診療所票H29!AZ298)","v":""},{"$f":"IF(診療所票H29!AZ301=\"\",\"\",診療所票H29!AZ301)","v":""},{"$f":"IF(診療所票H29!AZ304=\"\",\"\",診療所票H29!AZ304)","v":""},{"$f":"IF(診療所票H29!AZ307=\"\",\"\",診療所票H29!AZ307)","v":0},{"$f":"IF(診療所票H29!AZ310=\"\",\"\",診療所票H29!AZ310)","v":""},{"$f":"IF(診療所票H29!AZ313=\"\",\"\",診療所票H29!AZ313)","v":""},{"$f":"IF(診療所票H29!AZ316=\"\",\"\",診療所票H29!AZ316)","v":""},{"$f":"IF(診療所票H29!AZ319=\"\",\"\",診療所票H29!AZ319)","v":""},{"$f":"IF(診療所票H29!AZ322=\"\",\"\",診療所票H29!AZ322)","v":""},{"$f":"IF(診療所票H29!AZ325=\"\",\"\",診療所票H29!AZ325)","v":""},{"$f":"IF(診療所票H29!AZ328=\"\",\"\",診療所票H29!AZ328)","v":""},{"$f":"IF(診療所票H29!AZ332=\"\",\"\",診療所票H29!AZ332)","v":0},{"$f":"IF(診療所票H29!AZ335=\"\",\"\",診療所票H29!AZ335)","v":""},{"$f":"IF(診療所票H29!AZ338=\"\",\"\",診療所票H29!AZ338)","v":""},{"$f":"IF(診療所票H29!AZ341=\"\",\"\",診療所票H29!AZ341)","v":""},{"$f":"IF(診療所票H29!AZ344=\"\",\"\",診療所票H29!AZ344)","v":""},{"$f":"IF(診療所票H29!AZ347=\"\",\"\",診療所票H29!AZ347)","v":""},{"$f":"IF(診療所票H29!AZ350=\"\",\"\",診療所票H29!AZ350)","v":0},{"$f":"IF(診療所票H29!AZ353=\"\",\"\",診療所票H29!AZ353)","v":""},{"$f":"IF(診療所票H29!AZ356=\"\",\"\",診療所票H29!AZ356)","v":""},{"$f":"IF(診療所票H29!AZ359=\"\",\"\",診療所票H29!AZ359)","v":""},{"$f":"IF(診療所票H29!AZ362=\"\",\"\",診療所票H29!AZ362)","v":""},{"$f":"IF(診療所票H29!AZ365=\"\",\"\",診療所票H29!AZ365)","v":""},{"$f":"IF(診療所票H29!AZ368=\"\",\"\",診療所票H29!AZ368)","v":""},{"$f":"IF(診療所票H29!AZ371=\"\",\"\",診療所票H29!AZ371)","v":""},{"$f":"IF(診療所票H29!AZ379=\"\",\"\",診療所票H29!AZ379)","v":""},{"$f":"IF(診療所票H29!AZ382=\"\",\"\",診療所票H29!AZ382)","v":""},{"$f":"IF(診療所票H29!AZ385=\"\",\"\",診療所票H29!AZ385)","v":""},{"$f":"IF(診療所票H29!AZ388=\"\",\"\",診療所票H29!AZ388)","v":""},{"$f":"IF(診療所票H29!AZ395=\"\",\"\",診療所票H29!AZ395)","v":""},{"$f":"IF(診療所票H29!AZ398=\"\",\"\",診療所票H29!AZ398)","v":""},{"$f":"IF(診療所票H29!AZ401=\"\",\"\",診療所票H29!AZ401)","v":""},{"$f":"IF(診療所票H29!AZ404=\"\",\"\",診療所票H29!AZ404)","v":""},{"$f":"IF(診療所票H29!BH409=\"\",\"\",診療所票H29!BH409)","v":""},{"$f":"IF(診療所票H29!AZ414=\"\",\"\",診療所票H29!AZ414)","v":""},{"$f":"IF(診療所票H29!AZ417=\"\",\"\",診療所票H29!AZ417)","v":""},{"$f":"IF(診療所票H29!AZ424=\"\",\"\",診療所票H29!AZ424)","v":0},{"$f":"IF(診療所票H29!AZ427=\"\",\"\",診療所票H29!AZ427)","v":""},{"$f":"IF(診療所票H29!AZ430=\"\",\"\",診療所票H29!AZ430)","v":""},{"$f":"IF(診療所票H29!AZ435=\"\",\"\",診療所票H29!AZ435)","v":0},{"$f":"IF(診療所票H29!AZ438=\"\",\"\",診療所票H29!AZ438)","v":""},{"$f":"IF(診療所票H29!AZ441=\"\",\"\",診療所票H29!AZ441)","v":""},{"$f":"IF(診療所票H29!AZ447=\"\",\"\",診療所票H29!AZ447)","v":""},{"$f":"IF(診療所票H29!AZ454=\"\",\"\",診療所票H29!AZ454)","v":""},{"$f":"IF(診療所票H29!AZ457=\"\",\"\",診療所票H29!AZ457)","v":""},{"$f":"IF(診療所票H29!AZ460=\"\",\"\",診療所票H29!AZ460)","v":""},{"$f":"IF(診療所票H29!AZ463=\"\",\"\",診療所票H29!AZ463)","v":""},{"$f":"IF(診療所票H29!AZ466=\"\",\"\",診療所票H29!AZ466)","v":""},{"$f":"IF(診療所票H29!BB471=\"\",\"\",診療所票H29!BB471)","v":""},{"$f":"IF(診療所票H29!AZ474=\"\",\"\",診療所票H29!AZ474)","v":""},{"$f":"IF(診療所票H29!AZ477=\"\",\"\",診療所票H29!AZ477)","v":""},{"$f":"IF(診療所票H29!AZ480=\"\",\"\",診療所票H29!AZ480)","v":""},{"$f":"IF(診療所票H29!AZ484=\"\",\"\",診療所票H29!AZ484)","v":""},{"$f":"IF(診療所票H29!BH490=\"\",\"\",診療所票H29!BH490)","v":""},{"$f":"IF(診療所票H29!BH493=\"\",\"\",診療所票H29!BH493)","v":""},{"$f":"IF(診療所票H29!BH496=\"\",\"\",診療所票H29!BH496)","v":""},{"$f":"IF(診療所票H29!BH499=\"\",\"\",診療所票H29!BH499)","v":""},{"$f":"IF(診療所票H29!BH502=\"\",\"\",診療所票H29!BH502)","v":""},{"$f":"IF(診療所票H29!BH505=\"\",\"\",診療所票H29!BH505)","v":""},{"$f":"IF(診療所票H29!BH508=\"\",\"\",診療所票H29!BH508)","v":""},{"$f":"IF(診療所票H29!BH511=\"\",\"\",診療所票H29!BH511)","v":""},{"$f":"IF(診療所票H29!BH514=\"\",\"\",診療所票H29!BH514)","v":""},{"$f":"IF(診療所票H29!BH517=\"\",\"\",診療所票H29!BH517)","v":""},{"$f":"IF(診療所票H29!BH520=\"\",\"\",診療所票H29!BH520)","v":""},{"$f":"IF(診療所票H29!BH523=\"\",\"\",診療所票H29!BH523)","v":""},{"$f":"IF(診療所票H29!BH526=\"\",\"\",診療所票H29!BH526)","v":""},{"$f":"IF(診療所票H29!BH529=\"\",\"\",診療所票H29!BH529)","v":""},{"$f":"IF(診療所票H29!BH532=\"\",\"\",診療所票H29!BH532)","v":""},{"$f":"IF(診療所票H29!BH535=\"\",\"\",診療所票H29!BH535)","v":""},{"$f":"IF(診療所票H29!BH538=\"\",\"\",診療所票H29!BH538)","v":""},{"$f":"IF(診療所票H29!BH544=\"\",\"\",診療所票H29!BH544)","v":""},{"$f":"IF(診療所票H29!H549=\"\",\"\",診療所票H29!H549)","v":""},{"$f":"IF(診療所票H29!R549=\"\",\"\",診療所票H29!R549)","v":""},{"$f":"IF(診療所票H29!AP549=\"\",\"\",診療所票H29!AP549)","v":""},{"$f":"IF(診療所票H29!AZ549=\"\",\"\",診療所票H29!AZ549)","v":""},{"$f":"IF(診療所票H29!H552=\"\",\"\",診療所票H29!H552)","v":""},{"$f":"IF(診療所票H29!R552=\"\",\"\",診療所票H29!R552)","v":""},{"$f":"IF(診療所票H29!AP552=\"\",\"\",診療所票H29!AP552)","v":""},{"$f":"IF(診療所票H29!AZ552=\"\",\"\",診療所票H29!AZ552)","v":""},{"$f":"IF(診療所票H29!H555=\"\",\"\",診療所票H29!H555)","v":""},{"$f":"IF(診療所票H29!R555=\"\",\"\",診療所票H29!R555)","v":""},{"$f":"IF(診療所票H29!AP555=\"\",\"\",診療所票H29!AP555)","v":""},{"$f":"IF(診療所票H29!AZ555=\"\",\"\",診療所票H29!AZ555)","v":""},{"$f":"IF(診療所票H29!N562=\"\",\"\",診療所票H29!N562)","v":"　"},{"$f":"IF(診療所票H29!X562=\"\",\"\",診療所票H29!X562)","v":""},{"$f":"IF(診療所票H29!AD562=\"\",\"\",診療所票H29!AD562)","v":""},{"$f":"IF(診療所票H29!AT562=\"\",\"\",診療所票H29!AT562)","v":""},{"$f":"IF(診療所票H29!AZ562=\"\",\"\",診療所票H29!AZ562)","v":""},{"$f":"IF(診療所票H29!A567=\"\",\"\",診療所票H29!A567)","v":""}]
[]
[]
[null,null,null,null,null,null,null,null,null,null,null,null,null,null,null,null,null,null,null,null,null,null,null,null,null,null,null,null,null,null,null,null,null,null,null,null,null,null,null,null,null,null,null,null,null,null,null,null,null,null,null,null,null,null,null,null,null,null,null,null,null,null,null,null,null,null,null,null,null,null,null,null,null,null,null,null,null,null,null,null,null,null,null,null,null,null,null,null,null,null,null,null,null,null,null,null,null,null,null,null,null,null,null,null,null,"End"]

{"sheet":"5H29Layout","index":6,"n_rows":96,"n_cols":9,"rows_kept":96,"cut":false,"hidden":true,"merged":[[2,2,2,4],[2,5,2,8]]}
["　","平成29年病床機能報告(診療所票2)"]
[null,"入力用ファイルレイアウト"]
["項目数",92,"入力情報",null,null,"出力情報"]
["No","項目名称","ﾀｲﾌﾟ","データ取得区分","列数","電子調査票セル位置","行","列","値"]
[1,"10．―①新規入院患者数＿(84)","N",6,14,{"$f":"ADDRESS(G5,H5,4)","v":"AZ289"},289,52]
[2,"10. ―①＿家庭への退院＿(85)","N",1,15,"AZ292",292,52]
[3,"10．―①＿他病院、診療所から転院＿(86)","N",1,16,"AZ295",295,52]
[4,"10. ―①＿介護施設、福祉施設から入院＿(87)","N",1,17,"AZ298",298,52]
[5,"10．―①＿院内出生＿(88)","N",1,18,"AZ301",301,52]
[6,"10. ―①＿その他＿(89)","N",1,19,"AZ304",304,52]
[7,"10．―②退院患者数＿(90)","N",6,20,"AZ307",307,52]
[8,"10．―②＿家庭からの入院＿(91)","N",1,21,"AZ310",310,52]
[9,"10．―②＿他病院、診療所へ転院＿(92)","N",1,22,"AZ313",313,52]
[10,"10．―②＿介護老人保健施設に入所＿(93)","N",1,23,"AZ316",316,52]
[11,"10．―②＿介護老人福祉施設に入所＿(94)","N",1,24,"AZ319",319,52]
[12,"10．―②＿社会福祉施設・有料老人ホームに入所＿(95)","N",1,25,"AZ322",322,52]
[13,"10．―②＿終了(死亡退院等)＿(96)","N",1,26,"AZ325",325,52]
[14,"10．―②＿その他＿(97)","N",1,27,"AZ328",328,52]
[15,"10. ―③新規入院患者数＿(98)","N",6,28,"AZ332",332,52]
[16,"10. ―③＿家庭からの入院＿(99)","N",1,29,"AZ335",335,52]
[17,"10. ―③＿他の病院、診療所からの転院＿(100)","N",1,30,"AZ338",338,52]
[18,"10. ―③＿介護施設・福祉施設からの入院＿(101)","N",1,31,"AZ341",341,52]
[19,"10. ―③＿院内の出生＿(102)","N",1,32,"AZ344",344,52]
[20,"10. ―③＿その他＿(103)","N",1,33,"AZ347",347,52]
[21,"10. ―④退院患者数＿(104)","N",6,34,"AZ350",350,52]
[22,"10. ―④＿家庭へ退院＿(105)","N",1,35,"AZ353",353,52]
[23,"10. ―④＿他の病院、診療所へ転院＿(106)","N",1,36,"AZ356",356,52]
[24,"10. ―④＿介護老人保健施設に入所＿(107)","N",1,37,"AZ359",359,52]
[25,"10. ―④＿介護老人福祉施設に入所＿(108)","N",1,38,"AZ362",362,52]
[26,"10. ―④＿社会福祉施設・有料老人ホーム等に入所＿(109)","N",1,39,"AZ365",365,52]
[27,"10. ―④＿終了（死亡退院等）＿(110)","N",1,40,"AZ368",368,52]
[28,"10. ―④＿その他＿(111)","N",1,41,"AZ371",371,52]
[29,"11．―①＿在宅医療を必要としない＿(112)","N",1,42,"AZ379",379,52]
[30,"11．―①＿自院が在宅医療を提供＿(113)","N",1,43,"AZ382",382,52]
[31,"11．―①＿他施設が在宅医療を提供＿(114)","N",1,44,"AZ385",385,52]
[32,"11．―①＿在宅医療の実施予定が不明＿(115)","N",1,45,"AZ388",388,52]
[33,"11. ―②＿在宅医療を必要としない＿(116)","N",1,46,"AZ395",395,52]
[34,"11. ―②＿自院が在宅医療を提供＿(117)","N",1,47,"AZ398",398,52]
[35,"11. ―②＿他施設が在宅医療を提供＿(118)","N",1,48,"AZ401",401,52]
[36,"11. ―②＿在宅医療の実施予定＿(119)","N",1,49,"AZ404",404,52]
[37,"12．―①在宅療養支援診療所の届出＿(120)","N",1,50,"BH409",409,60]
[38,"13．―①往診を実施した患者延べ数＿(121)","N",1,51,"AZ414",414,52]
[39,"13．―②訪問診療を実施した患者延べ数＿(122)","N",1,52,"AZ417",417,52]
[40,"14．―①＿(１)医療機関以外での死亡者数＿(123)","N",6,53,"AZ424",424,52]
[41,"14．―①＿(１)＿自宅での死亡者数＿(124)","N",1,54,"AZ427",427,52]
[42,"14．―①＿(１)＿自宅以外での死亡者数＿(125)","N",1,55,"AZ430",430,52]
[43,"14．―②＿(２)医療機関での死亡者数＿(126)","N",6,56,"AZ435",435,52]
[44,"14．―②＿(２)＿連携医療機関での死亡者数＿(127)","N",1,57,"AZ438",438,52]
[45,"14．―②＿(２)＿連携医療機関以外での死亡者数＿(128)","N",1,58,"AZ441",441,52]
[46,"15．分娩件数＿(129)","N",1,59,"AZ447",447,52]
[47,"16．―①休日に受診した患者延べ数＿(130)","N",1,60,"AZ454",454,52]
[48,"16．―①＿診療後直ちに入院＿(131)","N",1,61,"AZ457",457,52]
[49,"16．―②夜間・時間外受診した患者延べ数＿(132)","N",1,62,"AZ460",460,52]
[50,"16．―②＿診療後直ちに入院＿(133)","N",1,63,"AZ463",463,52]
[51,"16．―③救急車受入件数＿(134)","N",1,64,"AZ466",466,52]
[52,"17．―①リハビリテ―ション実施＿(135)","N",1,65,"BB471",471,54]
[53,"17．―②平均リハ単位数＿(136)","N",1,66,"AZ474",474,52]
[54,"17．―③総退院患者数＿(137)","N",6,67,"AZ477",477,52]
[55,"17. ―④日常生活機能評価が10点以上＿(138)","N",1,68,"AZ480",480,52]
[56,"17．―⑤日常生活機能改善＿(139)","N",1,69,{"$f":"ADDRESS(G60,H60,4)","v":"AZ484"},484,52]
[57,"18．―① ＣＴ＿マルチスライスＣＴ＿64列以上＿(140)","N",1,70,"BH490",490,60]
[58,"18．―① ＣＴ＿マルチスライスＣＴ＿16列以上64列未満＿(141)","N",1,71,"BH493",493,60]
[59,"18．―① ＣＴ＿マルチスライスＣＴ＿16列未満＿(142)","N",1,72,"BH496",496,60]
[60,"18．―① ＣＴ＿その他のＣＴ＿(143)","N",1,73,"BH499",499,60]
[61,"18．―② ＭＲＩ＿３テスラ以上＿(144)","N",1,74,"BH502",502,60]
[62,"18．―② ＭＲＩ＿1.5テスラ以上３テスラ未満＿(145)","N",1,75,"BH505",505,60]
[63,"18．―② ＭＲＩ＿1.5テスラ未満＿(146)","N",1,76,"BH508",508,60]
[64,"18．―③ その他の医療機器＿血管連続撮影装置＿(147)","N",1,77,"BH511",511,60]
[65,"18．―③ その他の医療機器＿ＳＰＥＣＴ＿(148)","N",1,78,"BH514",514,60]
[66,"18．―③ その他の医療機器＿ＰＥＴ＿(149)","N",1,79,"BH517",517,60]
[67,"18．―③ その他の医療機器＿ＰＥＴＣＴ＿(150)","N",1,80,"BH520",520,60]
[68,"18．―③ その他の医療機器＿ＰＥＴＭＲＩ＿(151)","N",1,81,"BH523",523,60]
[69,"18．―③ その他の医療機器＿ガンマナイフ＿(152)","N",1,82,"BH526",526,60]
[70,"18．―③ その他の医療機器＿サイバーナイフ＿(153)","N",1,83,"BH529",529,60]
[71,"18．―③ その他の医療機器＿強度変調放射線＿(154)","N",1,84,"BH532",532,60]
[72,"18．―③ その他の医療機器＿遠隔操作式密封小線源＿(155)","N",1,85,"BH535",535,60]
[73,"18．―③ その他の医療機器＿内視鏡手術用支援機器（ダヴィンチ）＿(156)","N",1,86,"BH538",538,60]
[74,"19．―① 退院調整部門の有無＿(157)","N",1,87,"BH544",544,60]
[75,"19．―②＿医師＿専従＿(158)","N",1,88,"H549",549,8]
[76,"19．―②＿医師＿専任＿(158)","N",1,89,"R549",549,18]
[77,"19．―②＿看護職員＿専従＿(159)","N",1,90,"AP549",549,42]
[78,"19．―②＿看護職員＿専任＿(159)","N",1,91,"AZ549",549,52]
[79,"19．―②＿ＭＳＷ＿専従＿(160)","N",1,92,"H552",552,8]
[80,"19．―②＿ＭＳＷ＿専任＿(160)","N",1,93,"R552",552,18]
[81,"19．―②＿社会福祉資格＿専従＿(161)","N",1,94,"AP552",552,42]
[82,"19．―②＿社会福祉資格＿専任＿(161)","N",1,95,"AZ552",552,52]
[83,"19. ―②＿事務員＿専従＿(162)","N",1,96,"H555",555,8]
[84,"19．―②＿事務員＿専任＿(162)","N",1,97,"R555",555,18]
[85,"19．―②＿その他＿専従＿(163)","N",1,98,"AP555",555,42]
[86,"19．―②＿その他＿専任＿(163)","N",1,99,"AZ555",555,52]
[87,"入院部門の再編・見直しあり",null,1,100,"N562",562,14]
[88,"報告可能な対象期間年(自)","N",1,101,"X562",562,24]
[89,"報告可能な対象期間月(自)","N",1,102,"AD562",562,30]
[90,"報告可能な対象期間年(至)","N",1,103,"AT562",562,46]
[91,"報告可能な対象期間月(至)","N",1,104,"AZ562",562,52]
[92,"【自由記入欄2】",null,1,105,"A567",567,1]